{"text_format":"1","workbook":"xlsx","n_sheets":14,"sheets":["Accueil","Strat 1","Strat 2","Strat 3","comparateur","chronos","ajust éco","PIT","Transmissions","grille","Véhicules","Voitures","Notice","usure"],"not_rendered":{"charts":1,"images":132,"macros":1,"external_links":3,"defined_names":40,"comments":5,"pivot_tables":0},"unopened":[],"bounds":{"document_bytes":16777216,"sheet_cells":100000,"rows_first":2000,"rows_last":500,"rows_between":2000,"halvings":0,"cell_chars":16384,"cell_head_chars":4096},"cells_cut":0,"cells_raw":0,"read":"whole","date_system":"1900"}

{"sheet":"Accueil","index":0,"n_rows":89,"n_cols":19,"rows_kept":89,"cut":false,"hidden":false,"merged":[[28,18,29,21],[5,13,6,14],[30,18,30,21],[1,0,31,0],[32,0,47,15],[22,1,22,2],[30,3,30,4],[9,3,9,6],[15,7,15,8],[17,7,17,8],[15,2,19,2],[30,6,30,7],[14,1,14,2],[19,7,19,8],[28,5,28,8],[27,1,27,3],[1,1,3,11],[8,1,8,2],[3,13,4,15],[8,29,9,37],[8,27,9,27],[8,28,9,28],[5,18,9,21],[5,1,6,5]]}
[]
[null,"Comparateur de stratégies pour "]
[null,null,null,null,null,null,null,null,null,null,null,null,null,"Version :","1.26.1","2022-11-27"]
[]
[]
[null,"Saisie des paramètres course :",null,null,null,null,null,null,null,null,null,null,null,"Ctrl+Maj+F1",null,null,null,null,"Assurez-vous d'utiliser un fichier Excel qui accepte les macros (xlm)\nA l'ouverture répondez oui en cas de question sur la sécurité et pour activer les macros. Plus d'info dans notice utilisation."]
[]
[]
[null,"saisies obligatoires"]
[null,null,"Circuit / Piste : ",null,null,null,null,"Longueur : ",{"$f":"VLOOKUP(D10,grille!K19:L117,2,FALSE)","v":{"$error":"#N/A"}}]
[]
[null,null,"Tours ou temps : ","Tours",0,"00:00:00"]
[]
[]
[null,"saisies obligatoires"]
[null,null,"Gommes\ndisponibles",null,"Utilisation :","libre",null,"Autonomie max : ",null,0,100]
[]
[null,null,null,null,"Utilisation :","libre",null,"Vitesse ravitaillement : ",null,0]
[]
[null,null,null,null,"Utilisation :","libre",null,"Jauge initiale : ",null,100]
[]
[]
[null,"saisies obligatoires"]
[]
[]
[]
[]
[null,"Données informatives, saisies facultatives"]
[null,null,"Catégorie : ",null,"Modèle :",null,null,null,null,null,null,null,null,null,null,null,null,null,"contact administrateur"]
[]
[null,null,null,"Taux d'usure gommes : ",null,"X1","Taux consommation : ",null,"X1",null,null,null,null,null,null,null,null,null,"bigbang.contact@orange.fr"]
[]
[]
[]
[]
[]
[]
[]
[]
[]
[]
[]
[]
[]
[]
[]
[]
[]
[]
[]
[]
[]
[]
[]
[]
[]
[]
[]
[]
[]
[]
[]
[]
[]
[]
[]
[]
[]
[]
[]
[]
[]
[]
[]
[]
[]
[]
[]
[]
[]
[]
[]
[]
[]
[]
[]
[]
[]
["Plasdt84"]

{"sheet":"Strat 1","index":1,"n_rows":73,"n_cols":24,"rows_kept":73,"cut":false,"hidden":false,"merged":[[57,1,57,2],[57,5,57,7],[22,1,22,2],[53,9,53,10],[55,9,55,10],[52,1,53,5],[55,5,55,7],[31,1,32,2],[55,1,55,2],[28,1,29,2],[18,1,18,2],[15,1,15,2],[24,1,24,2],[25,1,25,2],[26,1,26,2],[20,1,20,2],[2,2,2,4],[4,13,4,16],[3,13,3,16],[3,2,4,2],[14,1,14,2],[0,0,10,1],[10,2,10,3],[55,13,55,17],[56,13,56,17],[57,13,57,17],[3,29,3,31],[20,29,20,30],[22,16,22,17],[50,16,50,19],[27,16,30,17],[3,26,3,28],[20,16,20,17],[22,26,22,27],[22,29,22,30],[20,26,20,27],[21,16,21,17],[60,0,65,25],[74,0,83,25],[11,23,59,25],[0,23,3,25],[53,13,53,17],[54,13,54,17],[1,4,1,6],[9,10,9,11],[10,5,10,6],[10,8,10,9],[12,5,12,9],[2,5,2,6],[3,5,3,6],[53,12,57,12],[42,20,43,20],[49,16,49,19]]}
["RAPPEL DONNES",null,null,null,null,null,null,null,null,null,null,null,null,null,null,null,null,null,null,null,null,null,null,"Cliquez sur les cellules pour obtenir des informations complémentaires."]
[null,null,"Circuit / Piste :",null,{"$f":"Accueil!D10","v":0},null,null,"Longueur :",{"$f":"Accueil!I10","v":{"$error":"#N/A"}},"Durée :",{"$f":"Accueil!E12","v":0},{"$f":"Accueil!F12","v":"00:00:00"}]
[null,null,"Pit pneus + refuel complet ",null,null,{"$f":"PIT!S11","v":{"$error":"#DIV/0!"}},null,null,null,null,null,null,{"$f":"L2","v":"00:00:00"},"00:00:30",{"$f":"M3+F8+N3","v":"00:02:40"}]
[null,null,"Infos paramètres\ncourse",null,"Pit pneus : ","Temps cumulé de refuel",null,"Autonomie","Ravitaillement","Fuel départ","Conso.","Usure","Catégorie","Véhicule modèle :"]
[null,null,null,null,{"$f":"PIT!S9","v":10},{"$f":"G5*L11","v":{"$error":"#N/A"}},{"$f":"U26","v":{"$error":"#N/A"}},{"$f":"Accueil!J16","v":0},{"$f":"PIT!S19","v":0},{"$f":"Accueil!J20","v":100},{"$f":"Accueil!I31","v":"X1"},{"$f":"Accueil!F31","v":"X1"},{"$f":"Accueil!D29","v":0},{"$f":"Accueil!F29","v":0}]
[]
[null,null,"Infos pneus ",null,{"$f":"chronos!C10","v":0},"Tps moyen","Monte",null,{"$f":"chronos!C12","v":0},"Tps moyen","Monte",null,{"$f":"chronos!C14","v":0},"Tps moyen","Monte",null,"sans"]
[null,null,"Pic Performance",null,{"$f":"chronos!G10","v":8},{"$f":"chronos!E10","v":"00:02:10"},{"$f":"Accueil!F16","v":"libre"},"Pic P ",{"$f":"chronos!G12","v":12},{"$f":"chronos!E12","v":"00:02:12"},{"$f":"Accueil!F18","v":"libre"},"Pic P ",{"$f":"chronos!G14","v":16},{"$f":"chronos!E14","v":"02,14,0"},{"$f":"Accueil!F20","v":"libre"},null,{"$f":"F8","v":"00:02:10"}]
[]
[null,null,"volume",null,{"$f":"Accueil!K16","v":100},"soit","consommation",{"$f":"'ajust éco'!D9*'Strat 1'!I2","v":{"$error":"#N/A"}},"1 tour",{"$f":"(H10*1)/E10","v":{"$error":"#N/A"}},"Jauge initiale : ",null,{"$f":"Accueil!J20","v":100}]
[null,null,"ENTREE / SORTIE : ",null,{"$f":"PIT!S9-PIT!S7","v":5.5},"démonte/monte pneus :",null,{"$f":"PIT!S7","v":4.5},"Tps remplissage",null,1,{"$f":"PIT!S15","v":{"$error":"#DIV/0!"}},null,null,null,null,null,null,null,null,{"$f":"H5","v":0},{"$f":"I2*H5","v":{"$error":"#N/A"}}]
[]
[null,null,null,null,null,"Au moins un type de gomme obligatoire n'est pas utilisé !"]
[null,null,null,null,null,null,null,null,null,null,null,null,null,null,null,null,null,null,null,"total nbr de tours"]
[null,null,null,null,"Départ",null,"Pit 1",null,"Pit 2",null,"Pit 3",null,"Pit 4",null,"Pit 5",null,null,null,null,{"$f":"R15+P15+N15+L15+J15+H15+F15","v":0}]
[null,"Pertes de temps total : purge pénalité...",null,null,null,{"$f":"VLOOKUP(E23,chronos!$Q$28:'chronos'!$R$30,2,FALSE)","v":8},null,{"$f":"VLOOKUP(G23,chronos!$Q$28:'chronos'!$R$30,2,FALSE)","v":8},null,{"$f":"VLOOKUP(I23,chronos!$Q$28:'chronos'!$R$30,2,FALSE)","v":8},null,{"$f":"VLOOKUP(K23,chronos!$Q$28:'chronos'!$R$30,2,FALSE)","v":8},null,{"$f":"VLOOKUP(M23,chronos!$Q$28:'chronos'!$R$30,2,FALSE)","v":8},null,{"$f":"VLOOKUP(O23,chronos!$Q$28:'chronos'!$R$30,2,FALSE)","v":8},7,{"$f":"Q16*R17","v":0}]
[null,null,"00:00:00",null,null,{"$f":"F15*$I$2","v":{"$error":"#N/A"}},{"$f":"IF(ISERROR(F16<F15)=\"VRAI\",\"\",F16<F15)","v":false},{"$f":"H15*$I$2","v":{"$error":"#N/A"}},{"$f":"IF(ISERROR(H16<H15)=\"VRAI\",\"\",H16<H15)","v":false},{"$f":"J15*$I$2","v":{"$error":"#N/A"}},{"$f":"IF(ISERROR(J16<J15)=\"VRAI\",\"\",J16<J15)","v":false},{"$f":"L15*$I$2","v":{"$error":"#N/A"}},{"$f":"IF(ISERROR(L16<L15)=\"VRAI\",\"\",L16<L15)","v":false},{"$f":"N15*$I$2","v":{"$error":"#N/A"}},{"$f":"IF(ISERROR(N16<N15)=\"VRAI\",\"\",N16<N15)","v":false},{"$f":"P15*$I$2","v":{"$error":"#N/A"}},{"$f":"IF(ISERROR(P16<P15)=\"VRAI\",\"\",P16<P15)","v":false},{"$f":"COUNTIF(G17:Q17,\"VRAI\")","v":0}]
[]
[null,null,null,null,null,{"$f":"F15","v":0},{"$f":"F15*I56","v":{"$error":"#N/A"}},{"$f":"F19+H15","v":0},{"$f":"(I56*H15)+G19","v":{"$error":"#N/A"}},{"$f":"H19+J15","v":0},{"$f":"(J15*I56)+I19","v":{"$error":"#N/A"}},{"$f":"J19+L15","v":0},{"$f":"L15*I56+K19","v":{"$error":"#N/A"}},{"$f":"L19+N15","v":0},{"$f":"(N15*I56)+M19","v":{"$error":"#N/A"}},{"$f":"N19+P15","v":0},{"$f":"P19+R15","v":0},{"$f":"(P15*I56)+O19","v":{"$error":"#N/A"}}]
[]
[null,null,null,null,null,null,{"$f":"F15","v":0},null,{"$f":"H15+F15","v":0},null,{"$f":"J15+H15+F15","v":0},null,{"$f":"L15+J15+H15+F15","v":0},null,{"$f":"N15+L15+J15+H15+F15","v":0},null,"Dépassement nbr de tours"]
[]
[null," Gommes",null,null,null,null,null,null,null,null,null,null,null,null,null,null,"Dépassement durée\ncourse >1 tour"]
[]
[null,null,null,null,{"$f":"M10","v":100},null,{"$f":"G27*100","v":{"$error":"#N/A"}},null,{"$f":"I27*100","v":{"$error":"#N/A"}},null,{"$f":"K27*100","v":{"$error":"#N/A"}},null,{"$f":"M27*100","v":{"$error":"#N/A"}},null,{"$f":"O27*100","v":{"$error":"#N/A"}},null,null,null,null,"refuel en litres","refuel en tours"]
[null,"E42 conso L/km /  F42 besoin",null,null,{"$f":"VLOOKUP(E32,'ajust éco'!$B$9:$G$17,3,FALSE)","v":{"$error":"#N/A"}},{"$f":"(F17*E26)","v":{"$error":"#N/A"}},{"$f":"VLOOKUP(G32,'ajust éco'!$B$9:$G$17,3,FALSE)","v":{"$error":"#N/A"}},{"$f":"(H17*G26)","v":{"$error":"#N/A"}},{"$f":"VLOOKUP(I32,'ajust éco'!$B$9:$G$17,3,FALSE)","v":{"$error":"#N/A"}},{"$f":"(J17*I26)","v":{"$error":"#N/A"}},{"$f":"VLOOKUP(K32,'ajust éco'!$B$9:$G$17,3,FALSE)","v":{"$error":"#N/A"}},{"$f":"(L17*K26)","v":{"$error":"#N/A"}},{"$f":"VLOOKUP(M32,'ajust éco'!$B$9:$G$17,3,FALSE)","v":{"$error":"#N/A"}},{"$f":"(N17*M26)","v":{"$error":"#N/A"}},{"$f":"VLOOKUP(O32,'ajust éco'!$B$9:$G$17,3,FALSE)","v":{"$error":"#N/A"}},{"$f":"(P17*O26)","v":{"$error":"#N/A"}},null,null,null,{"$f":"(F35+H35+J35+L35+N35+P35)-E25","v":{"$error":"#N/A"}},{"$f":"T26/$H$10","v":{"$error":"#N/A"}}]
[null,"niveau ",null,null,{"$f":"E25/100","v":1},{"$f":"(E28*$H$5)/1","v":{"$error":"#N/A"}},{"$f":"MIN(100%,(G30+(E27-E28)))","v":{"$error":"#N/A"}},null,{"$f":"MIN(100%,(I30+(G27-G28)))","v":{"$error":"#N/A"}},null,{"$f":"MIN(100%,(K30+(I27-I28)))","v":{"$error":"#N/A"}},null,{"$f":"MIN(100%,(M30+(K27-K28)))","v":{"$error":"#N/A"}},null,{"$f":"MIN(100%,(O30+(M27-M28)))","v":{"$error":"#N/A"}}]
[null,null,"calcul besoin ",null,{"$f":"(F15*E35)/100","v":{"$error":"#N/A"}},{"$f":"IF(E28>E27,\"T\",\"\")","v":{"$error":"#N/A"}},{"$f":"(SUM(H15*G35/100))","v":{"$error":"#N/A"}},{"$f":"IF(G28>100%,\"T\",\"\")","v":{"$error":"#N/A"}},{"$f":"(SUM(J15*I35/100))","v":{"$error":"#N/A"}},{"$f":"IF(I28>100%,\"T\",\"\")","v":{"$error":"#N/A"}},{"$f":"(SUM(L15*K35/100))","v":{"$error":"#N/A"}},{"$f":"IF(K28>100%,\"T\",\"\")","v":{"$error":"#N/A"}},{"$f":"(SUM(N15*M35/100))","v":{"$error":"#N/A"}},{"$f":"IF(M28>100%,\"T\",\"\")","v":{"$error":"#N/A"}},{"$f":"(SUM(P15*O35/100))","v":{"$error":"#N/A"}},{"$f":"IF(O28>100%,\"T\",\"\")","v":{"$error":"#N/A"}},"Estimation cumul perte de temps conduite éco"]
[null,"complément/jauge "]
[null,null,null,null,null,{"$f":"E25/H10","v":{"$error":"#N/A"}},{"$f":"G28","v":{"$error":"#N/A"}},{"$f":"(G28*$H$5)/1","v":{"$error":"#N/A"}},{"$f":"I28","v":{"$error":"#N/A"}},{"$f":"(I28*$H$5)/1","v":{"$error":"#N/A"}},{"$f":"K28","v":{"$error":"#N/A"}},{"$f":"(K28*$H$5)/1","v":{"$error":"#N/A"}},{"$f":"M28","v":{"$error":"#N/A"}},{"$f":"(M28*$H$5)/1","v":{"$error":"#N/A"}},{"$f":"O28","v":{"$error":"#N/A"}},{"$f":"(O28*$H$5)/1","v":{"$error":"#N/A"}}]
[]
[null,"Eco fuel ",null,null,0,null,0,null,0,null,0,null,0,null,0,null,{"$f":"U38","v":"00:00:00"},null,null,null,null,null,""]
[]
[]
[null,null,"conso L/tour avec éco",null,{"$f":"E26*$I$2","v":{"$error":"#N/A"}},{"$f":"E35*F15","v":{"$error":"#N/A"}},{"$f":"G26*$I$2","v":{"$error":"#N/A"}},{"$f":"G35*H15","v":{"$error":"#N/A"}},{"$f":"I26*$I$2","v":{"$error":"#N/A"}},{"$f":"I35*J15","v":{"$error":"#N/A"}},{"$f":"K26*$I$2","v":{"$error":"#N/A"}},{"$f":"K35*L15","v":{"$error":"#N/A"}},{"$f":"M26*$I$2","v":{"$error":"#N/A"}},{"$f":"M35*N15","v":{"$error":"#N/A"}},{"$f":"O26*$I$2","v":{"$error":"#N/A"}},{"$f":"O35*P15","v":{"$error":"#N/A"}},null,null,null,{"$f":"E7","v":0},{"$f":"F8","v":"00:02:10"}]
[null,null,"calcul perte temps",null,{"$f":"VLOOKUP(E32,'ajust éco'!$B$9:$L$17,11,\"faux\")","v":0},null,{"$f":"VLOOKUP(G32,'ajust éco'!$B$9:$L$17,11,\"faux\")","v":0},null,{"$f":"VLOOKUP(I32,'ajust éco'!$B$9:$L$17,11,\"faux\")","v":0},null,{"$f":"VLOOKUP(K32,'ajust éco'!$B$9:$L$17,11,\"faux\")","v":0},null,{"$f":"VLOOKUP(M32,'ajust éco'!$B$9:$L$17,11,\"faux\")","v":0},null,{"$f":"VLOOKUP(O32,'ajust éco'!$B$9:$L$17,11,\"faux\")","v":0},null,null,null,null,{"$f":"I7","v":0},{"$f":"J8","v":"00:02:12"}]
[null,null,null,null,{"$f":"E25/E35","v":{"$error":"#N/A"}},null,{"$f":"G25/G35","v":{"$error":"#N/A"}},null,{"$f":"I25/I35","v":{"$error":"#N/A"}},null,{"$f":"K25/K35","v":{"$error":"#N/A"}},null,{"$f":"M25/M35","v":{"$error":"#N/A"}},null,{"$f":"O25/O35","v":{"$error":"#N/A"}},null,null,null,null,{"$f":"M7","v":0},{"$f":"N8","v":"02,14,0"}]
[null,null,"Calcul augmentation tps/tour en fonction de la conduite éco",null,{"$f":"E36*F15","v":0},null,{"$f":"G36*H15","v":0},null,{"$f":"I36*J15","v":0},null,{"$f":"K36*L15","v":0},null,{"$f":"M36*N15","v":0},null,{"$f":"O36*P15","v":0},null,"nbr tours /type pneus","chronos",null,"tps total / type pneu",{"$f":"V38/86400","v":"00:00:00"},{"$f":"E38+G38+I38+K38+M38+O38","v":0}]
[null,null,"S soft",null,{"$f":"SUMIF(E23,\"S soft\",F15)","v":0},null,{"$f":"SUMIF(G23,\"S soft\",H15)","v":0},{"$f":"IF(G39>0,1,0)","v":0},{"$f":"SUMIF(I23,\"S soft\",J15)","v":0},{"$f":"IF(I39>0,1,0)","v":0},{"$f":"SUMIF(K23,\"S soft\",L15)","v":0},{"$f":"IF(K39>0,1,0)","v":0},{"$f":"SUMIF(M23,\"S soft\",N15)","v":0},{"$f":"IF(M39>0,1,0)","v":0},{"$f":"SUMIF(O23,\"S soft\",P15)","v":0},{"$f":"IF(O39>0,1,0)","v":0},{"$f":"E39+G39+I39+K39+M39+O39","v":0},{"$f":"VLOOKUP(C39,$T$35:$U$37,2,FALSE)","v":{"$error":"#N/A"}},null,{"$f":"IFERROR((Q39)*R39,0)","v":0}]
[null,null,"soft",null,{"$f":"SUMIF(E23,\"soft\",F15)","v":0},null,{"$f":"SUMIF(G23,\"soft\",H15)","v":0},{"$f":"IF(G40>0,1,0)","v":0},{"$f":"SUMIF(I23,\"soft\",J15)","v":0},{"$f":"IF(I40>0,1,0)","v":0},{"$f":"SUMIF(K23,\"soft\",L15)","v":0},{"$f":"IF(K40>0,1,0)","v":0},{"$f":"SUMIF(M23,\"soft\",N15)","v":0},{"$f":"IF(M40>0,1,0)","v":0},{"$f":"SUMIF(O23,\"soft\",P15)","v":0},{"$f":"IF(O40>0,1,0)","v":0},0,{"$f":"VLOOKUP(C40,$T$35:$U$37,2,FALSE)","v":{"$error":"#N/A"}},null,{"$f":"IFERROR((Q40)*R40,0)","v":0}]
[null,null,"médium",null,{"$f":"SUMIF(E23,\"médium\",F15)","v":0},null,{"$f":"SUMIF(G23,\"médium\",H15)","v":0},{"$f":"IF(G41>0,1,0)","v":0},{"$f":"SUMIF(I23,\"médium\",J15)","v":0},{"$f":"IF(I41>0,1,0)","v":0},{"$f":"SUMIF(K23,\"médium\",L15)","v":0},{"$f":"IF(K41>0,1,0)","v":0},{"$f":"SUMIF(M23,\"médium\",N15)","v":0},{"$f":"IF(M41>0,1,0)","v":0},{"$f":"SUMIF(O23,\"médium\",P15)","v":0},{"$f":"IF(O41>0,1,0)","v":0},0,{"$f":"VLOOKUP(C41,$T$35:$U$37,2,FALSE)","v":{"$error":"#N/A"}},null,{"$f":"IFERROR((Q41)*R41,0)","v":0}]
[null,null,"hard",null,{"$f":"SUMIF(E23,\"hard\",F15)","v":0},null,{"$f":"SUMIF(G23,\"hard\",H15)","v":0},{"$f":"IF(G42>0,1,0)","v":0},{"$f":"SUMIF(I23,\"hard\",J15)","v":0},{"$f":"IF(I42>0,1,0)","v":0},{"$f":"SUMIF(K23,\"hard\",L15)","v":0},{"$f":"IF(K42>0,1,0)","v":0},{"$f":"SUMIF(M23,\"hard\",N15)","v":0},{"$f":"IF(M42>0,1,0)","v":0},{"$f":"SUMIF(O23,\"hard\",P15)","v":0},{"$f":"IF(O42>0,1,0)","v":0},0,{"$f":"VLOOKUP(C42,$T$35:$U$37,2,FALSE)","v":{"$error":"#N/A"}},null,{"$f":"IFERROR(Q42*R42,0)","v":0}]
[null,null,"(sans) change de pneus",null,{"$f":"SUMIF(E23,\"sans\",F15)","v":0},null,{"$f":"SUMIF(G23,\"sans\",H15)","v":0},null,{"$f":"SUMIF(I23,\"sans\",J15)","v":0},null,{"$f":"SUMIF(K23,\"sans\",L15)","v":0},null,{"$f":"SUMIF(M23,\"sans\",N15)","v":0},null,{"$f":"SUMIF(O23,\"sans\",P15)","v":0},null,0,{"$f":"Q8","v":1.5046296296296294E-3},null,{"$f":"IFERROR(Q43*R43,0)","v":0},"cumul pertes de temps"]
[null,null,"inter",null,{"$f":"SUMIF(E23,\"inter\",F15)","v":0},null,{"$f":"SUMIF(G23,\"inter\",H15)","v":0},{"$f":"IF(G44>0,1,0)","v":0},{"$f":"SUMIF(I23,\"inter\",J15)","v":0},{"$f":"IF(I44>0,1,0)","v":0},{"$f":"SUMIF(K23,\"inter\",L15)","v":0},{"$f":"IF(K44>0,1,0)","v":0},{"$f":"SUMIF(M23,\"inter\",N15)","v":0},{"$f":"IF(M44>0,1,0)","v":0},{"$f":"SUMIF(O23,\"inter\",P15)","v":0},{"$f":"IF(O44>0,1,0)","v":0},0,{"$f":"VLOOKUP(C44,$T$35:$U$37,2,FALSE)","v":{"$error":"#N/A"}},null,{"$f":"IFERROR(Q44*R44,0)","v":0}]
[null,null,"pluie",null,{"$f":"SUMIF(E23,\"pluie\",F15)","v":0},null,{"$f":"SUMIF(G23,\"pluie\",H15)","v":0},{"$f":"IF(G45>0,1,0)","v":0},{"$f":"SUMIF(I23,\"pluie\",J15)","v":0},{"$f":"IF(I45>0,1,0)","v":0},{"$f":"SUMIF(K23,\"pluie\",L15)","v":0},{"$f":"IF(K45>0,1,0)","v":0},{"$f":"SUMIF(M23,\"pluie\",N15)","v":0},{"$f":"IF(M45>0,1,0)","v":0},{"$f":"SUMIF(O23,\"pluie\",P15)","v":0},{"$f":"IF(O45>0,1,0)","v":0},0,{"$f":"VLOOKUP(C45,$T$35:$U$37,2,FALSE)","v":{"$error":"#N/A"}},null,{"$f":"IFERROR(Q45*R45,0)","v":0},{"$f":"U51+V38+C17","v":{"$error":"#N/A"}},{"$f":"U45/86400","v":{"$error":"#N/A"}}]
[null,null,"Nbr de changements de pneu",null,null,null,null,{"$f":"SUM(H39:H45)","v":0},null,{"$f":"SUM(J39:J45)","v":0},null,{"$f":"SUM(L39:L45)","v":0},null,{"$f":"SUM(N39:N45)","v":0},null,{"$f":"SUM(P39:P45)","v":0},{"$f":"P46+N46+L46+J46+H46+F46","v":0},null,null,{"$f":"SUM(T39:T45)","v":0},{"$f":"U45/G54","v":{"$error":"#N/A"}},{"$f":"U46/86400","v":{"$error":"#N/A"}}]
[null,null,"Nbr de refuel",null,null,{"$f":"IF(H26>0,1,0)","v":{"$error":"#N/A"}},null,{"$f":"IF(J26>0,1,0)","v":{"$error":"#N/A"}},null,{"$f":"IF(L26>0,1,0)","v":{"$error":"#N/A"}},null,{"$f":"IF(N26>0,1,0)","v":{"$error":"#N/A"}},null,{"$f":"IF(P26>0,1,0)","v":{"$error":"#N/A"}},null,{"$f":"IF(Q26>0,1,0)","v":0},{"$f":"P47+N47+L47+J47+H47+F47","v":{"$error":"#N/A"}}]
[null,null,null,null,null,null,null,null,null,null,null,null,null,null,null,null,null,null,null,"tps échange pneu :",{"$f":"Q46*H11","v":0},{"$f":"U48/86400","v":"00:00:00"}]
[null,null,null,null,null,null,null,null,null,null,null,null,null,null,null,null,null,null,null,"tps refuel :",{"$f":"$U$26*$L$11","v":{"$error":"#N/A"}},{"$error":"#N/A"}]
[null,null,null,null,null,null,null,null,null,null,null,null,null,null,null,null,"somme max refuel ou échange pneus :",null,null,null,{"$f":"MAX(Q46:Q47)","v":{"$error":"#N/A"}},{"$f":"E11/86400","v":"00:00:05.500"}]
[null,null,null,null,null,null,null,null,null,null,null,null,null,null,null,null,"Temps total arrêt au stand : ",null,null,null,{"$f":"(U50*E11)+U48+U49","v":{"$error":"#N/A"}},{"$f":"U51/86400","v":{"$error":"#N/A"}}]
[]
[null,"Récapitulatif stratégie 1"]
[null,null,null,null,null,null,{"$f":"T15","v":0},"en",{"$f":"G54*I56","v":{"$error":"#N/A"}},"Distance totale : ",null,{"$f":"G54*I2","v":{"$error":"#N/A"}},"annotations libres"]
[]
[null,"Nombre de pits :",null,null,{"$f":"U50","v":{"$error":"#N/A"}},"Tps moyen / tour avec pits :",null,null,{"$f":"(T46+V45)/T15","v":{"$error":"#N/A"}},"Vitesse moyenne : ",null,{"$f":"comparateur!R15","v":{"$error":"#N/A"}}]
[]
[null,"Cumul tps pit(s) :",null,null,{"$f":"V51","v":{"$error":"#N/A"}},"Consommation moyenne :",null,null,{"$f":"I10","v":"1 tour"},{"$f":"J10","v":{"$error":"#N/A"}}]
[]
[]
[]
[]
[]
[]
[]
[]
[]
[]
[null,null,"Utilisation",null,{"$f":"E7","v":0},{"$f":"I7","v":0},{"$f":"M7","v":0}]
[null,null,null,null,{"$f":"G8","v":"libre"},{"$f":"K8","v":"libre"},{"$f":"O8","v":"libre"}]
[null,null,"Obligatoire(s)",null,{"$f":"IF(E70=\"obligatoire\",E69,\"libre\")","v":"libre"},{"$f":"IF(F70=\"obligatoire\",F69,\"libre\")","v":"libre"},{"$f":"IF(G70=\"obligatoire\",G69,\"libre\")","v":"libre"}]
[null,null,null,null,null,null,null,null,null,null,null,null,null,null,null,false]
[null,null,"Utilisés",null,{"$f":"E23","v":0},{"$f":"G23","v":0},{"$f":"I23","v":0},{"$f":"K23","v":0},{"$f":"M23","v":0},{"$f":"O23","v":0},"libre",{"$f":"ISNUMBER(MATCH(E71,$E$73:$K$73,0))","v":true},{"$f":"ISNUMBER(MATCH(F71,$E$73:$K$73,0))","v":true},true,null,{"$f":"COUNTIF(L73:N73,\"FAUX\")","v":0}]

{"sheet":"Strat 2","index":2,"n_rows":73,"n_cols":24,"rows_kept":73,"cut":false,"hidden":false,"merged":[[26,1,26,2],[3,26,3,28],[3,29,3,31],[4,13,4,16],[9,10,9,11],[10,2,10,3],[10,5,10,6],[10,8,10,9],[0,0,10,1],[0,23,3,25],[1,4,1,6],[2,2,2,4],[2,5,2,6],[3,2,4,2],[3,5,3,6],[3,13,3,16],[50,16,50,19],[20,26,20,27],[20,29,20,30],[22,1,22,2],[22,16,22,17],[22,26,22,27],[22,29,22,30],[11,23,59,25],[12,5,12,9],[14,1,14,2],[15,1,15,2],[18,1,18,2],[20,1,20,2],[20,16,20,17],[24,1,24,2],[25,1,25,2],[27,16,30,17],[28,1,29,2],[31,1,32,2],[42,20,43,20],[49,16,49,19],[60,0,65,25],[74,0,83,25],[52,1,53,5],[53,9,53,10],[53,12,57,12],[53,13,53,17],[54,13,54,17],[55,1,55,2],[55,5,55,7],[55,9,55,10],[55,13,55,17],[56,13,56,17],[57,1,57,2],[57,5,57,7],[57,13,57,17]]}
["RAPPEL DONNES",null,null,null,null,null,null,null,null,null,null,null,null,null,null,null,null,null,null,null,null,null,null,"Cliquez sur les cellules pour obtenir des informations complémentaires."]
[null,null,"Circuit / Piste :",null,{"$f":"Accueil!D10","v":0},null,null,"Longueur :",{"$f":"Accueil!I10","v":{"$error":"#N/A"}},"Durée :",{"$f":"Accueil!E12","v":0},{"$f":"Accueil!F12","v":"00:00:00"}]
[null,null,"Pit pneus + refuel complet ",null,null,{"$f":"PIT!S11","v":{"$error":"#DIV/0!"}},null,null,null,null,null,null,{"$f":"L2","v":"00:00:00"},"00:00:30",{"$f":"M3+F8+N3","v":"00:02:40"}]
[null,null,"Infos paramètres\ncourse",null,"Pit pneus : ","Temps cumulé de refuel",null,"Autonomie","Ravitaillement","Fuel départ","Conso.","Usure","Catégorie","Véhicule modèle :"]
[null,null,null,null,{"$f":"PIT!S9","v":10},{"$f":"G5*L11","v":{"$error":"#N/A"}},{"$f":"U26","v":{"$error":"#N/A"}},{"$f":"Accueil!J16","v":0},{"$f":"PIT!S19","v":0},{"$f":"Accueil!J20","v":100},{"$f":"Accueil!I31","v":"X1"},{"$f":"Accueil!F31","v":"X1"},{"$f":"Accueil!D29","v":0},{"$f":"Accueil!F29","v":0}]
[]
[null,null,"Infos pneus ",null,{"$f":"chronos!C10","v":0},"Tps moyen","Monte",null,{"$f":"chronos!C12","v":0},"Tps moyen","Monte",null,{"$f":"chronos!C14","v":0},"Tps moyen","Monte",null,"sans"]
[null,null,"Pic Performance",null,{"$f":"chronos!G10","v":8},{"$f":"chronos!E10","v":"00:02:10"},{"$f":"Accueil!F16","v":"libre"},"Pic P ",{"$f":"chronos!G12","v":12},{"$f":"chronos!E12","v":"00:02:12"},{"$f":"Accueil!F18","v":"libre"},"Pic P ",{"$f":"chronos!G14","v":16},{"$f":"chronos!E14","v":"02,14,0"},{"$f":"Accueil!F20","v":"libre"},null,{"$f":"F8","v":"00:02:10"}]
[]
[null,null,"volume",null,{"$f":"Accueil!K16","v":100},"soit","consommation",{"$f":"'ajust éco'!D9*'Strat 2'!I2","v":{"$error":"#N/A"}},"1 tour",{"$f":"(H10*1)/E10","v":{"$error":"#N/A"}},"Jauge initiale : ",null,{"$f":"Accueil!J20","v":100}]
[null,null,"ENTREE / SORTIE : ",null,{"$f":"PIT!S9-PIT!S7","v":5.5},"démonte/monte pneus :",null,{"$f":"PIT!S7","v":4.5},"Tps remplissage",null,1,{"$f":"PIT!S15","v":{"$error":"#DIV/0!"}},null,null,null,null,null,null,null,null,{"$f":"H5","v":0},{"$f":"I2*H5","v":{"$error":"#N/A"}}]
[]
[null,null,null,null,null,"Au moins un type de gomme obligatoire n'est pas utilisé !"]
[null,null,null,null,null,null,null,null,null,null,null,null,null,null,null,null,null,null,null,"total nbr de tours"]
[null,null,null,null,"Départ",null,"Pit 1",null,"Pit 2",null,"Pit 3",null,"Pit 4",null,"Pit 5",null,null,null,null,{"$f":"R15+P15+N15+L15+J15+H15+F15","v":0}]
[null,"Pertes de temps total : purge pénalité...",null,null,null,{"$f":"VLOOKUP(E23,chronos!$Q$28:'chronos'!$R$30,2,FALSE)","v":8},null,{"$f":"VLOOKUP(G23,chronos!$Q$28:'chronos'!$R$30,2,FALSE)","v":8},null,{"$f":"VLOOKUP(I23,chronos!$Q$28:'chronos'!$R$30,2,FALSE)","v":8},null,{"$f":"VLOOKUP(K23,chronos!$Q$28:'chronos'!$R$30,2,FALSE)","v":8},null,{"$f":"VLOOKUP(M23,chronos!$Q$28:'chronos'!$R$30,2,FALSE)","v":8},null,{"$f":"VLOOKUP(O23,chronos!$Q$28:'chronos'!$R$30,2,FALSE)","v":8},7,{"$f":"Q16*R17","v":0}]
[null,null,"00:00:00",null,null,{"$f":"F15*$I$2","v":{"$error":"#N/A"}},{"$f":"IF(ISERROR(F16<F15)=\"VRAI\",\"\",F16<F15)","v":false},{"$f":"H15*$I$2","v":{"$error":"#N/A"}},{"$f":"IF(ISERROR(H16<H15)=\"VRAI\",\"\",H16<H15)","v":false},{"$f":"J15*$I$2","v":{"$error":"#N/A"}},{"$f":"IF(ISERROR(J16<J15)=\"VRAI\",\"\",J16<J15)","v":false},{"$f":"L15*$I$2","v":{"$error":"#N/A"}},{"$f":"IF(ISERROR(L16<L15)=\"VRAI\",\"\",L16<L15)","v":false},{"$f":"N15*$I$2","v":{"$error":"#N/A"}},{"$f":"IF(ISERROR(N16<N15)=\"VRAI\",\"\",N16<N15)","v":false},{"$f":"P15*$I$2","v":{"$error":"#N/A"}},{"$f":"IF(ISERROR(P16<P15)=\"VRAI\",\"\",P16<P15)","v":false},{"$f":"COUNTIF(G17:Q17,\"VRAI\")","v":0}]
[]
[null,null,null,null,null,{"$f":"F15","v":0},{"$f":"F15*I56","v":{"$error":"#N/A"}},{"$f":"F19+H15","v":0},{"$f":"(I56*H15)+G19","v":{"$error":"#N/A"}},{"$f":"H19+J15","v":0},{"$f":"(J15*I56)+I19","v":{"$error":"#N/A"}},{"$f":"J19+L15","v":0},{"$f":"L15*I56+K19","v":{"$error":"#N/A"}},{"$f":"L19+N15","v":0},{"$f":"(N15*I56)+M19","v":{"$error":"#N/A"}},{"$f":"N19+P15","v":0},{"$f":"P19+R15","v":0},{"$f":"(P15*I56)+O19","v":{"$error":"#N/A"}}]
[]
[null,null,null,null,null,null,{"$f":"F15","v":0},null,{"$f":"H15+F15","v":0},null,{"$f":"J15+H15+F15","v":0},null,{"$f":"L15+J15+H15+F15","v":0},null,{"$f":"N15+L15+J15+H15+F15","v":0},null,"Dépassement nbr de tours"]
[]
[null," Gommes",null,null,null,null,null,null,null,null,null,null,null,null,null,null,"Dépassement durée\ncourse >1 tour"]
[]
[null,null,null,null,{"$f":"M10","v":100},null,{"$f":"G27*100","v":{"$error":"#N/A"}},null,{"$f":"I27*100","v":{"$error":"#N/A"}},null,{"$f":"K27*100","v":{"$error":"#N/A"}},null,{"$f":"M27*100","v":{"$error":"#N/A"}},null,{"$f":"O27*100","v":{"$error":"#N/A"}},null,null,null,null,"refuel en litres","refuel en tours"]
[null,"E42 conso L/km /  F42 besoin",null,null,{"$f":"VLOOKUP(E32,'ajust éco'!$B$9:$G$17,3,FALSE)","v":{"$error":"#N/A"}},{"$f":"(F17*E26)","v":{"$error":"#N/A"}},{"$f":"VLOOKUP(G32,'ajust éco'!$B$9:$G$17,3,FALSE)","v":{"$error":"#N/A"}},{"$f":"(H17*G26)","v":{"$error":"#N/A"}},{"$f":"VLOOKUP(I32,'ajust éco'!$B$9:$G$17,3,FALSE)","v":{"$error":"#N/A"}},{"$f":"(J17*I26)","v":{"$error":"#N/A"}},{"$f":"VLOOKUP(K32,'ajust éco'!$B$9:$G$17,3,FALSE)","v":{"$error":"#N/A"}},{"$f":"(L17*K26)","v":{"$error":"#N/A"}},{"$f":"VLOOKUP(M32,'ajust éco'!$B$9:$G$17,3,FALSE)","v":{"$error":"#N/A"}},{"$f":"(N17*M26)","v":{"$error":"#N/A"}},{"$f":"VLOOKUP(O32,'ajust éco'!$B$9:$G$17,3,FALSE)","v":{"$error":"#N/A"}},{"$f":"(P17*O26)","v":{"$error":"#N/A"}},null,null,null,{"$f":"(F35+H35+J35+L35+N35+P35)-E25","v":{"$error":"#N/A"}},{"$f":"T26/$H$10","v":{"$error":"#N/A"}}]
[null,"niveau ",null,null,{"$f":"E25/100","v":1},{"$f":"(E28*$H$5)/1","v":{"$error":"#N/A"}},{"$f":"MIN(100%,(G30+(E27-E28)))","v":{"$error":"#N/A"}},null,{"$f":"MIN(100%,(I30+(G27-G28)))","v":{"$error":"#N/A"}},null,{"$f":"MIN(100%,(K30+(I27-I28)))","v":{"$error":"#N/A"}},null,{"$f":"MIN(100%,(M30+(K27-K28)))","v":{"$error":"#N/A"}},null,{"$f":"MIN(100%,(O30+(M27-M28)))","v":{"$error":"#N/A"}}]
[null,null,"calcul besoin ",null,{"$f":"(F15*E35)/100","v":{"$error":"#N/A"}},{"$f":"IF(E28>E27,\"T\",\"\")","v":{"$error":"#N/A"}},{"$f":"(SUM(H15*G35/100))","v":{"$error":"#N/A"}},{"$f":"IF(G28>100%,\"T\",\"\")","v":{"$error":"#N/A"}},{"$f":"(SUM(J15*I35/100))","v":{"$error":"#N/A"}},{"$f":"IF(I28>100%,\"T\",\"\")","v":{"$error":"#N/A"}},{"$f":"(SUM(L15*K35/100))","v":{"$error":"#N/A"}},{"$f":"IF(K28>100%,\"T\",\"\")","v":{"$error":"#N/A"}},{"$f":"(SUM(N15*M35/100))","v":{"$error":"#N/A"}},{"$f":"IF(M28>100%,\"T\",\"\")","v":{"$error":"#N/A"}},{"$f":"(SUM(P15*O35/100))","v":{"$error":"#N/A"}},{"$f":"IF(O28>100%,\"T\",\"\")","v":{"$error":"#N/A"}},"Estimation cumul perte de temps conduite éco"]
[null,"complément/jauge "]
[null,null,null,null,null,{"$f":"E25/H10","v":{"$error":"#N/A"}},{"$f":"G28","v":{"$error":"#N/A"}},{"$f":"(G28*$H$5)/1","v":{"$error":"#N/A"}},{"$f":"I28","v":{"$error":"#N/A"}},{"$f":"(I28*$H$5)/1","v":{"$error":"#N/A"}},{"$f":"K28","v":{"$error":"#N/A"}},{"$f":"(K28*$H$5)/1","v":{"$error":"#N/A"}},{"$f":"M28","v":{"$error":"#N/A"}},{"$f":"(M28*$H$5)/1","v":{"$error":"#N/A"}},{"$f":"O28","v":{"$error":"#N/A"}},{"$f":"(O28*$H$5)/1","v":{"$error":"#N/A"}}]
[]
[null,"Eco fuel ",null,null,0,null,0,null,0,null,0,null,0,null,0,null,{"$f":"U38","v":"00:00:00"},null,null,null,null,null,""]
[]
[]
[null,null,"conso L/tour avec éco",null,{"$f":"E26*$I$2","v":{"$error":"#N/A"}},{"$f":"E35*F15","v":{"$error":"#N/A"}},{"$f":"G26*$I$2","v":{"$error":"#N/A"}},{"$f":"G35*H15","v":{"$error":"#N/A"}},{"$f":"I26*$I$2","v":{"$error":"#N/A"}},{"$f":"I35*J15","v":{"$error":"#N/A"}},{"$f":"K26*$I$2","v":{"$error":"#N/A"}},{"$f":"K35*L15","v":{"$error":"#N/A"}},{"$f":"M26*$I$2","v":{"$error":"#N/A"}},{"$f":"M35*N15","v":{"$error":"#N/A"}},{"$f":"O26*$I$2","v":{"$error":"#N/A"}},{"$f":"O35*P15","v":{"$error":"#N/A"}},null,null,null,{"$f":"E7","v":0},{"$f":"F8","v":"00:02:10"}]
[null,null,"calcul perte temps",null,{"$f":"VLOOKUP(E32,'ajust éco'!$B$9:$L$17,11,\"faux\")","v":0},null,{"$f":"VLOOKUP(G32,'ajust éco'!$B$9:$L$17,11,\"faux\")","v":0},null,{"$f":"VLOOKUP(I32,'ajust éco'!$B$9:$L$17,11,\"faux\")","v":0},null,{"$f":"VLOOKUP(K32,'ajust éco'!$B$9:$L$17,11,\"faux\")","v":0},null,{"$f":"VLOOKUP(M32,'ajust éco'!$B$9:$L$17,11,\"faux\")","v":0},null,{"$f":"VLOOKUP(O32,'ajust éco'!$B$9:$L$17,11,\"faux\")","v":0},null,null,null,null,{"$f":"I7","v":0},{"$f":"J8","v":"00:02:12"}]
[null,null,null,null,{"$f":"E25/E35","v":{"$error":"#N/A"}},null,{"$f":"G25/G35","v":{"$error":"#N/A"}},null,{"$f":"I25/I35","v":{"$error":"#N/A"}},null,{"$f":"K25/K35","v":{"$error":"#N/A"}},null,{"$f":"M25/M35","v":{"$error":"#N/A"}},null,{"$f":"O25/O35","v":{"$error":"#N/A"}},null,null,null,null,{"$f":"M7","v":0},{"$f":"N8","v":"02,14,0"}]
[null,null,"Calcul augmentation tps/tour en fonction de la conduite éco",null,{"$f":"E36*F15","v":0},null,{"$f":"G36*H15","v":0},null,{"$f":"I36*J15","v":0},null,{"$f":"K36*L15","v":0},null,{"$f":"M36*N15","v":0},null,{"$f":"O36*P15","v":0},null,"nbr tours /type pneus","chronos",null,"tps total / type pneu",{"$f":"V38/86400","v":"00:00:00"},{"$f":"E38+G38+I38+K38+M38+O38","v":0}]
[null,null,"S soft",null,{"$f":"SUMIF(E23,\"S soft\",F15)","v":0},null,{"$f":"SUMIF(G23,\"S soft\",H15)","v":0},{"$f":"IF(G39>0,1,0)","v":0},{"$f":"SUMIF(I23,\"S soft\",J15)","v":0},{"$f":"IF(I39>0,1,0)","v":0},{"$f":"SUMIF(K23,\"S soft\",L15)","v":0},{"$f":"IF(K39>0,1,0)","v":0},{"$f":"SUMIF(M23,\"S soft\",N15)","v":0},{"$f":"IF(M39>0,1,0)","v":0},{"$f":"SUMIF(O23,\"S soft\",P15)","v":0},{"$f":"IF(O39>0,1,0)","v":0},{"$f":"E39+G39+I39+K39+M39+O39","v":0},{"$f":"VLOOKUP(C39,$T$35:$U$37,2,FALSE)","v":{"$error":"#N/A"}},null,{"$f":"IFERROR((Q39)*R39,0)","v":0}]
[null,null,"soft",null,{"$f":"SUMIF(E23,\"soft\",F15)","v":0},null,{"$f":"SUMIF(G23,\"soft\",H15)","v":0},{"$f":"IF(G40>0,1,0)","v":0},{"$f":"SUMIF(I23,\"soft\",J15)","v":0},{"$f":"IF(I40>0,1,0)","v":0},{"$f":"SUMIF(K23,\"soft\",L15)","v":0},{"$f":"IF(K40>0,1,0)","v":0},{"$f":"SUMIF(M23,\"soft\",N15)","v":0},{"$f":"IF(M40>0,1,0)","v":0},{"$f":"SUMIF(O23,\"soft\",P15)","v":0},{"$f":"IF(O40>0,1,0)","v":0},0,{"$f":"VLOOKUP(C40,$T$35:$U$37,2,FALSE)","v":{"$error":"#N/A"}},null,{"$f":"IFERROR((Q40)*R40,0)","v":0}]
[null,null,"médium",null,{"$f":"SUMIF(E23,\"médium\",F15)","v":0},null,{"$f":"SUMIF(G23,\"médium\",H15)","v":0},{"$f":"IF(G41>0,1,0)","v":0},{"$f":"SUMIF(I23,\"médium\",J15)","v":0},{"$f":"IF(I41>0,1,0)","v":0},{"$f":"SUMIF(K23,\"médium\",L15)","v":0},{"$f":"IF(K41>0,1,0)","v":0},{"$f":"SUMIF(M23,\"médium\",N15)","v":0},{"$f":"IF(M41>0,1,0)","v":0},{"$f":"SUMIF(O23,\"médium\",P15)","v":0},{"$f":"IF(O41>0,1,0)","v":0},0,{"$f":"VLOOKUP(C41,$T$35:$U$37,2,FALSE)","v":{"$error":"#N/A"}},null,{"$f":"IFERROR((Q41)*R41,0)","v":0}]
[null,null,"hard",null,{"$f":"SUMIF(E23,\"hard\",F15)","v":0},null,{"$f":"SUMIF(G23,\"hard\",H15)","v":0},{"$f":"IF(G42>0,1,0)","v":0},{"$f":"SUMIF(I23,\"hard\",J15)","v":0},{"$f":"IF(I42>0,1,0)","v":0},{"$f":"SUMIF(K23,\"hard\",L15)","v":0},{"$f":"IF(K42>0,1,0)","v":0},{"$f":"SUMIF(M23,\"hard\",N15)","v":0},{"$f":"IF(M42>0,1,0)","v":0},{"$f":"SUMIF(O23,\"hard\",P15)","v":0},{"$f":"IF(O42>0,1,0)","v":0},0,{"$f":"VLOOKUP(C42,$T$35:$U$37,2,FALSE)","v":{"$error":"#N/A"}},null,{"$f":"IFERROR(Q42*R42,0)","v":0}]
[null,null,"(sans) change de pneus",null,{"$f":"SUMIF(E23,\"sans\",F15)","v":0},null,{"$f":"SUMIF(G23,\"sans\",H15)","v":0},null,{"$f":"SUMIF(I23,\"sans\",J15)","v":0},null,{"$f":"SUMIF(K23,\"sans\",L15)","v":0},null,{"$f":"SUMIF(M23,\"sans\",N15)","v":0},null,{"$f":"SUMIF(O23,\"sans\",P15)","v":0},null,0,{"$f":"Q8","v":1.5046296296296294E-3},null,{"$f":"IFERROR(Q43*R43,0)","v":0},"cumul pertes de temps"]
[null,null,"inter",null,{"$f":"SUMIF(E23,\"inter\",F15)","v":0},null,{"$f":"SUMIF(G23,\"inter\",H15)","v":0},{"$f":"IF(G44>0,1,0)","v":0},{"$f":"SUMIF(I23,\"inter\",J15)","v":0},{"$f":"IF(I44>0,1,0)","v":0},{"$f":"SUMIF(K23,\"inter\",L15)","v":0},{"$f":"IF(K44>0,1,0)","v":0},{"$f":"SUMIF(M23,\"inter\",N15)","v":0},{"$f":"IF(M44>0,1,0)","v":0},{"$f":"SUMIF(O23,\"inter\",P15)","v":0},{"$f":"IF(O44>0,1,0)","v":0},0,{"$f":"VLOOKUP(C44,$T$35:$U$37,2,FALSE)","v":{"$error":"#N/A"}},null,{"$f":"IFERROR(Q44*R44,0)","v":0}]
[null,null,"pluie",null,{"$f":"SUMIF(E23,\"pluie\",F15)","v":0},null,{"$f":"SUMIF(G23,\"pluie\",H15)","v":0},{"$f":"IF(G45>0,1,0)","v":0},{"$f":"SUMIF(I23,\"pluie\",J15)","v":0},{"$f":"IF(I45>0,1,0)","v":0},{"$f":"SUMIF(K23,\"pluie\",L15)","v":0},{"$f":"IF(K45>0,1,0)","v":0},{"$f":"SUMIF(M23,\"pluie\",N15)","v":0},{"$f":"IF(M45>0,1,0)","v":0},{"$f":"SUMIF(O23,\"pluie\",P15)","v":0},{"$f":"IF(O45>0,1,0)","v":0},0,{"$f":"VLOOKUP(C45,$T$35:$U$37,2,FALSE)","v":{"$error":"#N/A"}},null,{"$f":"IFERROR(Q45*R45,0)","v":0},{"$f":"U51+V38+C17","v":{"$error":"#N/A"}},{"$f":"U45/86400","v":{"$error":"#N/A"}}]
[null,null,"Nbr de changements de pneu",null,null,null,null,{"$f":"SUM(H39:H45)","v":0},null,{"$f":"SUM(J39:J45)","v":0},null,{"$f":"SUM(L39:L45)","v":0},null,{"$f":"SUM(N39:N45)","v":0},null,{"$f":"SUM(P39:P45)","v":0},{"$f":"P46+N46+L46+J46+H46+F46","v":0},null,null,{"$f":"SUM(T39:T45)","v":0},{"$f":"U45/G54","v":{"$error":"#N/A"}},{"$f":"U46/86400","v":{"$error":"#N/A"}}]
[null,null,"Nbr de refuel",null,null,{"$f":"IF(H26>0,1,0)","v":{"$error":"#N/A"}},null,{"$f":"IF(J26>0,1,0)","v":{"$error":"#N/A"}},null,{"$f":"IF(L26>0,1,0)","v":{"$error":"#N/A"}},null,{"$f":"IF(N26>0,1,0)","v":{"$error":"#N/A"}},null,{"$f":"IF(P26>0,1,0)","v":{"$error":"#N/A"}},null,{"$f":"IF(Q26>0,1,0)","v":0},{"$f":"P47+N47+L47+J47+H47+F47","v":{"$error":"#N/A"}}]
[null,null,null,null,null,null,null,null,null,null,null,null,null,null,null,null,null,null,null,"tps échange pneu :",{"$f":"Q46*H11","v":0},{"$f":"U48/86400","v":"00:00:00"}]
[null,null,null,null,null,null,null,null,null,null,null,null,null,null,null,null,null,null,null,"tps refuel :",{"$f":"$U$26*$L$11","v":{"$error":"#N/A"}},{"$error":"#N/A"}]
[null,null,null,null,null,null,null,null,null,null,null,null,null,null,null,null,"somme max refuel ou échange pneus :",null,null,null,{"$f":"MAX(Q46:Q47)","v":{"$error":"#N/A"}},{"$f":"E11/86400","v":"00:00:05.500"}]
[null,null,null,null,null,null,null,null,null,null,null,null,null,null,null,null,"Temps total arrêt au stand : ",null,null,null,{"$f":"(U50*E11)+U48+U49","v":{"$error":"#N/A"}},{"$f":"U51/86400","v":{"$error":"#N/A"}}]
[]
[null,"Récapitulatif stratégie 1"]
[null,null,null,null,null,null,{"$f":"T15","v":0},"en",{"$f":"G54*I56","v":{"$error":"#N/A"}},"Distance totale : ",null,{"$f":"G54*I2","v":{"$error":"#N/A"}},"annotations libres"]
[]
[null,"Nombre de pits :",null,null,{"$f":"U50","v":{"$error":"#N/A"}},"Tps moyen / tour avec pits :",null,null,{"$f":"(T46+V45)/T15","v":{"$error":"#N/A"}},"Vitesse moyenne : ",null,{"$f":"comparateur!R15","v":{"$error":"#N/A"}}]
[]
[null,"Cumul tps pit(s) :",null,null,{"$f":"V51","v":{"$error":"#N/A"}},"Consommation moyenne :",null,null,{"$f":"I10","v":"1 tour"},{"$f":"J10","v":{"$error":"#N/A"}}]
[]
[]
[]
[]
[]
[]
[]
[]
[]
[]
[null,null,"Utilisation",null,{"$f":"E7","v":0},{"$f":"I7","v":0},{"$f":"M7","v":0}]
[null,null,null,null,{"$f":"G8","v":"libre"},{"$f":"K8","v":"libre"},{"$f":"O8","v":"libre"}]
[null,null,"Obligatoire(s)",null,{"$f":"IF(E70=\"obligatoire\",E69,\"libre\")","v":"libre"},{"$f":"IF(F70=\"obligatoire\",F69,\"libre\")","v":"libre"},{"$f":"IF(G70=\"obligatoire\",G69,\"libre\")","v":"libre"}]
[null,null,null,null,null,null,null,null,null,null,null,null,null,null,null,false]
[null,null,"Utilisés",null,{"$f":"E23","v":0},{"$f":"G23","v":0},{"$f":"I23","v":0},{"$f":"K23","v":0},{"$f":"M23","v":0},{"$f":"O23","v":0},"libre",{"$f":"ISNUMBER(MATCH(E71,$E$73:$K$73,0))","v":true},{"$f":"ISNUMBER(MATCH(F71,$E$73:$K$73,0))","v":true},true,null,{"$f":"COUNTIF(L73:N73,\"FAUX\")","v":0}]

{"sheet":"Strat 3","index":3,"n_rows":73,"n_cols":24,"rows_kept":73,"cut":false,"hidden":false,"merged":[[26,1,26,2],[3,26,3,28],[3,29,3,31],[4,13,4,16],[9,10,9,11],[10,2,10,3],[10,5,10,6],[10,8,10,9],[0,0,10,1],[0,23,3,25],[1,4,1,6],[2,2,2,4],[2,5,2,6],[3,2,4,2],[3,5,3,6],[3,13,3,16],[50,16,50,19],[20,26,20,27],[20,29,20,30],[22,1,22,2],[22,16,22,17],[22,26,22,27],[22,29,22,30],[11,23,59,25],[12,5,12,9],[14,1,14,2],[15,1,15,2],[18,1,18,2],[20,1,20,2],[20,16,20,17],[24,1,24,2],[25,1,25,2],[27,16,30,17],[28,1,29,2],[31,1,32,2],[42,20,43,20],[49,16,49,19],[60,0,65,25],[74,0,83,25],[52,1,53,5],[53,9,53,10],[53,12,57,12],[53,13,53,17],[54,13,54,17],[55,1,55,2],[55,5,55,7],[55,9,55,10],[55,13,55,17],[56,13,56,17],[57,1,57,2],[57,5,57,7],[57,13,57,17]]}
["RAPPEL DONNES",null,null,null,null,null,null,null,null,null,null,null,null,null,null,null,null,null,null,null,null,null,null,"Cliquez sur les cellules pour obtenir des informations complémentaires."]
[null,null,"Circuit / Piste :",null,{"$f":"Accueil!D10","v":0},null,null,"Longueur :",{"$f":"Accueil!I10","v":{"$error":"#N/A"}},"Durée :",{"$f":"Accueil!E12","v":0},{"$f":"Accueil!F12","v":"00:00:00"}]
[null,null,"Pit pneus + refuel complet ",null,null,{"$f":"PIT!S11","v":{"$error":"#DIV/0!"}},null,null,null,null,null,null,{"$f":"L2","v":"00:00:00"},"00:00:30",{"$f":"M3+F8+N3","v":"00:02:40"}]
[null,null,"Infos paramètres\ncourse",null,"Pit pneus : ","Temps cumulé de refuel",null,"Autonomie","Ravitaillement","Fuel départ","Conso.","Usure","Catégorie","Véhicule modèle :"]
[null,null,null,null,{"$f":"PIT!S9","v":10},{"$f":"G5*L11","v":{"$error":"#N/A"}},{"$f":"U26","v":{"$error":"#N/A"}},{"$f":"Accueil!J16","v":0},{"$f":"PIT!S19","v":0},{"$f":"Accueil!J20","v":100},{"$f":"Accueil!I31","v":"X1"},{"$f":"Accueil!F31","v":"X1"},{"$f":"Accueil!D29","v":0},{"$f":"Accueil!F29","v":0}]
[]
[null,null,"Infos pneus ",null,{"$f":"chronos!C10","v":0},"Tps moyen","Monte",null,{"$f":"chronos!C12","v":0},"Tps moyen","Monte",null,{"$f":"chronos!C14","v":0},"Tps moyen","Monte",null,"sans"]
[null,null,"Pic Performance",null,{"$f":"chronos!G10","v":8},{"$f":"chronos!E10","v":"00:02:10"},{"$f":"Accueil!F16","v":"libre"},"Pic P ",{"$f":"chronos!G12","v":12},{"$f":"chronos!E12","v":"00:02:12"},{"$f":"Accueil!F18","v":"libre"},"Pic P ",{"$f":"chronos!G14","v":16},{"$f":"chronos!E14","v":"02,14,0"},{"$f":"Accueil!F20","v":"libre"},null,{"$f":"F8","v":"00:02:10"}]
[]
[null,null,"volume",null,{"$f":"Accueil!K16","v":100},"soit","consommation",{"$f":"'ajust éco'!D9*'Strat 3'!I2","v":{"$error":"#N/A"}},"1 tour",{"$f":"(H10*1)/E10","v":{"$error":"#N/A"}},"Jauge initiale : ",null,{"$f":"Accueil!J20","v":100}]
[null,null,"ENTREE / SORTIE : ",null,{"$f":"PIT!S9-PIT!S7","v":5.5},"démonte/monte pneus :",null,{"$f":"PIT!S7","v":4.5},"Tps remplissage",null,1,{"$f":"PIT!S15","v":{"$error":"#DIV/0!"}},null,null,null,null,null,null,null,null,{"$f":"H5","v":0},{"$f":"I2*H5","v":{"$error":"#N/A"}}]
[]
[null,null,null,null,null,"Au moins un type de gomme obligatoire n'est pas utilisé !"]
[null,null,null,null,null,null,null,null,null,null,null,null,null,null,null,null,null,null,null,"total nbr de tours"]
[null,null,null,null,"Départ",null,"Pit 1",null,"Pit 2",null,"Pit 3",null,"Pit 4",null,"Pit 5",null,null,null,null,{"$f":"R15+P15+N15+L15+J15+H15+F15","v":0}]
[null,"Pertes de temps total : purge pénalité...",null,null,null,{"$f":"VLOOKUP(E23,chronos!$Q$28:'chronos'!$R$30,2,FALSE)","v":8},null,{"$f":"VLOOKUP(G23,chronos!$Q$28:'chronos'!$R$30,2,FALSE)","v":8},null,{"$f":"VLOOKUP(I23,chronos!$Q$28:'chronos'!$R$30,2,FALSE)","v":8},null,{"$f":"VLOOKUP(K23,chronos!$Q$28:'chronos'!$R$30,2,FALSE)","v":8},null,{"$f":"VLOOKUP(M23,chronos!$Q$28:'chronos'!$R$30,2,FALSE)","v":8},null,{"$f":"VLOOKUP(O23,chronos!$Q$28:'chronos'!$R$30,2,FALSE)","v":8},7,{"$f":"Q16*R17","v":0}]
[null,null,"00:00:00",null,null,{"$f":"F15*$I$2","v":{"$error":"#N/A"}},{"$f":"IF(ISERROR(F16<F15)=\"VRAI\",\"\",F16<F15)","v":false},{"$f":"H15*$I$2","v":{"$error":"#N/A"}},{"$f":"IF(ISERROR(H16<H15)=\"VRAI\",\"\",H16<H15)","v":false},{"$f":"J15*$I$2","v":{"$error":"#N/A"}},{"$f":"IF(ISERROR(J16<J15)=\"VRAI\",\"\",J16<J15)","v":false},{"$f":"L15*$I$2","v":{"$error":"#N/A"}},{"$f":"IF(ISERROR(L16<L15)=\"VRAI\",\"\",L16<L15)","v":false},{"$f":"N15*$I$2","v":{"$error":"#N/A"}},{"$f":"IF(ISERROR(N16<N15)=\"VRAI\",\"\",N16<N15)","v":false},{"$f":"P15*$I$2","v":{"$error":"#N/A"}},{"$f":"IF(ISERROR(P16<P15)=\"VRAI\",\"\",P16<P15)","v":false},{"$f":"COUNTIF(G17:Q17,\"VRAI\")","v":0}]
[]
[null,null,null,null,null,{"$f":"F15","v":0},{"$f":"F15*I56","v":{"$error":"#N/A"}},{"$f":"F19+H15","v":0},{"$f":"(I56*H15)+G19","v":{"$error":"#N/A"}},{"$f":"H19+J15","v":0},{"$f":"(J15*I56)+I19","v":{"$error":"#N/A"}},{"$f":"J19+L15","v":0},{"$f":"L15*I56+K19","v":{"$error":"#N/A"}},{"$f":"L19+N15","v":0},{"$f":"(N15*I56)+M19","v":{"$error":"#N/A"}},{"$f":"N19+P15","v":0},{"$f":"P19+R15","v":0},{"$f":"(P15*I56)+O19","v":{"$error":"#N/A"}}]
[]
[null,null,null,null,null,null,{"$f":"F15","v":0},null,{"$f":"H15+F15","v":0},null,{"$f":"J15+H15+F15","v":0},null,{"$f":"L15+J15+H15+F15","v":0},null,{"$f":"N15+L15+J15+H15+F15","v":0},null,"Dépassement nbr de tours"]
[]
[null," Gommes",null,null,null,null,null,null,null,null,null,null,null,null,null,null,"Dépassement durée\ncourse >1 tour"]
[]
[null,null,null,null,{"$f":"M10","v":100},null,{"$f":"G27*100","v":{"$error":"#N/A"}},null,{"$f":"I27*100","v":{"$error":"#N/A"}},null,{"$f":"K27*100","v":{"$error":"#N/A"}},null,{"$f":"M27*100","v":{"$error":"#N/A"}},null,{"$f":"O27*100","v":{"$error":"#N/A"}},null,null,null,null,"refuel en litres","refuel en tours"]
[null,"E42 conso L/km /  F42 besoin",null,null,{"$f":"VLOOKUP(E32,'ajust éco'!$B$9:$G$17,3,FALSE)","v":{"$error":"#N/A"}},{"$f":"(F17*E26)","v":{"$error":"#N/A"}},{"$f":"VLOOKUP(G32,'ajust éco'!$B$9:$G$17,3,FALSE)","v":{"$error":"#N/A"}},{"$f":"(H17*G26)","v":{"$error":"#N/A"}},{"$f":"VLOOKUP(I32,'ajust éco'!$B$9:$G$17,3,FALSE)","v":{"$error":"#N/A"}},{"$f":"(J17*I26)","v":{"$error":"#N/A"}},{"$f":"VLOOKUP(K32,'ajust éco'!$B$9:$G$17,3,FALSE)","v":{"$error":"#N/A"}},{"$f":"(L17*K26)","v":{"$error":"#N/A"}},{"$f":"VLOOKUP(M32,'ajust éco'!$B$9:$G$17,3,FALSE)","v":{"$error":"#N/A"}},{"$f":"(N17*M26)","v":{"$error":"#N/A"}},{"$f":"VLOOKUP(O32,'ajust éco'!$B$9:$G$17,3,FALSE)","v":{"$error":"#N/A"}},{"$f":"(P17*O26)","v":{"$error":"#N/A"}},null,null,null,{"$f":"(F35+H35+J35+L35+N35+P35)-E25","v":{"$error":"#N/A"}},{"$f":"T26/$H$10","v":{"$error":"#N/A"}}]
[null,"niveau ",null,null,{"$f":"E25/100","v":1},{"$f":"(E28*$H$5)/1","v":{"$error":"#N/A"}},{"$f":"MIN(100%,(G30+(E27-E28)))","v":{"$error":"#N/A"}},null,{"$f":"MIN(100%,(I30+(G27-G28)))","v":{"$error":"#N/A"}},null,{"$f":"MIN(100%,(K30+(I27-I28)))","v":{"$error":"#N/A"}},null,{"$f":"MIN(100%,(M30+(K27-K28)))","v":{"$error":"#N/A"}},null,{"$f":"MIN(100%,(O30+(M27-M28)))","v":{"$error":"#N/A"}}]
[null,null,"calcul besoin ",null,{"$f":"(F15*E35)/100","v":{"$error":"#N/A"}},{"$f":"IF(E28>E27,\"T\",\"\")","v":{"$error":"#N/A"}},{"$f":"(SUM(H15*G35/100))","v":{"$error":"#N/A"}},{"$f":"IF(G28>100%,\"T\",\"\")","v":{"$error":"#N/A"}},{"$f":"(SUM(J15*I35/100))","v":{"$error":"#N/A"}},{"$f":"IF(I28>100%,\"T\",\"\")","v":{"$error":"#N/A"}},{"$f":"(SUM(L15*K35/100))","v":{"$error":"#N/A"}},{"$f":"IF(K28>100%,\"T\",\"\")","v":{"$error":"#N/A"}},{"$f":"(SUM(N15*M35/100))","v":{"$error":"#N/A"}},{"$f":"IF(M28>100%,\"T\",\"\")","v":{"$error":"#N/A"}},{"$f":"(SUM(P15*O35/100))","v":{"$error":"#N/A"}},{"$f":"IF(O28>100%,\"T\",\"\")","v":{"$error":"#N/A"}},"Estimation cumul perte de temps conduite éco"]
[null,"complément/jauge "]
[null,null,null,null,null,{"$f":"E25/H10","v":{"$error":"#N/A"}},{"$f":"G28","v":{"$error":"#N/A"}},{"$f":"(G28*$H$5)/1","v":{"$error":"#N/A"}},{"$f":"I28","v":{"$error":"#N/A"}},{"$f":"(I28*$H$5)/1","v":{"$error":"#N/A"}},{"$f":"K28","v":{"$error":"#N/A"}},{"$f":"(K28*$H$5)/1","v":{"$error":"#N/A"}},{"$f":"M28","v":{"$error":"#N/A"}},{"$f":"(M28*$H$5)/1","v":{"$error":"#N/A"}},{"$f":"O28","v":{"$error":"#N/A"}},{"$f":"(O28*$H$5)/1","v":{"$error":"#N/A"}}]
[]
[null,"Eco fuel ",null,null,0,null,0,null,0,null,0,null,0,null,0,null,{"$f":"U38","v":"00:00:00"},null,null,null,null,null,""]
[]
[]
[null,null,"conso L/tour avec éco",null,{"$f":"E26*$I$2","v":{"$error":"#N/A"}},{"$f":"E35*F15","v":{"$error":"#N/A"}},{"$f":"G26*$I$2","v":{"$error":"#N/A"}},{"$f":"G35*H15","v":{"$error":"#N/A"}},{"$f":"I26*$I$2","v":{"$error":"#N/A"}},{"$f":"I35*J15","v":{"$error":"#N/A"}},{"$f":"K26*$I$2","v":{"$error":"#N/A"}},{"$f":"K35*L15","v":{"$error":"#N/A"}},{"$f":"M26*$I$2","v":{"$error":"#N/A"}},{"$f":"M35*N15","v":{"$error":"#N/A"}},{"$f":"O26*$I$2","v":{"$error":"#N/A"}},{"$f":"O35*P15","v":{"$error":"#N/A"}},null,null,null,{"$f":"E7","v":0},{"$f":"F8","v":"00:02:10"}]
[null,null,"calcul perte temps",null,{"$f":"VLOOKUP(E32,'ajust éco'!$B$9:$L$17,11,\"faux\")","v":0},null,{"$f":"VLOOKUP(G32,'ajust éco'!$B$9:$L$17,11,\"faux\")","v":0},null,{"$f":"VLOOKUP(I32,'ajust éco'!$B$9:$L$17,11,\"faux\")","v":0},null,{"$f":"VLOOKUP(K32,'ajust éco'!$B$9:$L$17,11,\"faux\")","v":0},null,{"$f":"VLOOKUP(M32,'ajust éco'!$B$9:$L$17,11,\"faux\")","v":0},null,{"$f":"VLOOKUP(O32,'ajust éco'!$B$9:$L$17,11,\"faux\")","v":0},null,null,null,null,{"$f":"I7","v":0},{"$f":"J8","v":"00:02:12"}]
[null,null,null,null,{"$f":"E25/E35","v":{"$error":"#N/A"}},null,{"$f":"G25/G35","v":{"$error":"#N/A"}},null,{"$f":"I25/I35","v":{"$error":"#N/A"}},null,{"$f":"K25/K35","v":{"$error":"#N/A"}},null,{"$f":"M25/M35","v":{"$error":"#N/A"}},null,{"$f":"O25/O35","v":{"$error":"#N/A"}},null,null,null,null,{"$f":"M7","v":0},{"$f":"N8","v":"02,14,0"}]
[null,null,"Calcul augmentation tps/tour en fonction de la conduite éco",null,{"$f":"E36*F15","v":0},null,{"$f":"G36*H15","v":0},null,{"$f":"I36*J15","v":0},null,{"$f":"K36*L15","v":0},null,{"$f":"M36*N15","v":0},null,{"$f":"O36*P15","v":0},null,"nbr tours /type pneus","chronos",null,"tps total / type pneu",{"$f":"V38/86400","v":"00:00:00"},{"$f":"E38+G38+I38+K38+M38+O38","v":0}]
[null,null,"S soft",null,{"$f":"SUMIF(E23,\"S soft\",F15)","v":0},null,{"$f":"SUMIF(G23,\"S soft\",H15)","v":0},{"$f":"IF(G39>0,1,0)","v":0},{"$f":"SUMIF(I23,\"S soft\",J15)","v":0},{"$f":"IF(I39>0,1,0)","v":0},{"$f":"SUMIF(K23,\"S soft\",L15)","v":0},{"$f":"IF(K39>0,1,0)","v":0},{"$f":"SUMIF(M23,\"S soft\",N15)","v":0},{"$f":"IF(M39>0,1,0)","v":0},{"$f":"SUMIF(O23,\"S soft\",P15)","v":0},{"$f":"IF(O39>0,1,0)","v":0},{"$f":"E39+G39+I39+K39+M39+O39","v":0},{"$f":"VLOOKUP(C39,$T$35:$U$37,2,FALSE)","v":{"$error":"#N/A"}},null,{"$f":"IFERROR((Q39)*R39,0)","v":0}]
[null,null,"soft",null,{"$f":"SUMIF(E23,\"soft\",F15)","v":0},null,{"$f":"SUMIF(G23,\"soft\",H15)","v":0},{"$f":"IF(G40>0,1,0)","v":0},{"$f":"SUMIF(I23,\"soft\",J15)","v":0},{"$f":"IF(I40>0,1,0)","v":0},{"$f":"SUMIF(K23,\"soft\",L15)","v":0},{"$f":"IF(K40>0,1,0)","v":0},{"$f":"SUMIF(M23,\"soft\",N15)","v":0},{"$f":"IF(M40>0,1,0)","v":0},{"$f":"SUMIF(O23,\"soft\",P15)","v":0},{"$f":"IF(O40>0,1,0)","v":0},0,{"$f":"VLOOKUP(C40,$T$35:$U$37,2,FALSE)","v":{"$error":"#N/A"}},null,{"$f":"IFERROR((Q40)*R40,0)","v":0}]
[null,null,"médium",null,{"$f":"SUMIF(E23,\"médium\",F15)","v":0},null,{"$f":"SUMIF(G23,\"médium\",H15)","v":0},{"$f":"IF(G41>0,1,0)","v":0},{"$f":"SUMIF(I23,\"médium\",J15)","v":0},{"$f":"IF(I41>0,1,0)","v":0},{"$f":"SUMIF(K23,\"médium\",L15)","v":0},{"$f":"IF(K41>0,1,0)","v":0},{"$f":"SUMIF(M23,\"médium\",N15)","v":0},{"$f":"IF(M41>0,1,0)","v":0},{"$f":"SUMIF(O23,\"médium\",P15)","v":0},{"$f":"IF(O41>0,1,0)","v":0},0,{"$f":"VLOOKUP(C41,$T$35:$U$37,2,FALSE)","v":{"$error":"#N/A"}},null,{"$f":"IFERROR((Q41)*R41,0)","v":0}]
[null,null,"hard",null,{"$f":"SUMIF(E23,\"hard\",F15)","v":0},null,{"$f":"SUMIF(G23,\"hard\",H15)","v":0},{"$f":"IF(G42>0,1,0)","v":0},{"$f":"SUMIF(I23,\"hard\",J15)","v":0},{"$f":"IF(I42>0,1,0)","v":0},{"$f":"SUMIF(K23,\"hard\",L15)","v":0},{"$f":"IF(K42>0,1,0)","v":0},{"$f":"SUMIF(M23,\"hard\",N15)","v":0},{"$f":"IF(M42>0,1,0)","v":0},{"$f":"SUMIF(O23,\"hard\",P15)","v":0},{"$f":"IF(O42>0,1,0)","v":0},0,{"$f":"VLOOKUP(C42,$T$35:$U$37,2,FALSE)","v":{"$error":"#N/A"}},null,{"$f":"IFERROR(Q42*R42,0)","v":0}]
[null,null,"(sans) change de pneus",null,{"$f":"SUMIF(E23,\"sans\",F15)","v":0},null,{"$f":"SUMIF(G23,\"sans\",H15)","v":0},null,{"$f":"SUMIF(I23,\"sans\",J15)","v":0},null,{"$f":"SUMIF(K23,\"sans\",L15)","v":0},null,{"$f":"SUMIF(M23,\"sans\",N15)","v":0},null,{"$f":"SUMIF(O23,\"sans\",P15)","v":0},null,0,{"$f":"Q8","v":1.5046296296296294E-3},null,{"$f":"IFERROR(Q43*R43,0)","v":0},"cumul pertes de temps"]
[null,null,"inter",null,{"$f":"SUMIF(E23,\"inter\",F15)","v":0},null,{"$f":"SUMIF(G23,\"inter\",H15)","v":0},{"$f":"IF(G44>0,1,0)","v":0},{"$f":"SUMIF(I23,\"inter\",J15)","v":0},{"$f":"IF(I44>0,1,0)","v":0},{"$f":"SUMIF(K23,\"inter\",L15)","v":0},{"$f":"IF(K44>0,1,0)","v":0},{"$f":"SUMIF(M23,\"inter\",N15)","v":0},{"$f":"IF(M44>0,1,0)","v":0},{"$f":"SUMIF(O23,\"inter\",P15)","v":0},{"$f":"IF(O44>0,1,0)","v":0},0,{"$f":"VLOOKUP(C44,$T$35:$U$37,2,FALSE)","v":{"$error":"#N/A"}},null,{"$f":"IFERROR(Q44*R44,0)","v":0}]
[null,null,"pluie",null,{"$f":"SUMIF(E23,\"pluie\",F15)","v":0},null,{"$f":"SUMIF(G23,\"pluie\",H15)","v":0},{"$f":"IF(G45>0,1,0)","v":0},{"$f":"SUMIF(I23,\"pluie\",J15)","v":0},{"$f":"IF(I45>0,1,0)","v":0},{"$f":"SUMIF(K23,\"pluie\",L15)","v":0},{"$f":"IF(K45>0,1,0)","v":0},{"$f":"SUMIF(M23,\"pluie\",N15)","v":0},{"$f":"IF(M45>0,1,0)","v":0},{"$f":"SUMIF(O23,\"pluie\",P15)","v":0},{"$f":"IF(O45>0,1,0)","v":0},0,{"$f":"VLOOKUP(C45,$T$35:$U$37,2,FALSE)","v":{"$error":"#N/A"}},null,{"$f":"IFERROR(Q45*R45,0)","v":0},{"$f":"U51+V38+C17","v":{"$error":"#N/A"}},{"$f":"U45/86400","v":{"$error":"#N/A"}}]
[null,null,"Nbr de changements de pneu",null,null,null,null,{"$f":"SUM(H39:H45)","v":0},null,{"$f":"SUM(J39:J45)","v":0},null,{"$f":"SUM(L39:L45)","v":0},null,{"$f":"SUM(N39:N45)","v":0},null,{"$f":"SUM(P39:P45)","v":0},{"$f":"P46+N46+L46+J46+H46+F46","v":0},null,null,{"$f":"SUM(T39:T45)","v":0},{"$f":"U45/G54","v":{"$error":"#N/A"}},{"$f":"U46/86400","v":{"$error":"#N/A"}}]
[null,null,"Nbr de refuel",null,null,{"$f":"IF(H26>0,1,0)","v":{"$error":"#N/A"}},null,{"$f":"IF(J26>0,1,0)","v":{"$error":"#N/A"}},null,{"$f":"IF(L26>0,1,0)","v":{"$error":"#N/A"}},null,{"$f":"IF(N26>0,1,0)","v":{"$error":"#N/A"}},null,{"$f":"IF(P26>0,1,0)","v":{"$error":"#N/A"}},null,{"$f":"IF(Q26>0,1,0)","v":0},{"$f":"P47+N47+L47+J47+H47+F47","v":{"$error":"#N/A"}}]
[null,null,null,null,null,null,null,null,null,null,null,null,null,null,null,null,null,null,null,"tps échange pneu :",{"$f":"Q46*H11","v":0},{"$f":"U48/86400","v":"00:00:00"}]
[null,null,null,null,null,null,null,null,null,null,null,null,null,null,null,null,null,null,null,"tps refuel :",{"$f":"$U$26*$L$11","v":{"$error":"#N/A"}},{"$error":"#N/A"}]
[null,null,null,null,null,null,null,null,null,null,null,null,null,null,null,null,"somme max refuel ou échange pneus :",null,null,null,{"$f":"MAX(Q46:Q47)","v":{"$error":"#N/A"}},{"$f":"E11/86400","v":"00:00:05.500"}]
[null,null,null,null,null,null,null,null,null,null,null,null,null,null,null,null,"Temps total arrêt au stand : ",null,null,null,{"$f":"(U50*E11)+U48+U49","v":{"$error":"#N/A"}},{"$f":"U51/86400","v":{"$error":"#N/A"}}]
[]
[null,"Récapitulatif stratégie 1"]
[null,null,null,null,null,null,{"$f":"T15","v":0},"en",{"$f":"G54*I56","v":{"$error":"#N/A"}},"Distance totale : ",null,{"$f":"G54*I2","v":{"$error":"#N/A"}},"annotations libres"]
[]
[null,"Nombre de pits :",null,null,{"$f":"U50","v":{"$error":"#N/A"}},"Tps moyen / tour avec pits :",null,null,{"$f":"(T46+V45)/T15","v":{"$error":"#N/A"}},"Vitesse moyenne : ",null,{"$f":"comparateur!R15","v":{"$error":"#N/A"}}]
[]
[null,"Cumul tps pit(s) :",null,null,{"$f":"V51","v":{"$error":"#N/A"}},"Consommation moyenne :",null,null,{"$f":"I10","v":"1 tour"},{"$f":"J10","v":{"$error":"#N/A"}}]
[]
[]
[]
[]
[]
[]
[]
[]
[]
[]
[null,null,"Utilisation",null,{"$f":"E7","v":0},{"$f":"I7","v":0},{"$f":"M7","v":0}]
[null,null,null,null,{"$f":"G8","v":"libre"},{"$f":"K8","v":"libre"},{"$f":"O8","v":"libre"}]
[null,null,"Obligatoire(s)",null,{"$f":"IF(E70=\"obligatoire\",E69,\"libre\")","v":"libre"},{"$f":"IF(F70=\"obligatoire\",F69,\"libre\")","v":"libre"},{"$f":"IF(G70=\"obligatoire\",G69,\"libre\")","v":"libre"}]
[null,null,null,null,null,null,null,null,null,null,null,null,null,null,null,false]
[null,null,"Utilisés",null,{"$f":"E23","v":0},{"$f":"G23","v":0},{"$f":"I23","v":0},{"$f":"K23","v":0},{"$f":"M23","v":0},{"$f":"O23","v":0},"libre",{"$f":"ISNUMBER(MATCH(E71,$E$73:$K$73,0))","v":true},{"$f":"ISNUMBER(MATCH(F71,$E$73:$K$73,0))","v":true},true,null,{"$f":"COUNTIF(L73:N73,\"FAUX\")","v":0}]

{"sheet":"comparateur","index":4,"n_rows":87,"n_cols":37,"rows_kept":87,"cut":false,"hidden":false,"merged":[[3,2,3,3],[3,16,3,22],[35,14,35,16],[21,14,21,16],[7,14,7,16],[11,4,12,4],[11,6,12,6],[11,8,12,8],[14,4,15,4],[14,6,15,6],[14,8,15,8],[28,11,29,12],[28,13,29,13],[11,11,12,12],[21,11,21,12],[11,17,12,17],[3,36,3,38],[7,11,7,12],[17,29,17,31],[17,20,17,22],[17,23,17,25],[11,13,12,13],[14,17,15,17],[14,13,15,13],[14,11,15,12],[11,27,12,27],[11,29,12,29],[11,31,12,31],[17,14,17,16],[11,14,12,16],[11,25,12,25],[9,14,9,16],[49,23,49,29],[27,36,28,37],[7,4,7,8],[45,14,45,16],[17,26,17,28],[23,14,23,16],[31,14,31,16],[35,11,35,12],[45,29,45,31],[31,29,31,31],[31,26,31,28],[45,26,45,28],[31,23,31,25],[45,20,45,22],[45,23,45,25],[31,20,31,22],[14,14,15,16],[11,20,12,20],[11,21,12,21],[25,27,26,27],[11,23,12,23],[25,29,26,29],[25,31,26,31],[25,11,26,12],[25,13,26,13],[25,14,26,16],[25,17,26,17],[25,25,26,25],[25,21,26,21],[25,23,26,23],[25,20,26,20],[39,13,40,13],[39,11,40,12],[28,17,29,17],[37,14,37,16],[39,17,40,17],[28,14,29,16],[7,37,7,39],[35,36,47,38],[3,4,3,9],[7,2,45,2],[42,17,43,17],[39,31,40,31],[39,20,40,20],[39,21,40,21],[39,23,40,23],[39,25,40,25],[39,27,40,27],[39,29,40,29],[42,14,43,16],[42,11,43,12],[42,13,43,13],[39,14,40,16]]}
[]
[]
[]
[null,null,"Circuit :",null,{"$f":"'Strat 1'!E2","v":0},null,null,null,null,null,null,{"$f":"'Strat 1'!G54","v":0},null,"Catégorie :",{"$f":"'Strat 1'!M5","v":0},"Voiture :",{"$f":"'Strat 1'!N5","v":0}]
[]
[]
[]
[null,null,"COMPARATEUR  STRAT",null,null,null,null,null,null,null,null,"Stratégie 1",null,null,"Indice de risque :",null,null,{"$f":"T69","v":0},null,null,"Type pneus :",{"$f":"'Strat 1'!$E$23","v":0},null,{"$f":"'Strat 1'!$G$23","v":0},null,{"$f":"'Strat 1'!$I$23","v":0},null,{"$f":"'Strat 1'!$K$23","v":0},null,{"$f":"'Strat 1'!$M$23","v":0},null,{"$f":"'Strat 1'!$O$23","v":0}]
[null,null,null,null,"type",null,"tps moyen",null,"durée",null,null,null,null,null,null,null,null,null,null,null,"Pit","Dép.",null,"P1",null,"P2",null,"P3",null,"P4",null,"P5"]
[null,null,null,null,{"$f":"chronos!C10","v":0},null,{"$f":"chronos!E10","v":"00:02:10"},null,{"$f":"'Strat 1'!E8","v":8},null,null,null,null,"STOP PIT","Durée course : ",null,null,{"$f":"'Strat 1'!$I$54","v":{"$error":"#N/A"}},{"$f":"R10*24","v":{"$error":"#N/A"}},null,"Nbr de tours :",{"$f":"'Strat 1'!$F$15","v":0},null,{"$f":"'Strat 1'!$H$15","v":0},null,{"$f":"'Strat 1'!$J$15","v":0},null,{"$f":"'Strat 1'!$L$15","v":0},null,{"$f":"'Strat 1'!$N$15","v":0},null,{"$f":"'Strat 1'!$P$15","v":0}]
[]
[null,null,null,null,{"$f":"chronos!C12","v":0},null,{"$f":"chronos!E12","v":"00:02:12"},null,{"$f":"'Strat 1'!I8","v":12},null,null,"Nombre : ",null,{"$f":"'Strat 1'!$E$56","v":{"$error":"#N/A"}},"Distance : ",null,null,{"$f":"IF('Strat 1'!$L$54=0,\"\",'Strat 1'!$L$54)","v":{"$error":"#N/A"}},null,null,"Conduite éco :",{"$f":"'Strat 1'!$E$32","v":0},null,{"$f":"'Strat 1'!$G$32","v":0},null,{"$f":"'Strat 1'!$I$32","v":0},null,{"$f":"'Strat 1'!$K$32","v":0},null,{"$f":"'Strat 1'!$M$32","v":0},null,{"$f":"'Strat 1'!$O$32","v":0}]
[]
[]
[null,null,null,null,{"$f":"chronos!C14","v":0},null,{"$f":"chronos!E14","v":"02,14,0"},null,{"$f":"'Strat 1'!M8","v":16},null,null,"Cumul temps arrêt : ",null,{"$f":"'Strat 1'!$V$51","v":{"$error":"#N/A"}},"Vitesse moyenne : ",null,null,{"$f":"R12/S10","v":{"$error":"#N/A"}},null,null,"Usures pneus : "]
[]
[]
[null,null,null,null,null,null,null,null,null,null,null,null,null,null,"Temps moyen / tour : ",null,null,{"$f":"'Strat 1'!$I$56","v":{"$error":"#N/A"}},null,null,"Cumul perte de temps :",null,null,{"$f":"IF('Strat 1'!$V$45=0,\"\",'Strat 1'!$V$45)","v":{"$error":"#N/A"}},null,null,"par tour :",null,null,{"$f":"'Strat 1'!$V$46","v":{"$error":"#N/A"}}]
[]
[]
[]
[null,null,null,null,null,null,null,null,null,null,null,"Stratégie 2",null,null,"Indice de risque :",null,null,{"$f":"T78","v":0},null,null,"Type pneus :",{"$f":"'Strat 2'!$E$23","v":0},null,{"$f":"'Strat 2'!$G$23","v":0},null,{"$f":"'Strat 2'!$I$23","v":0},null,{"$f":"'Strat 2'!$K$23","v":0},null,{"$f":"'Strat 2'!$M$23","v":0},null,{"$f":"'Strat 2'!$O$23","v":0}]
[null,null,null,null,null,null,null,null,null,null,null,null,null,null,null,null,null,null,null,null,"Pit","Dép.",null,"P1",null,"P2",null,"P3",null,"P4",null,"P5"]
[null,null,null,null,null,null,null,null,null,null,null,null,null,"STOP PIT","Durée course : ",null,null,{"$f":"'Strat 2'!$I$54","v":{"$error":"#N/A"}},{"$f":"R24*24","v":{"$error":"#N/A"}},0,"Nbr de tours :",{"$f":"'Strat 2'!$F$15","v":0},null,{"$f":"'Strat 2'!$H$15","v":0},null,{"$f":"'Strat 2'!$J$15","v":0},null,{"$f":"'Strat 2'!$L$15","v":0},null,{"$f":"'Strat 2'!$N$15","v":0},null,{"$f":"'Strat 2'!$P$15","v":0}]
[]
[null,null,null,null,null,null,null,null,null,null,null,"Nombre : ",null,{"$f":"'Strat 2'!$E$56","v":{"$error":"#N/A"}},"Distance : ",null,null,{"$f":"IF('Strat 2'!$L$54=0,\"\",'Strat 2'!$L$54)","v":{"$error":"#N/A"}},null,null,"Conduite éco :",{"$f":"'Strat 2'!$E$32","v":0},null,{"$f":"'Strat 2'!$G$32","v":0},null,{"$f":"'Strat 2'!$I$32","v":0},null,{"$f":"'Strat 2'!$K$32","v":0},null,{"$f":"'Strat 2'!$M$32","v":0},null,{"$f":"'Strat 2'!$O$32","v":0}]
[]
[]
[null,null,null,null,null,null,null,null,null,null,null,"Cumul temps arrêt : ",null,{"$f":"'Strat 2'!$V$51","v":{"$error":"#N/A"}},"Vitesse moyenne : ",null,null,{"$f":"R26/S24","v":{"$error":"#N/A"}},null,null,"Usures pneus : "]
[]
[]
[null,null,null,null,null,null,null,null,null,null,null,null,null,null,"Temps moyen / tour : ",null,null,{"$f":"'Strat 2'!$I$56","v":{"$error":"#N/A"}},null,null,"Cumul perte de temps :",null,null,{"$f":"IF('Strat 2'!$V$45=0,\"\",'Strat 2'!$V$45)","v":{"$error":"#N/A"}},null,null,"par tour :",null,null,{"$f":"'Strat 2'!$V$46","v":{"$error":"#N/A"}}]
[]
[]
[]
[null,null,null,null,null,null,null,null,null,null,null,"Stratégie 3",null,null,"Indice de risque :",null,null,{"$f":"T87","v":0},null,null,"Type pneus :",{"$f":"'Strat 3'!$E$23","v":0},null,{"$f":"'Strat 3'!$G$23","v":0},null,{"$f":"'Strat 3'!$I$23","v":0},null,{"$f":"'Strat 3'!$K$23","v":0},null,{"$f":"'Strat 3'!$M$23","v":0},null,{"$f":"'Strat 3'!$O$23","v":0},null,null,null,null,"La meilleur stratégie est en principe celle ou la majorité des indicateurs sont verts avec le temps moyen / tour le plus faible. En cas de valeurs identiques prenez en compte l'indice de risque ou choisissez la strat ou vous êtes le plus confortable avec votre mode de conduite."]
[null,null,null,null,null,null,null,null,null,null,null,null,null,null,null,null,null,null,null,null,"Pit","Dép.",null,"P1",null,"P2",null,"P3",null,"P4",null,"P5"]
[null,null,null,null,null,null,null,null,null,null,null,null,null,"STOP PIT","Durée course : ",null,null,{"$f":"'Strat 3'!$I$54","v":{"$error":"#N/A"}},{"$f":"R38*24","v":{"$error":"#N/A"}},null,"Nbr de tours :",{"$f":"'Strat 3'!$F$15","v":0},null,{"$f":"'Strat 3'!$H$15","v":0},null,{"$f":"'Strat 3'!$J$15","v":0},null,{"$f":"'Strat 3'!$L$15","v":0},null,{"$f":"'Strat 3'!$N$15","v":0},null,{"$f":"'Strat 3'!$P$15","v":0}]
[]
[null,null,null,null,null,null,null,null,null,null,null,"Nombre : ",null,{"$f":"'Strat 3'!$E$56","v":{"$error":"#N/A"}},"Distance : ",null,null,{"$f":"IF('Strat 3'!$L$54=0,\"\",'Strat 3'!$L$54)","v":{"$error":"#N/A"}},null,null,"Conduite éco :",{"$f":"'Strat 3'!$E$32","v":0},null,{"$f":"'Strat 3'!$G$32","v":0},null,{"$f":"'Strat 3'!$I$32","v":0},null,{"$f":"'Strat 3'!$K$32","v":0},null,{"$f":"'Strat 3'!$M$32","v":0},null,{"$f":"'Strat 3'!$O$32","v":0}]
[]
[]
[null,null,null,null,null,null,null,null,null,null,null,"Cumul temps arrêt : ",null,{"$f":"'Strat 3'!$V$51","v":{"$error":"#N/A"}},"Vitesse moyenne : ",null,null,{"$f":"R40/S38","v":{"$error":"#N/A"}},null,null,"Usures pneus : "]
[null,null,null,null,null,null,null,null,null,null,null,null,null,null,null,null,null,null,null,"","","","","","","","","","","","",""]
[]
[null,null,null,null,null,null,null,null,null,null,null,null,null,null,"Temps moyen / tour : ",null,null,{"$f":"'Strat 3'!$I$56","v":{"$error":"#N/A"}},null,null,"Cumul perte de temps :",null,null,{"$f":"IF('Strat 3'!$V$45=0,\"\",'Strat 3'!$V$45)","v":{"$error":"#N/A"}},null,null,"par tour :",null,null,{"$f":"'Strat 3'!$V$46","v":{"$error":"#N/A"}}]
[]
[]
[]
[null,null,null,null,null,null,null,null,null,null,null,null,null,null,null,null,null,null,null,null,null,null,null,"ajuster valeur max indice risque",null,null,null,null,null,null,null,200]
[]
[]
[]
[]
[]
[]
[]
[]
[]
[]
[]
[null,null,null,null,null,null,null,null,null,null,null,null,"strat 1","nb tours",null,"Coeff.","points",null,null,"dépasse"]
[null,null,null,null,null,null,null,null,null,null,null,null,"S soft",{"$f":"'Strat 1'!$Q$39","v":0},null,1,{"$f":"P63*N63","v":0},null,null,"nbr"]
[null,null,null,null,null,null,null,null,null,null,null,null,"soft",{"$f":"'Strat 1'!$Q$40","v":0},null,1.75,{"$f":"P64*N64","v":0},null,null,"tours"]
[null,null,null,null,null,null,null,null,null,null,null,null,"médium",{"$f":"'Strat 1'!$Q$41","v":0},null,2.5,0,null,null,{"$f":"T69-(Q69+R69)","v":0}]
[null,null,null,null,null,null,null,null,null,null,null,null,"hard",{"$f":"'Strat 1'!$Q$42","v":0},null,4,0]
[null,null,null,null,null,null,null,null,null,null,null,null,"inter",{"$f":"'Strat 1'!$Q$44","v":0},null,6,0]
[null,null,null,null,null,null,null,null,null,null,null,null,"pluie",{"$f":"'Strat 1'!$Q$45","v":0},null,8,0,"usure pneus"]
[null,null,null,null,null,null,null,null,null,null,null,null,null,null,null,null,{"$f":"SUM(Q63:Q68)","v":0},{"$f":"V15+X15+Z15+AB15+AD15+AF15","v":0},null,{"$f":"Q69+R69+'Strat 1'!$R$16","v":0}]
[]
[null,null,null,null,null,null,null,null,null,null,null,null,"strat 2"]
[null,null,null,null,null,null,null,null,null,null,null,null,"S soft",{"$f":"'Strat 2'!$Q$39","v":0},null,{"$f":"P63","v":1},{"$f":"P72*N72","v":0},null,null,"dépasse"]
[null,null,null,null,null,null,null,null,null,null,null,null,"soft",{"$f":"'Strat 2'!$Q$40","v":0},null,{"$f":"P64","v":1.75},{"$f":"P73*N73","v":0},null,null,"nbr"]
[null,null,null,null,null,null,null,null,null,null,null,null,"médium",{"$f":"'Strat 2'!$Q$41","v":0},null,2.5,0,null,null,"tours"]
[null,null,null,null,null,null,null,null,null,null,null,null,"hard",{"$f":"'Strat 2'!$Q$42","v":0},null,4,0,null,null,{"$f":"T78-(Q78+R78)","v":0}]
[null,null,null,null,null,null,null,null,null,null,null,null,"inter",{"$f":"'Strat 2'!$Q$44","v":0},null,6,0]
[null,null,null,null,null,null,null,null,null,null,null,null,"pluie",{"$f":"'Strat 2'!$Q$45","v":0},null,8,0]
[null,null,null,null,null,null,null,null,null,null,null,null,null,null,null,null,{"$f":"SUM(Q72:Q77)","v":0},{"$f":"V29+X29+Z29+AB29+AD29+AF29","v":0},null,{"$f":"Q78+R78+'Strat 2'!$R$16","v":0}]
[]
[null,null,null,null,null,null,null,null,null,null,null,null,"strat 3"]
[null,null,null,null,null,null,null,null,null,null,null,null,"S soft",{"$f":"'Strat 3'!$Q$39","v":0},null,{"$f":"P63","v":1},{"$f":"P81*N81","v":0},null,null,"dépasse"]
[null,null,null,null,null,null,null,null,null,null,null,null,"soft",{"$f":"'Strat 3'!$Q$40","v":0},null,{"$f":"P64","v":1.75},{"$f":"P82*N82","v":0},null,null,"nbr"]
[null,null,null,null,null,null,null,null,null,null,null,null,"médium",{"$f":"'Strat 3'!$Q$41","v":0},null,2.5,0,null,null,"tours"]
[null,null,null,null,null,null,null,null,null,null,null,null,"hard",{"$f":"'Strat 3'!$Q$42","v":0},null,4,0,null,null,{"$f":"T87-(Q87+R87)","v":0}]
[null,null,null,null,null,null,null,null,null,null,null,null,"inter",{"$f":"'Strat 3'!$Q$44","v":0},null,6,0]
[null,null,null,null,null,null,null,null,null,null,null,null,"pluie",{"$f":"'Strat 3'!$Q$45","v":0},null,8,0]
[null,null,null,null,null,null,null,null,null,null,null,null,null,null,null,null,{"$f":"SUM(Q81:Q86)","v":0},{"$f":"V43+X43+Z43+AB43+AD43+AF43","v":0},null,{"$f":"Q87+R87+'Strat 3'!$R$16","v":0}]

{"sheet":"chronos","index":5,"n_rows":70,"n_cols":21,"rows_kept":70,"cut":false,"hidden":false,"merged":[[26,6,26,8],[14,16,14,20],[23,11,23,15],[22,2,22,4],[1,2,1,5],[5,6,7,6],[1,6,1,10],[1,12,1,14],[3,12,3,14],[5,13,7,13],[14,2,14,13]]}
[]
[null,null,"Relevés des temps :",null,null,null,"Essais libres 1",null,null,null,null,null,"Essais libres 2"]
[]
[null,null,"Indiquez :",null,"obligatoire",null,"facultatif",null,"facultatif",null,"facultatif",null,"indications facultatives"]
[]
[null,null,null,null,"Temps moyen",null,"Durée train de pneus\nou pic performance",null,"Répartition",null,"usure train",null,"Temps moyen","Durée train de pneus\nou pic performance","usure train"]
[]
[]
[]
[null,null,{"$f":"Accueil!D16","v":0},null,"00:02:10",null,8,null,0,null,null,null,{"$f":"E10","v":"00:02:10"},0,null,null,{"$f":"M10","v":"00:02:10"}]
[]
[null,null,{"$f":"Accueil!D18","v":0},null,"00:02:12",null,12,null,0,null,null,null,{"$f":"E12","v":"00:02:12"},0,null,null,{"$f":"M12","v":"00:02:12"}]
[]
[null,null,{"$f":"Accueil!D20","v":0},null,"02,14,0",null,16,null,0,null,null,null,{"$f":"E14","v":"02,14,0"},0,null,null,{"$f":"M14","v":"02,14,0"}]
[null,null,"! Vous devez indiquer un temps pour chacune des gommes utilisées, les autres informations n'ont qu'une valeur indicative d'aide à la décision"]
[]
[]
[]
[]
[]
[]
[]
[]
[null,null,null,null,null,null,null,null,null,null,null,"    Ajuster les temps chronos à l'échelle du graphique : "]
[null,null,null,null,null,null,null,null,null,null,null,null,null,null,null,null,null,null,null,"b"]
[]
[]
[null,null,null,null,null,null,null,null,null,null,null,null,null,null,null,null,{"$f":"C10","v":0},{"$f":"G10","v":8}]
[null,null,null,null,null,null,null,null,null,null,null,null,null,null,null,null,{"$f":"C12","v":0},{"$f":"G12","v":12}]
[null,null,null,null,null,null,null,null,null,null,null,null,null,null,null,null,{"$f":"C14","v":0},{"$f":"G14","v":16}]
[]
[]
[]
[]
[]
[]
[]
[]
[]
[]
[]
[]
[]
[]
[]
[]
[]
[null,null,null,null,null,null,null,null,null,null,null,null,null,null,null,null,{"$f":"E10","v":"00:02:10"}]
[null,null,null,null,null,null,null,null,null,null,null,null,null,null,null,null,{"$f":"E12","v":"00:02:12"}]
[null,null,null,null,null,null,null,null,null,null,null,null,null,null,null,null,{"$f":"E14","v":"02,14,0"}]
[]
[null,null,null,null,null,null,null,null,null,null,null,null,null,null,null,null,null,"essais 1","essais 1","essais 2"]
[null,null,null,null,null,null,null,null,null,null,null,null,null,null,null,null,{"$f":"C10","v":0},{"$f":"Q48","v":"00:02:10"},{"$f":"E10","v":"00:02:10"},{"$f":"M10","v":"00:02:10"},{"$f":"Q10","v":"00:02:10"}]
[null,null,null,null,null,null,null,null,null,null,null,null,null,null,null,null,{"$f":"C12","v":0},{"$f":"Q49","v":"00:02:12"},{"$f":"E12","v":"00:02:12"},{"$f":"M12","v":"00:02:12"},{"$f":"Q12","v":"00:02:12"}]
[null,null,null,null,null,null,null,null,null,null,null,null,null,null,null,null,{"$f":"C14","v":0},{"$f":"E14","v":"02,14,0"},{"$f":"E14","v":"02,14,0"},{"$f":"M14","v":"02,14,0"},{"$f":"Q14","v":"02,14,0"}]
[]
[]
[]
[]
[]
[]
[]
[]
[null,null,null,null,null,null,null,null,null,null,null,null,null,null,86400,null,null,"essais 1",{"$f":"S52","v":"essais 1"},{"$f":"T52","v":"essais 2"},"essais 2"]
[null,null,null,null,null,null,null,null,null,null,null,null,null,null,null,null,{"$f":"C10","v":0},{"$f":"(R53*$O$64)","v":129.99999999999997},{"$f":"(S53*$O$64)","v":129.99999999999997},129.99999999999997,129.99999999999997]
[null,null,null,null,null,null,null,null,null,null,null,null,null,null,null,null,{"$f":"C12","v":0},132,{"$f":"(S54*$O$64)","v":132},{"$f":"(T54*$O$64)","v":132},{"$f":"(U54*$O$64)","v":132}]
[null,null,null,null,null,null,null,null,null,null,null,null,null,null,null,null,{"$f":"C14","v":0},{"$error":"#VALUE!"},{"$f":"(S55*$O$64)","v":{"$error":"#VALUE!"}},{"$f":"(T55*$O$64)","v":{"$error":"#VALUE!"}},{"$f":"(U55*$O$64)","v":{"$error":"#VALUE!"}}]
[null,null,null,null,null,null,null,null,null,null,null,null,null,null,null,null,null,0,{"$f":"(S56*$O$64)","v":0},{"$f":"(T56*$O$64)","v":0},{"$f":"(U56*$O$64)","v":0}]
[null,null,null,null,null,null,null,null,null,null,null,null,null,null,null,null,null,0,{"$f":"(S57*$O$64)","v":0},{"$f":"(T57*$O$64)","v":0},{"$f":"(U57*$O$64)","v":0}]
[null,null,null,null,null,null,null,null,null,null,null,null,null,null,null,null,null,0,{"$f":"(S58*$O$64)","v":0},{"$f":"(T58*$O$64)","v":0},{"$f":"(U58*$O$64)","v":0}]

{"sheet":"ajust éco","index":6,"n_rows":66,"n_cols":16,"rows_kept":66,"cut":false,"hidden":false,"merged":[[50,1,50,2],[3,15,4,15],[12,14,12,16],[5,1,6,1],[5,8,5,11],[30,1,30,7],[5,2,5,6],[20,1,21,2],[18,14,19,19],[1,1,3,11]]}
[]
[null,"Conduite mode éco : ajustements autonomie et temps"]
[]
[null,null,null,null,null,null,null,null,null,null,null,null,null,null,null,"Menu"]
[]
[null,"Réglages\nconduite éco","Gain autonomie",null,null,null,null,null,"Dégradation temps"]
[null,null,"Coeff.",{"$f":"'Strat 1'!H10","v":{"$error":"#N/A"}},{"$f":"'Strat 1'!H5*'Strat 1'!I2","v":{"$error":"#N/A"}},"Gain nbr tours","L/100","réservoir","Sec/Km","pas à pas","Sec/Km","Sec/tour"]
[]
[null,0,0,{"$f":"(1*G9)/$E$7","v":{"$error":"#N/A"}},"écart conso",0,{"$f":"'Strat 1'!E10","v":100},100,0,0,0,0]
[null,"tr/mn 2/3",4,{"$f":"(1*G10)/$E$7","v":{"$error":"#N/A"}},{"$f":"C10+$B$65","v":8},{"$f":"(H10*$A$11)/$H$9-$A$11","v":0},{"$f":"$G$9-E10","v":92},{"$f":"$H$9+E10","v":108},{"$f":"J10+($B$66/50)","v":0.01},{"$f":"K10","v":0.01},0.01,{"$f":"I10*$D$46","v":{"$error":"#N/A"}}]
[{"$f":"'Strat 1'!H5","v":0},"tr/mn 1/2",8,{"$error":"#N/A"},12,0,{"$f":"$G$9-E11","v":88},{"$f":"$H$9+E11","v":112},{"$f":"J11+($B$66/50)","v":3.5000000000000003E-2},{"$f":"K11+K10","v":3.5000000000000003E-2},2.5000000000000001E-2,{"$error":"#N/A"}]
[null,"tr/mn 1/3",16,{"$error":"#N/A"},20,0,80,120,0.1,{"$f":"K12+K11","v":0.1},7.4999999999999997E-2,{"$error":"#N/A"}]
[null,2,20,{"$error":"#N/A"},24,0,76,124,0.17499999999999999,{"$f":"K13+K12","v":0.17499999999999999},0.1,{"$error":"#N/A"},null,null,"Réinitialiser :"]
[null,3,30,{"$error":"#N/A"},34,0,66,134,0.25,{"$f":"K13+K14","v":0.25},0.15,{"$error":"#N/A"}]
[null,4,45,{"$error":"#N/A"},49,0,51,149,0.35,0.35,0.2,{"$error":"#N/A"}]
[null,5,60,{"$error":"#N/A"},64,0,36,164,0.45,0.45,0.25,{"$error":"#N/A"}]
[null,6,75,{"$error":"#N/A"},79,0,21,179,0.55000000000000004,0.55000000000000004,0.3,{"$error":"#N/A"}]
[null,null,null,"litre au km","éco nbr litres"]
[null,null,null,"formule strat 1",null,null,null,null,null,null,null,null,null,null,"A chaque modification d'une valeur, retournez sur votre strat pour vérifier si celle-ci correspond à vos valeurs."]
[null,null,null,"E42"]
[]
[]
[]
[]
[null,"Pour augmenter l'autonomie : cliquez sur la flèche haute du curseur et/ou saisir une valeur supérieur à celle existante dans la colonne \"Coeff de gain autonomie\""]
[null,"Pour réduire l'autonomie : cliquez sur la flèche basse du curseur et/ou saisir une valeur inferieur à celle existante dans la colonne \"Coeff de gain autonomie\""]
[]
[null,"Pour accroitre la perte de temps du à la réduction de la vitesse :  cliquez sur la flèche haute du curseur ou saisir un temps supérieur à celui existant dans la colonne \"Coeff réduction de vitesse\""]
[null,"Pour réduire la perte de temps du à la réduction de la vitesse : cliquez sur la flèche basse du curseur ou saisir un chiffre inferieur à celui existant, voir négatif ci nécessaire, dans la colonne \"Coeff réduction de vitesse\""]
[]
[null,"NB) les ajustements réalisés sont communs aux 3 stratégies"]
[]
[]
[]
[]
[]
[]
[]
[]
[]
[]
[]
[]
[]
[null,null,null,"long circuit"]
[null,null,null,{"$f":"'Strat 1'!I2","v":{"$error":"#N/A"}}]
[null,null,null,"conso 100 km"]
[null,null,null,{"$f":"'Strat 1'!E10","v":100}]
[null,null,null,null,1]
[]
[]
[]
[null,null,"Valeurs par défaut"]
[null,0,0,null,null,null,null,null,0]
[null,"tr/mn 2/3",4,null,null,null,null,null,0,null,0.01]
[null,"tr/mn 1/2",8,null,null,null,null,null,0.05,null,2.5000000000000001E-2]
[null,"tr/mn 1/3",16,null,null,null,null,null,0.1,null,7.4999999999999997E-2]
[null,2,20,null,null,null,null,null,0.3,null,0.1]
[null,3,30,null,null,null,null,null,0.5,null,0.15]
[null,4,45,null,null,null,null,null,0.65,null,0.2]
[null,5,60,null,null,null,null,null,0.85,null,0.25]
[null,6,75,null,null,null,null,null,1,null,0.3]
[]
[]
[null,4]
[null,0]

{"sheet":"PIT","index":7,"n_rows":25,"n_cols":33,"rows_kept":25,"cut":false,"hidden":false,"merged":[[24,1,26,9],[21,1,22,10],[1,12,1,14],[1,1,1,10],[16,16,16,17],[14,16,14,17],[18,12,18,13],[18,16,18,17],[3,16,4,21],[13,12,13,14],[5,13,7,13],[5,12,6,12],[9,12,11,12],[15,12,17,12],[12,32,12,33],[6,16,6,17],[8,19,8,20],[6,19,6,22],[8,16,8,17],[12,16,12,17],[10,16,10,17]]}
[]
[null,"Saisies des temps d'arrêts aux stands :",null,null,null,null,null,null,null,null,null,null,"indiquez t1 et t2"]
[]
[null,null,null,null,null,null,null,null,null,null,null,null,null,null,null,null,"Informations et détails des temps d'arrêts et de ravitaillements"]
[]
[null,null,null,null,null,null,null,null,null,null,null,null,"t3","calcul automatique avec la saisie de la vitesse de ravitaillement"]
[null,null,null,null,null,null,null,null,null,null,null,null,null,null,null,null,"Temps démontes et montes des pneus : ",null,4.5,"(modifier si nécessaire)"]
[]
[null,null,null,null,null,null,null,null,null,null,null,null,null,null,null,null,"Temps réel changement pneus = (t2 - t1)",null,{"$f":"N11-N17","v":10},null,null,null,null,null,null,null,null,null,null,null,null,{"$f":"S9+S13","v":{"$error":"#DIV/0!"}}]
[null,null,null,null,null,null,null,null,null,null,null,null,"t2"]
[null,null,null,null,null,null,null,null,null,null,null,null,null,20,null,null,"t3 Temps réel change pneus + refuel complet : ",null,{"$f":"AF9","v":{"$error":"#DIV/0!"}}]
[]
[null,null,null,null,null,null,null,null,null,null,null,null,null,null,null,null,"Temps de remplissage max du réservoir : ",null,{"$f":"U17/S19","v":{"$error":"#DIV/0!"}},null,{"$f":"S13/U17","v":{"$error":"#DIV/0!"}},"/ litre",null,null,null,null,null,null,null,"Consommation : ",null,{"$f":"U17/S17","v":{"$error":"#DIV/0!"}},"litres/tour"]
[]
[null,null,null,null,null,null,null,null,null,null,null,null,null,null,null,null,"Temps de remplissage pour 1 tour : ",null,{"$f":"AF13*U13","v":{"$error":"#DIV/0!"}}]
[null,null,null,null,null,null,null,null,null,null,null,null,"t1"]
[null,null,null,null,null,null,null,null,null,null,null,null,null,10,null,null,"Capacité max réservoir : ",null,{"$f":"'Strat 1'!H5","v":0},null,{"$f":"'Strat 1'!E10","v":100}]
[]
[null,null,null,null,null,null,null,null,null,null,null,null,null,null,null,null,"Vitesse de ravitaillement : ",null,{"$f":"Accueil!J18","v":0},"litres/seconde"]
[]
[]
[null,"NB : les temps T2 et T1 sont indiqués par défaut mais peuvent varier en fonction des circuits !\nSi vous voulez être plus précis  dans votre stratégie, mesurez ces temps et modifiez-les."]
[null,null,null,null,null,null,null,null,null,null,null,null,null,null,null,null,"00:00:00"]
[]
[null,"Astuce ! Utlisez le chronomètre pour compatbiliser le temps de passage t1"]

{"sheet":"Transmissions","index":8,"n_rows":140,"n_cols":14,"rows_kept":140,"cut":false,"hidden":false,"merged":[[139,13,147,15],[1,0,1,11],[13,13,21,15],[43,13,51,15],[76,13,84,15],[110,13,118,15]]}
[]
["TYPES DE TRANSMISSIONS"]
[]
[]
[]
[]
[]
[]
[]
[]
[]
[]
[]
[null,null,null,null,null,null,null,null,null,null,null,null,null,"FR"]
[]
[]
[]
[]
[]
[]
[]
[]
[]
[]
[]
[]
[]
[]
[]
[]
[]
[]
[]
[]
[]
[]
[]
[]
[]
[]
[]
[]
[]
[null,null,null,null,null,null,null,null,null,null,null,null,null,"FF"]
[]
[]
[]
[]
[]
[]
[]
[]
[]
[]
[]
[]
[]
[]
[]
[]
[]
[]
[]
[]
[]
[]
[]
[]
[]
[]
[]
[]
[]
[]
[]
[]
[null,null,null,null,null,null,null,null,null,null,null,null,null,"MR"]
[]
[]
[]
[]
[]
[]
[]
[]
[]
[]
[]
[]
[]
[]
[]
[]
[]
[]
[]
[]
[]
[]
[]
[]
[]
[]
[]
[]
[]
[]
[]
[]
[]
[null,null,null,null,null,null,null,null,null,null,null,null,null,"RR"]
[]
[]
[]
[]
[]
[]
[]
[]
[]
[]
[]
[]
[]
[]
[]
[]
[]
[]
[]
[]
[]
[]
[]
[]
[]
[]
[]
[]
[null,null,null,null,null,null,null,null,null,null,null,null,null,"4RM"]

{"sheet":"grille","index":9,"n_rows":117,"n_cols":15,"rows_kept":117,"cut":false,"hidden":false,"merged":[]}
[]
[]
["nbrtours","pneu","pneu1","usure","conso",null,"fuel","éco2","pneu2","frein",null,null,null,"pneu3","durée"]
[{"$f":"chronos!G10","v":8},"soft","soft","X1","X1",null,0,0,"libre",5,null,null,null,{"$f":"'Strat 1'!E7","v":0},"Temps"]
[{"$f":"chronos!J15","v":0},"médium","médium","X2","X2",null,0.5,"tr/mn 2/3","obligatoire",4,null,null,null,{"$f":"'Strat 1'!I7","v":0},"Tours"]
[{"$f":"chronos!N15","v":0},"hard","hard","X3","X3",null,1,"tr/mn 1/2",null,3,null,null,null,{"$f":"'Strat 1'!M7","v":0}]
[null,"sans","inter","X4","X4",null,1.5,"tr/mn 1/3",null,2,null,null,null,"sans"]
[null,"inter","pluie","X5","X5",null,2,2,null,1]
[null,"pluie","/","X6","X6",null,3,3,null,0]
[null,"/",null,"X7","X7",null,4,4,null,-1]
[null,null,null,"X8","X8",null,5,5,null,-2]
[null,null,null,"X9","X9",null,6,6,null,-3]
[null,null,null,"X10","X10",null,null,null,null,-4]
[null,null,null,"X11","X11",null,null,null,null,-5]
[null,null,null,"X12","X12"]
[null,null,null,"X13","X13"]
[null,null,null,"X14","X14",null,null,null,null,null,"Mise à jour 1.20 Gt7"]
[null,null,null,"X15","X15",null,null,null,null,null,"circuits","distance","corner"]
[null,null,null,"X16","X16",null,null,null,null,1,"Alsace - Village",5.423,17]
[null,null,null,"X17","X17",null,null,null,null,2,"Alsace - Site d'essais",2.1179999999999999,6]
[null,null,null,"X18","X18",null,null,null,null,3,"Alsace - Site d'essais - Inversé",2.1179999999999999,6]
[null,null,null,"X19","X19",null,null,null,null,4,"Alsace - Village - inversé",5.423,17]
[null,null,null,"X20","X20",null,null,null,null,5,"Autopolis International Racing Course",4.67,19]
[null,null,null,null,null,null,null,null,null,6,"Autopolis International Racing Course - Court",3.02,12]
[null,null,null,null,null,null,null,null,null,7,"Barcelona tracé national",2.9769999999999999]
[null,null,null,null,null,null,null,null,null,8,"Barcelona tracé rallycross",1.133]
[null,null,null,null,null,null,null,null,null,9,"Barcelona-Catalunya - sans chicane",4.7300000000000004,11]
[null,null,null,null,null,null,null,null,null,10,"Barcelona-Catalunya version GP",4.6550000000000002,13]
[null,null,null,null,null,null,null,null,null,11,"BB Raceway",1.665,4]
[null,null,null,null,null,null,null,null,null,12,"BB Raceway - Inversé",1.665,4]
[null,null,null,null,null,null,null,null,null,13,"Blue Moon Bay Speedway",3.2,3]
[null,null,null,null,null,null,null,null,null,14,"Blue Moon Bay Speedway - Inversé",3.2,3]
[null,null,null,null,null,null,null,null,null,15,"Blue Moon Bay Speedway Central A",3.35,10]
[null,null,null,null,null,null,null,null,null,16,"Blue Moon Bay Speedway Central A - Inversé",3.35,10]
[null,null,null,null,null,null,null,null,null,17,"Blue Moon Bay Speedway Central B",2.86,7]
[null,null,null,null,null,null,null,null,null,18,"Blue Moon Bay Speedway Central B - Inversé",2.86,7]
[null,null,null,null,null,null,null,null,null,19,"Brands Hatch Grand Prix Circuit",3.9460000000000002,9]
[null,null,null,null,null,null,null,null,null,20,"Brands Hatch Indy Circuit",1.929,6]
[null,null,null,null,null,null,null,null,null,21,"Colorado Springs Terre - Lac",2.99,15]
[null,null,null,null,null,null,null,null,null,22,"Colorado Springs Terre - Lac - Inversé",2.99,15]
[null,null,null,null,null,null,null,null,null,23,"Daytona International Speedway - Circuit routier",5.7290000000000001,10]
[null,null,null,null,null,null,null,null,null,24,"Daytona International Speedway - Tri-ovale",4.0229999999999997,3]
[null,null,null,null,null,null,null,null,null,25,"Deep Forest Raceway",4.2530000000000001,15]
[null,null,null,null,null,null,null,null,null,26,"Deep Forest Raceway - Inversé",4.2530000000000001,15]
[null,null,null,null,null,null,null,null,null,27,"Dragon Trail Jardins",4.3520000000000003,16]
[null,null,null,null,null,null,null,null,null,28,"Dragon Trail Jardins - Inversé",4.3520000000000003,16]
[null,null,null,null,null,null,null,null,null,29,"Dragon Trail Littoral",5.2089999999999996,17]
[null,null,null,null,null,null,null,null,null,30,"Dragon Trail Littoral - Inversé",5.2089999999999996,17]
[null,null,null,null,null,null,null,null,null,31,"Fishermans Ranch",6.8929999999999998,40]
[null,null,null,null,null,null,null,null,null,32,"Fishermans Ranch - Inversé",6.8929999999999998,40]
[null,null,null,null,null,null,null,null,null,33,"Fuji International Speedway",4.5629999999999997,16]
[null,null,null,null,null,null,null,null,null,34,"Fuji International Speedway - Court",4.5259999999999998,15]
[null,null,null,null,null,null,null,null,null,35,"Goodwood Motor Circuit",3.8090000000000002,7]
[null,null,null,null,null,null,null,null,null,36,"High Speed Ring",4.3449999999999998,6]
[null,null,null,null,null,null,null,null,null,37,"High Speed Ring - Inversé",4.3449999999999998,6]
[null,null,null,null,null,null,null,null,null,38,"Interlagos Autódromo",4.3090000000000002,15]
[null,null,null,null,null,null,null,null,null,39,"Kyoto Driving Park - Miyabi",1.9530000000000001,7]
[null,null,null,null,null,null,null,null,null,40,"Kyoto Driving Park - Yamagiwa",4.9119999999999999,15]
[null,null,null,null,null,null,null,null,null,41,"Kyoto Driving Park - Yamagiwa - Inversé",4.9119999999999999,15]
[null,null,null,null,null,null,null,null,null,42,"Kyoto Driving Park - Yamagiwa + Miyabi",6.8460000000000001,20]
[null,null,null,null,null,null,null,null,null,43,"Kyoto Driving Park - Yamagiwa + Miyabi - Inversé",6.8460000000000001,20]
[null,null,null,null,null,null,null,null,null,44,"Lago Maggiore",5.8090000000000002,17]
[null,null,null,null,null,null,null,null,null,45,"Lago Maggiore - Inversé",5.8090000000000002,17]
[null,null,null,null,null,null,null,null,null,46,"Lago Maggiore Centre",1.706,9]
[null,null,null,null,null,null,null,null,null,47,"Lago Maggiore Centre - inversé",1.706,9]
[null,null,null,null,null,null,null,null,null,48,"Lago Maggiore Est",3.6429999999999998,13]
[null,null,null,null,null,null,null,null,null,49,"Lago Maggiore Est - Inversé",3.6429999999999998,13]
[null,null,null,null,null,null,null,null,null,50,"Lago Maggiore Ouest",4.1680000000000001,13]
[null,null,null,null,null,null,null,null,null,51,"Lago Maggiore Ouest - Inversé",4.1680000000000001,13]
[null,null,null,null,null,null,null,null,null,52,"Mans circuit des 24 Heures",13.625999999999999,38]
[null,null,null,null,null,null,null,null,null,53,"Mans circuit des 24 Heures - sans de chicane",13.326000000000001,36]
[null,null,null,null,null,null,null,null,null,54,"Michelin Raceway Road Atlanta",4.0880000000000001,null,"2022-11-24"]
[null,null,null,null,null,null,null,null,null,55,"Monza Autodromo Nazionale",5.7930000000000001,11]
[null,null,null,null,null,null,null,null,null,56,"Monza Autodromo Nazionale - sans chicane",5.7549999999999999,9]
[null,null,null,null,null,null,null,null,null,57,"Mount Panorama Motor Racing Circuit",6.2130000000000001,22]
[null,null,null,null,null,null,null,null,null,58,"Northern Isle Speedway",0.9,2]
[null,null,null,null,null,null,null,null,null,59,"Nürburgring 24 Heures",25.378,170]
[null,null,null,null,null,null,null,null,null,60,"Nürburgring Nordschleife",20.832000000000001,154]
[null,null,null,null,null,null,null,null,null,61,"Nürburgring piste GP",5.1479999999999997,16]
[null,null,null,null,null,null,null,null,null,62,"Red Bull Ring",4.3179999999999996,10]
[null,null,null,null,null,null,null,null,null,63,"Red Bull Ring - Court",2.3359999999999999,6]
[null,null,null,null,null,null,null,null,null,64,"Sainte-Croix A",9.4770000000000003,20]
[null,null,null,null,null,null,null,null,null,65,"Sainte-Croix A - Inversé",9.4770000000000003,20]
[null,null,null,null,null,null,null,null,null,66,"Sainte-Croix B",7.0620000000000003,16]
[null,null,null,null,null,null,null,null,null,67,"Sainte-Croix B - Inversé",7.0620000000000003,16]
[null,null,null,null,null,null,null,null,null,68,"Sainte-Croix C",10.824999999999999,23]
[null,null,null,null,null,null,null,null,null,69,"Sainte-Croix C - Inversé",10.824999999999999,26]
[null,null,null,null,null,null,null,null,null,70,"Sardegna - Piste A",5.1130000000000004,15]
[null,null,null,null,null,null,null,null,null,71,"Sardegna - Piste A - Inversé",5.1130000000000004,15]
[null,null,null,null,null,null,null,null,null,72,"Sardegna - Piste B",3.8929999999999998,15]
[null,null,null,null,null,null,null,null,null,73,"Sardegna - Piste B - Inversé",3.8929999999999998,15]
[null,null,null,null,null,null,null,null,null,74,"Sardegna - Piste C",2.661,15]
[null,null,null,null,null,null,null,null,null,75,"Sardegna - Piste C - Inversé",2.661,15]
[null,null,null,null,null,null,null,null,null,76,"Sardegna - Terre - Éoliennes",3.31,14]
[null,null,null,null,null,null,null,null,null,77,"Sardegna - Terre - Éoliennes - Inversé",3.31,14]
[null,null,null,null,null,null,null,null,null,78,"Spa-Francorchamps",7.0039999999999996,20]
[null,null,null,null,null,null,null,null,null,79,"Spa-Francorchamps - 24h",7.0039999999999996,20]
[null,null,null,null,null,null,null,null,null,80,"Special Stage Route X",30.283000000000001,4]
[null,null,null,null,null,null,null,null,null,81,"Suzuka Circuit",5.8079999999999998,17]
[null,null,null,null,null,null,null,null,null,82,"Suzuka Circuit - parcourt Est",2.2429999999999999,6]
[null,null,null,null,null,null,null,null,null,83,"Tokyo Expressway -  Est dans le sens horaire",7.1920000000000002,12]
[null,null,null,null,null,null,null,null,null,84,"Tokyo Expressway - Centrale dans le sens  antihoraire",4.3689999999999998,12]
[null,null,null,null,null,null,null,null,null,85,"Tokyo Expressway - Centrale dans le sens horaire",4.4050000000000002,12]
[null,null,null,null,null,null,null,null,null,86,"Tokyo Expressway - Est dans le sens antihoraire",7.3010000000000002,12]
[null,null,null,null,null,null,null,null,null,87,"Tokyo Expressway - Sud dans le sens antihoraire",5.2009999999999996,17]
[null,null,null,null,null,null,null,null,null,88,"Tokyo Expressway - Sud dans le sens horaire",6.56,16]
[null,null,null,null,null,null,null,null,null,89,"Trial Mountain circuit",5.4340000000000002,15]
[null,null,null,null,null,null,null,null,null,90,"Trial Mountain Circuit - Inversé",5.4340000000000002,15]
[null,null,null,null,null,null,null,null,null,91,"Tsukuba Circuit",2.0449999999999999,14]
[null,null,null,null,null,null,null,null,null,92,"Watkins Glen - Parcours court",3.9420000000000002,8]
[null,null,null,null,null,null,null,null,null,93,"Watkins Glen - Parcours long",5.423,11]
[null,null,null,null,null,null,null,null,null,94,"WeatherTech Raceway Laguna Seca",3.6,12]
[null,null,null,null,null,null,null,null,null,95,"Willow Springs - Big Willow",3.9510000000000001,9]
[null,null,null,null,null,null,null,null,null,96,"Willow Springs - Horse Thief Mile",1.6240000000000001,12]
[null,null,null,null,null,null,null,null,null,97,"Willow Springs - Horse Thief Mile - Inversé",1.6240000000000001,12]
[null,null,null,null,null,null,null,null,null,98,"Willow Springs - Streets of Willow Springs",2.6749999999999998,14]
[null,null,null,null,null,null,null,null,null,99,"Willow Springs - Streets of Willow Springs - Inversé",2.6749999999999998,14]

{"sheet":"Véhicules","index":10,"n_rows":455,"n_cols":15,"rows_kept":455,"cut":false,"hidden":false,"merged":[[3,5,3,7],[1,1,1,4]]}
[]
[null,"Cliquez sur un modèle de voiture pour accéder à ses caractéristiques",null,null,null,null,null,null,null,null,null,null,null,null,{"$f":"B455","v":451}]
[]
[null,"N°","Catégorie","Marque","Modèle","Dernière mise à jour :",null,null,"version","1.25","Gran Turismo 7"]
[null,1,"No Gr","Abarth","1500 Biposto Bertone B.A.T 1 '52"]
[null,2,"No Gr","Abarth","500 '09"]
[null,3,"No Gr","Abarth","595 SS '70"]
[null,4,"Gr.4","Alfa Romeo","155 2.5 V6 TI '93"]
[null,5,"No Gr","Alfa Romeo","4C '14"]
[null,6,"Gr.3","Alfa Romeo","4C Gr.3"]
[null,7,"No Gr","Alfa Romeo","4C Gr.3 Road Car"]
[null,8,"Gr.4","Alfa Romeo","4C Gr.4"]
[null,9,"No Gr","Alfa Romeo","8C Competizione '08"]
[null,10,"No Gr","Alfa Romeo","GIULIA TZ2 carrozzata da ZAGATO '65"]
[null,11,"No Gr","Alfa Romeo","MiTo '09"]
[null,12,"No Gr","Alfa Romeo","8C 2900B Touring Berlinetta '38"]
[null,13,"No Gr","Alpine","A110 '17"]
[null,14,"No Gr","Alpine","A110 '72"]
[null,15,"No Gr","Alpine","A220 Race Car '68"]
[null,16,"No Gr","Alpine","Alpine VGT"]
[null,17,"Gr.1","Alpine","Alpine VGT '17"]
[null,18,"No Gr","Alpine","Alpine VGT Race"]
[null,19,"No Gr","AMG","300 SEL 6.8 AMG '71"]
[null,20,"No Gr","AMG","A 45 AMG '13"]
[null,21,"Gr.2","AMG","CLK-LM '98"]
[null,22,"No Gr","AMG","Mercedes-AMG C 63 S '15"]
[null,23,"No Gr","AMG","Mercedes-AMG GT Black Series '20"]
[null,24,"No Gr","AMG","Mercedes-AMG GT R '17"]
[null,25,"No Gr","AMG","Mercedes-AMG GT S '15"]
[null,26,"No Gr","AMG","Mercedes-AMG GT Safety Car"]
[null,27,"Gr.3","AMG","Mercedes-AMG GT3 '16"]
[null,28,"No Gr","AMG","Mercedes-Benz AMG VGT"]
[null,29,"No Gr","AMG","Mercedes-Benz AMG VGT Racing Series"]
[null,30,"No Gr","AMG","SLS AMG '10"]
[null,31,"Gr.3","AMG","SLS AMG GT3 '11"]
[null,32,"Gr.4","AMG","SLS AMG GR.4"]
[null,33,"No Gr","Amuse","Amuse NISMO 380RS Super Leggera"]
[null,34,"No Gr","Amuse","S2000 GT1 Turbo"]
[null,35,"No Gr","Aston Martin","DB11 '16"]
[null,36,"No Gr","Aston Martin","DB3S '53"]
[null,37,"No Gr","Aston Martin","DB5 '64"]
[null,38,"Gr.3","Aston Martin","DBR9 GT1 '10"]
[null,39,"No Gr","Aston Martin","DP-100 VGT"]
[null,40,"No Gr","Aston Martin","One-77 '11"]
[null,41,"Gr.3","Aston Martin","V12 Vantage GT3 '12"]
[null,42,"Gr.4","Aston Martin","V8 Vantage GR.4"]
[null,43,"No Gr","Aston Martin","V8 Vantage S '15"]
[null,44,"No Gr","Aston Martin","Vulcan '16"]
[null,45,"Gr.1","Audi","Audi VGT"]
[null,46,"No Gr","Audi","Audi e-tron VGT"]
[null,47,"Gr.1","Audi","R18 '16"]
[null,48,"Gr.1","Audi","R18 TDI '11"]
[null,49,"No Gr","Audi","R8 4.2 '07"]
[null,50,"Gr.3","Audi","R8 LMS '15"]
[null,51,"Gr.3","Audi","R8 LMS Evo '19"]
[null,52,"Gr.B","Audi","Sport Quattro S1 Pikes Peak '87"]
[null,53,"No Gr","Audi","TT Coupé 3.2 quattro '03"]
[null,54,"Gr.4","Audi","TT CUP '16"]
[null,55,"No Gr","Audi","TTS Coupé '14"]
[null,56,"No Gr","Autobianchi","A112 Abarth '85"]
[null,57,"No Gr","BAC","Mono '16"]
[null,58,"No Gr","BMW","3.0 CSL '71"]
[null,59,"No Gr","BMW","3.0 CSL '73"]
[null,60,"No Gr","BMW","BMW VGT"]
[null,61,"No Gr","BMW","BMW M2 Competition '18"]
[null,62,"No Gr","BMW","M3 '03"]
[null,63,"No Gr","BMW","M3 '07"]
[null,64,"No Gr","BMW","M3 '89"]
[null,65,"Gr.3","BMW","M3 GT '11"]
[null,66,"No Gr","BMW","M3 Sport Evolution '89"]
[null,67,"No Gr","BMW","M4 '14"]
[null,68,"Gr.4","BMW","M4 GR.4"]
[null,69,"No Gr","BMW","M4 Safety Car"]
[null,70,"Gr.3","BMW","M6 GT3 Endurance Model '16"]
[null,71,"Gr.3","BMW","M6 GT3 Sprint Model '16"]
[null,72,"Gr.2","BMW","McLaren F1 GTR Race Car '97"]
[null,73,"Gr.3","BMW","Z4 GT3 '11"]
[null,74,"No Gr","BMW","Z8 '01"]
[null,75,"No Gr","BMW","i3 '15"]
[null,76,"No Gr","Bugatti","Bugatti VGT"]
[null,77,"Gr.1","Bugatti","Bugatti VGT (GR.1)"]
[null,78,"No Gr","Bugatti","Veyron 16.4 '13"]
[null,79,"Gr.4","Bugatti","Veyron Gr.4"]
[null,80,"No Gr","Chaparral","2J '70"]
[null,81,"No Gr","Chaparral","Chevrolet Chaparral 2X VGT"]
[null,82,"No Gr","Chevrolet","Camaro SS '16"]
[null,83,"No Gr","Chevrolet","Camaro Z28 '69"]
[null,84,"No Gr","Chevrolet","Camaro ZL1 1LE Package '18"]
[null,85,"No Gr","Chevrolet","Corvette (C2) '63"]
[null,86,"No Gr","Chevrolet","Corvette C7 '14"]
[null,87,"Gr.3","Chevrolet","Corvette C7 Gr.3"]
[null,88,"No Gr","Chevrolet","Corvette C7 Gr.3 Road Car"]
[null,89,"Gr.4","Chevrolet","Corvette C7 Gr.4"]
[null,90,"No Gr","Chevrolet","Corvette C7 ZR1 '19"]
[null,91,"No Gr","Chevrolet","Corvette Convertible (C3) '69"]
[null,92,"No Gr","Chevrolet","Corvette Stingray (C3) '69"]
[null,93,"No Gr","Chevrolet","Corvette Stingray Racer Concept '59"]
[null,94,"No Gr","Chevrolet","Corvette ZR-1 (C4) '89"]
[null,95,"No Gr","Chevrolet","Corvette ZR1 (C6) '09"]
[null,96,"No Gr","Chris Holstrom Concepts","CHC 1967 Chevy Nova"]
[null,97,"Gr.4","Citroen","GT BY Citroën GR.4"]
[null,98,"Gr.3","Citroen","GT by Citroën Race Car (Gr.3)"]
[null,99,"No Gr","Citroen","GT by Citroën Road Car"]
[null,100,"No Gr","Daihatsu","Copen '02"]
[null,101,"No Gr","Daihatsu","COPEN RJ VGT"]
[null,102,"No Gr","De Tomaso","Pantera '71"]
[null,103,"No Gr","De Tomaso","Mangusta '69"]
[null,104,"No Gr","De Tomaso","Mangusta (Christian Dior)"]
[null,105,"No Gr","DMC","DeLorean S2 '04"]
[null,106,"No Gr","Dodge","Challenger R/T '70"]
[null,107,"No Gr","Dodge","Charger SRT Hellcat '15"]
[null,108,"No Gr","Dodge","Charger SRT Hellcat Safety Car"]
[null,109,"No Gr","Dodge","SRT Tomahawk GTS-R VGT"]
[null,110,"No Gr","Dodge","SRT Tomahawk S VGT"]
[null,111,"Gr.1","Dodge","SRT Tomahawk VGT (Gr.1)"]
[null,112,"No Gr","Dodge","SRT Tomahawk X VGT"]
[null,113,"No Gr","Dodge","Super Bee '70"]
[null,114,"No Gr","Dodge","Viper GTS '02"]
[null,115,"No Gr","Dodge","Viper GTS '13"]
[null,116,"Gr.4","Dodge","Viper Gr.4"]
[null,117,"Gr.3","Dodge","Viper SRT GT3-R '15"]
[null,118,"No Gr","Dodge","Viper SRT10 Coupe '06"]
[null,119,"No Gr","DS Automobiles","DS3 Racing '11"]
[null,120,"No Gr","Eckert's Rod & Customs","Mach Forty"]
[null,121,"No Gr","Ferrari","250 GT Berlinetta passo corto '61"]
[null,122,"No Gr","Ferrari","250 GTO '62"]
[null,123,"No Gr","Ferrari","308 GTB '75"]
[null,124,"No Gr","Ferrari","330 P4 '67"]
[null,125,"No Gr","Ferrari","365 GTB4 '71"]
[null,126,"No Gr","Ferrari","458 Italia '09"]
[null,127,"Gr.3","Ferrari","458 Italia GT3 '13"]
[null,128,"Gr.4","Ferrari","458 Italia Gr.4"]
[null,129,"No Gr","Ferrari","500 Mondial Pinin Farina Coupe '54"]
[null,130,"No Gr","Ferrari","512 BB '76"]
[null,131,"No Gr","Ferrari","Dino 246 GT '71"]
[null,132,"No Gr","Ferrari","Enzo Ferrari '02"]
[null,133,"No Gr","Ferrari","F12berlinetta '12"]
[null,134,"No Gr","Ferrari","F40 '92"]
[null,135,"No Gr","Ferrari","F430 '06"]
[null,136,"No Gr","Ferrari","F50 '95"]
[null,137,"No Gr","Ferrari","F8 Tributo '19"]
[null,138,"No Gr","Ferrari","GTO '84"]
[null,139,"No Gr","Ferrari","LaFerrari '13"]
[null,140,"No Gr","Ferrari","Testarossa '91"]
[null,141,"No Gr","Ferrari","FXX K' '14"]
[null,142,"No Gr","Fiat","500 1.2 8V Lounge SS '08"]
[null,143,"No Gr","Fiat","500 F '68"]
[null,144,"No Gr","Ford","F-150 SVT Raptor '11"]
[null,145,"Gr.B","Ford","Focus Gr.B Rally Car"]
[null,146,"No Gr","Ford","Focus RS '18"]
[null,147,"No Gr","Ford","Focus ST '15"]
[null,148,"No Gr","Ford","Ford GT '06"]
[null,149,"No Gr","Ford","Ford GT '17"]
[null,150,"Gr.3","Ford","GT LM Race Car Spec II"]
[null,151,"Gr.3","Ford","GT LM Spec II Test Car"]
[null,152,"Gr.3","Ford","GT Race Car '18"]
[null,153,"No Gr","Ford","GT40 Mark I '66"]
[null,154,"No Gr","Ford","Mark IV Race Car '67"]
[null,155,"No Gr","Ford","Mustang Boss 429 '69"]
[null,156,"No Gr","Ford","Mustang GT '15"]
[null,157,"Gr.3","Ford","Mustang Gr.3"]
[null,158,"No Gr","Ford","Mustang Gr.3 Road Car"]
[null,159,"Gr.4","Ford","Mustang Gr.4"]
[null,160,"Gr.B","Ford","Mustang Gr.B Rally Car"]
[null,161,"No Gr","Ford","Mustang Mach 1 '71"]
[null,162,"No Gr","Ford","Ford Sierra RS 500 Cosworth '87"]
[null,163,"No Gr","Ford","Shelby GT350R '16"]
[null,164,"No Gr","Ford","Roadster"]
[null,165,"No Gr","Genesis","G70 3.3T AWD P.Package '22"]
[null,166,"Gr.4","Genesis","G70 GR4"]
[null,167,"Gr.3","Genesis","Genesis X GR3"]
[null,168,"No Gr","Gran Turismo","Racing Kart 125 Shifter"]
[null,169,"SF1","Gran Turismo","F1500T-A"]
[null,170,"No Gr","Gran Turismo","Red Bull X2014 Junior"]
[null,171,"No Gr","Gran Turismo","Red Bull X2014 Standard"]
[null,172,"No Gr","Gran Turismo","Red Bull X2019 Competition"]
[null,173,"No Gr","Greddy","Greddy Fugu Z"]
[null,174,"No Gr","Honda","2&4 powered by RC213V"]
[null,175,"No Gr","Honda","Beat '91"]
[null,176,"No Gr","Honda","Civic Type R (EK) '97"]
[null,177,"No Gr","Honda","Civic Type R (EK) '98"]
[null,178,"No Gr","Honda","Civic Type R (EK) Touring Car"]
[null,179,"No Gr","Honda","Civic Type R (FK2) '15"]
[null,180,"No Gr","Honda","Civic Type R Limited Edition (FK8) '20"]
[null,181,"No Gr","Honda","Fit Hybrid '14"]
[null,182,"No Gr","Honda","Honda Sports VGT"]
[null,183,"No Gr","Honda","Integra Type R (DC2) '95"]
[null,184,"No Gr","Honda","Integra Type R (DC2) '98"]
[null,185,"No Gr","Honda","NSX '17"]
[null,186,"Gr.2","Honda","NSX CONCEPT-GT '16"]
[null,187,"Gr.2","Honda","NSX GT500 '08"]
[null,188,"Gr.3","Honda","NSX Gr.3"]
[null,189,"Gr.4","Honda","NSX Gr.4"]
[null,190,"Gr.B","Honda","NSX Gr.B Rally Car"]
[null,191,"No Gr","Honda","NSX Type R '02"]
[null,192,"No Gr","Honda","NSX Type R '92"]
[null,193,"No Gr","Honda","S2000 '99"]
[null,194,"No Gr","Honda","S660 '15"]
[null,195,"No Gr","Honda","S800 '66"]
[null,196,"SF1","Honda","SF19 Super Formula / Honda '19"]
[null,197,"No Gr","Hyundai","Genesis Coupe 3.8 '13"]
[null,198,"Gr.3","Hyundai","Genesis Gr.3"]
[null,199,"Gr.4","Hyundai","Genesis Gr.4"]
[null,200,"Gr.B","Hyundai","Genesis GR.B Rally Car"]
[null,201,"Gr.1","Hyundai","HYUNDAI N 2025 VGT (Gr.1)"]
[null,202,"No Gr","Hyundai","HYUNDAI N 2025 VGT"]
[null,203,"No Gr","Infiniti","INFINITI CONCEPT VGT"]
[null,204,"No Gr","Jaguar","D-Type '54"]
[null,205,"No Gr","Jaguar","E-Type Coupé '61"]
[null,206,"Gr.3","Jaguar","F-Type Gr.3"]
[null,207,"Gr.4","Jaguar","F-Type Gr.4"]
[null,208,"No Gr","Jaguar","F-Type R '14"]
[null,209,"No Gr","Jaguar","Jaguar VGT Coupé"]
[null,210,"No Gr","Jaguar","Jaguar VGT Roadster"]
[null,211,"No Gr","Jaguar","XJ13 '66"]
[null,212,"Gr.1","Jaguar","XJR-9 '88"]
[null,213,"No Gr","Jaguar","Jaguar VGT SV"]
[null,214,"No Gr","Jeep","Willys MB '45"]
[null,215,"No Gr","KTM","X-BOW R '12"]
[null,216,"No Gr","Lamborghini","Aventador LP 700-4 '11"]
[null,217,"No Gr","Lamborghini","Aventador LP 750-4 SV '15"]
[null,218,"No Gr","Lamborghini","Countach 25th Anniversary '88"]
[null,219,"No Gr","Lamborghini","Countach LP400 '74"]
[null,220,"No Gr","Lamborghini","Diablo GT '00"]
[null,221,"Gr.3","Lamborghini","Huracán GT3 '15"]
[null,222,"Gr.4","Lamborghini","Huracán Gr.4"]
[null,223,"No Gr","Lamborghini","Huracán LP 610-4 '15"]
[null,224,"No Gr","Lamborghini","Lambo V12 VGT"]
[null,225,"No Gr","Lamborghini","Miura P400 Bertone Prototype '67"]
[null,226,"No Gr","Lamborghini","Murciélago LP 640 '09"]
[null,227,"No Gr","Lamborghini","Veneno '14"]
[null,228,"No Gr","Lancia","Stratos '73"]
[null,229,"No Gr","Lancia","Delta HF Integrale Evoluzione '91"]
[null,230,"No Gr","Lexus","LC500 '17"]
[null,231,"No Gr","Lexus","LF-LC GT VGT"]
[null,232,"No Gr","Lexus","RC F '14"]
[null,233,"Gr.3","Lexus","RC F GT3 '17"]
[null,234,"Gr.3","Lexus","RC F GT3 prototype '16"]
[null,235,"Gr.2","Lexus","RC F GT500 '16"]
[null,236,"Gr.4","Lexus","RC F Gr.4"]
[null,237,"Gr.2","Lexus","SC430 GT500 '08"]
[null,238,"No Gr","Maserati","GranTurismo S '08"]
[null,239,"No Gr","Maserati","Merak SS '80"]
[null,240,"No Gr","Maserati","A6GCS/53 Spyder '54"]
[null,241,"Gr.1","Mazda","787B '91"]
[null,242,"Gr.3","Mazda","Atenza Gr.3"]
[null,243,"No Gr","Mazda","Atenza Gr.3 Road Car"]
[null,244,"Gr.4","Mazda","Atenza Gr.4"]
[null,245,"No Gr","Mazda","Atenza Sedan XD L Package '15"]
[null,246,"No Gr","Mazda","Demio XD Touring '15"]
[null,247,"No Gr","Mazda","Eunos Roadster (NA) '89"]
[null,248,"No Gr","Mazda","LM55 VGT"]
[null,249,"Gr.1","Mazda","LM55 VGT (Gr.1)"]
[null,250,"No Gr","Mazda","RX-7 GT-X (FC) '90"]
[null,251,"No Gr","Mazda","RX-7 Spirit R Type A (FD) '02"]
[null,252,"No Gr","Mazda","RX-8 Spirit R '12"]
[null,253,"No Gr","Mazda","RX-Vision '15"]
[null,254,"Gr.3","Mazda","RX-VISION GT3 CONCEPT"]
[null,255,"Gr.3","Mazda","RX-VISION GT3 CONCEPT Stealth Model"]
[null,256,"No Gr","Mazda","RX500 '70"]
[null,257,"No Gr","Mazda","Roadster S (ND) '15"]
[null,258,"No Gr","Mazda","Roadster Touring Car"]
[null,259,"No Gr","Mazda","Roadster NR-A (ND) '22"]
[null,260,"No Gr","McLaren","650S '14"]
[null,261,"Gr.3","McLaren","650S GT3 '15"]
[null,262,"Gr.4","McLaren","650S Gr.4"]
[null,263,"No Gr","McLaren","MP4-12C '10"]
[null,264,"SF1","McLaren","McLaren F1 '94"]
[null,265,"Gr.3","McLaren","McLaren F1 GTR - BMW '95"]
[null,266,"No Gr","McLaren","McLaren P1 GTR '16"]
[null,267,"No Gr","McLaren","McLaren VGT"]
[null,268,"Gr.1","McLaren","McLaren VGT (Gr.1)"]
[null,269,"No Gr","McLaren","McLaren MP4/4 '88"]
[null,270,"No Gr","Mercedes-Benz","300 SL (W194) Coupé '52"]
[null,271,"No Gr","Mercedes-Benz","300 SL Coupé '54"]
[null,272,"No Gr","Mercedes-Benz","S Barker Tourer '29"]
[null,273,"No Gr","Mercedes-Benz","SLR McLaren '09"]
[null,274,"Gr.1","Mercedes-Benz","Sauber Mercedes C9 '89"]
[null,275,"No Gr","MINI","MINI Clubman VGT"]
[null,276,"No Gr","MINI","Mini Cooper S '05"]
[null,277,"No Gr","MINI","Mini-Cooper 'S' '65"]
[null,278,"No Gr","Mitsubishi","Concept XR-PHEV EVOLUTION VGT"]
[null,279,"No Gr","Mitsubishi","GTO Twin Turbo '91"]
[null,280,"No Gr","Mitsubishi","Lancer Evolution Final '15"]
[null,281,"Gr.3","Mitsubishi","Lancer Evolution Final Gr.3"]
[null,282,"Gr.4","Mitsubishi","Lancer Evolution Final Gr.4"]
[null,283,"Gr.B","Mitsubishi","Lancer Evolution Final Gr.B Rally Car"]
[null,284,"No Gr","Mitsubishi","Lancer Evolution Final Gr.B Road Car"]
[null,285,"No Gr","Mitsubishi","Lancer Evolution IV GSR '96"]
[null,286,"No Gr","Mitsubishi","Lancer Evolution V GSR '98"]
[null,287,"No Gr","Mitsubishi","Lancer Evolution VI GSR T.M. SCP '99"]
[null,288,"No Gr","Nissan","180SX Type X '96"]
[null,289,"No Gr","Nissan","Fairlady 240ZG (HS30) '71"]
[null,290,"No Gr","Nissan","Fairlady Z (Z34) '08"]
[null,291,"No Gr","Nissan","Fairlady Z 300ZX TT 2seater '89"]
[null,292,"No Gr","Nissan","Fairlady Z 432 '69"]
[null,293,"No Gr","Nissan","Fairlady Z Version S (Z33) '07"]
[null,294,"No Gr","Nissan","GT-R '17"]
[null,295,"Gr.2","Nissan","GT-R GT500 '08"]
[null,296,"Gr.3","Nissan","GT-R GT500 '99"]
[null,297,"Gr.4","Nissan","GT-R GR.4"]
[null,298,"Gr.B","Nissan","GT-R Gr.B Rally Car"]
[null,299,"Gr.1","Nissan","GT-R LM NISMO '15"]
[null,300,"No Gr","Nissan","GT-R NISMO '17"]
[null,301,"Gr.3","Nissan","GT-R NISMO GT3 '13"]
[null,302,"Gr.3","Nissan","BT-R NISMO GT3 '18"]
[null,303,"Gr.2","Nissan","GT-R NISMO GT500 '16"]
[null,304,"No Gr","Nissan","GT-R Safety Car"]
[null,305,"No Gr","Nissan","NISSAN CONCEPT 2020 VGT"]
[null,306,"No Gr","Nissan","R32 GT-R V-spec II '94"]
[null,307,"No Gr","Nissan","R33 GT-R V-spec '97"]
[null,308,"No Gr","Nissan","R34 GT-R V-spec II Nür '02"]
[null,309,"Gr.1","Nissan","R92CP '92"]
[null,310,"No Gr","Nissan","SILVIA spec-R Aero (S15) '02"]
[null,311,"No Gr","Nissan","Sileighty '98"]
[null,312,"No Gr","Nissan","Silvia K's Dia Selection (S13) '90"]
[null,313,"No Gr","Nissan","Nissan Silvia K Model S (S14) ’94"]
[null,314,"No Gr","Nissan","Nissan Silvia K’s Aero (S14) '96"]
[null,315,"No Gr","Nissan","Silvia Q's (S13) '88"]
[null,316,"Gr.4","Nissan","Silvia spec-R Aero (S15) Touring Car"]
[null,317,"No Gr","Nissan","Skyline Hard Top 2000GT-R (KPGC10) '70"]
[null,318,"No Gr","Nissan","Skyline 2000GT-R (KPGC110) '73"]
[null,319,"No Gr","Nissan","Z Performance '23"]
[null,320,"Gr.3","Nissan","Skyline Super Silhouette '84"]
[null,321,"No Gr","Pagani","Huayra '13"]
[null,322,"No Gr","Pagani","Zonda R '09"]
[null,323,"Gr.B","Peugeot","205 Turbo 16 Evolution 2 '86"]
[null,324,"No Gr","Peugeot","208 GTI by Peugeot Sport '14"]
[null,325,"Gr.1","Peugeot","908 HDi FAP '10"]
[null,326,"No Gr","Peugeot","L500R HYbrid VGT 2017"]
[null,327,"Gr.1","Peugeot","L750R HYbrid VGT 2017"]
[null,328,"No Gr","Peugeot","PEUGEOT VGT"]
[null,329,"Gr.3","Peugeot","PEUGEOT VGT Gr.3"]
[null,330,"No Gr","Peugeot","RCZ GT Line '15"]
[null,331,"Gr.3","Peugeot","RCZ Gr.3"]
[null,332,"No Gr","Peugeot","RCZ Gr.3 Road Car"]
[null,333,"Gr.4","Peugeot","RCZ Gr.4"]
[null,334,"Gr.B","Peugeot","RCZ Gr.B Rally Car"]
[null,335,"No Gr","Plymouth","Superbird '70"]
[null,336,"No Gr","Plymouth","XNR Ghia Roadster '60"]
[null,337,"No Gr","Pontiac","Firebird Trans Am '78"]
[null,338,"No Gr","Pontiac","GTO 'The Judge' '69"]
[null,339,"No Gr","Porsche","356 A/1500 GS Carrera '56"]
[null,340,"No Gr","Porsche","356 A/1500 GS GT Carrera Speedster '56"]
[null,341,"No Gr","Porsche","911 Carrera RS (964) '92"]
[null,342,"No Gr","Porsche","911 Carrera RS (993) '95"]
[null,343,"No Gr","Porsche","911 Carrera RS CS (993) '95"]
[null,344,"No Gr","Porsche","911 GT1 Strassenversion '97"]
[null,345,"No Gr","Porsche","911 GT3 (996) '01"]
[null,346,"No Gr","Porsche","911 GT3 (997) '09"]
[null,347,"No Gr","Porsche","911 GT3 RS (991) '16"]
[null,348,"Gr.3","Porsche","911 RSR (991) '17"]
[null,349,"No Gr","Porsche","911 Turbo (930) '81"]
[null,350,"No Gr","Porsche","917 LIVING LEGEND"]
[null,351,"No Gr","Porsche","917K '70"]
[null,352,"Gr.1","Porsche","919 Hybrid '16"]
[null,353,"Gr.1","Porsche","962 C '88"]
[null,354,"No Gr","Porsche","Carrera GT '04"]
[null,355,"Gr.4","Porsche","Cayman GT4 Clubsport '16"]
[null,356,"No Gr","Porsche","Porsche VGT"]
[null,357,"No Gr","Porsche","Spyder type 550/1500RS '55"]
[null,358,"No Gr","Porsche","TAYCAN TURBO S 2019"]
[null,359,"No Gr","Porsche","Porsche Vision Gran Turismo Spyder"]
[null,360,"No Gr","Porsche","918 Spyder '13"]
[null,361,"No Gr","Porsche","Cayman GT4 '16"]
[null,362,"No Gr","Radical","SR3 SL '13"]
[null,363,"No Gr","RE Amemiya","FD3S RX-7"]
[null,364,"No Gr","Renault","Clio R.S. 220 Trophy '15"]
[null,365,"No Gr","Renault","Clio R.S. 220 Trophy '16"]
[null,366,"No Gr","Renault","Clio V6 24V '00"]
[null,367,"Gr.4","Renault","Mégane Gr.4"]
[null,368,"No Gr","Renault","Mégane R.S. Trophy '11"]
[null,369,"No Gr","Renault","Mégane RS Trophy Safety Car"]
[null,370,"Gr.4","Renault","Mégane Trophy '11"]
[null,371,"No Gr","Renault","R.S.01 '16"]
[null,372,"Gr.3","Renault","R.S.01 GT3 '16"]
[null,373,"No Gr","Renault","R5 Turbo '80"]
[null,374,"No Gr","Renault","R8 GORDINI '66"]
[null,375,"No Gr","Roadster Shop","Roadster Shop Rampage"]
[null,376,"No Gr","RUF","CTR3 '07"]
[null,377,"No Gr","Shelby","Cobra 427 '66"]
[null,378,"No Gr","Shelby","Cobra Daytona Coupe '64"]
[null,379,"No Gr","Shelby","G.T.350 '65"]
[null,380,"No Gr","Subaru","BRZ Drift Car '17"]
[null,381,"No Gr","Subaru","BRZ S '15"]
[null,382,"No Gr","Subaru","BRZ STI Sport '18"]
[null,383,"No Gr","Subaru","Impreza 22B-STi '98"]
[null,384,"No Gr","Subaru","Impreza Coupe WRX Type R STi Ver.VI '99"]
[null,385,"No Gr","Subaru","VIZIV GT VGT"]
[null,386,"Gr.3","Subaru","WRX Gr.3"]
[null,387,"Gr.4","Subaru","WRX Gr.4"]
[null,388,"Gr.B","Subaru","WRX Gr.B Rally Car"]
[null,389,"No Gr","Subaru","WRX Gr.B Road Car"]
[null,390,"No Gr","Subaru","WRX STI Isle of Man '16"]
[null,391,"No Gr","Subaru","WRX STI Type S '14"]
[null,392,"Gr.3","Subaru","BRZ GT300 '21"]
[null,393,"No Gr","Subaru","BRZ S '21"]
[null,394,"No Gr","Suzuki","Swift Sport '07"]
[null,395,"No Gr","Suzuki","Swift Sport '17"]
[null,396,"Gr.4","Suzuki","Swift Sport Gr.4"]
[null,397,"No Gr","Suzuki","Cappuccino (EA11R) '91"]
[null,398,"No Gr","Suzuki","Suzuki VGT"]
[null,399,"No Gr","Suzuki","V6 Escudo Pikes Peak Special '98"]
[null,400,"Gr.3","Suzuki","Suzuki VGT (Gr.3)"]
[null,401,"No Gr","Tesla","Model S Signature Performance '12"]
[null,402,"SF1","Toyota","SF19 Super Formula / Toyota '19"]
[null,403,"No Gr","Toyota","2000GT '67"]
[null,404,"No Gr","Toyota","86 GRMN '16"]
[null,405,"No Gr","Toyota","86 GT '15"]
[null,406,"No Gr","Toyota","86 GT\"Limited\" '16"]
[null,407,"Gr.4","Toyota","86 Gr.4"]
[null,408,"Gr.B","Toyota","86 Gr.B Rally Car"]
[null,409,"No Gr","Toyota","Aqua S '11"]
[null,410,"No Gr","Toyota","Celica GT-Four (ST205) '94"]
[null,411,"No Gr","Toyota","Corolla Levin 1600GT APEX (AE86) '83"]
[null,412,"No Gr","Toyota","Crown Athlete G '13"]
[null,413,"No Gr","Toyota","Crown Athlete G Safety Car"]
[null,414,"No Gr","Toyota","FT-1"]
[null,415,"No Gr","Toyota","FT-1 VGT"]
[null,416,"Gr.3","Toyota","FT-1 VGT (Gr.3)"]
[null,417,"No Gr","Toyota","GR Supra RZ '19"]
[null,418,"No Gr","Toyota","GR Supra RZ '20"]
[null,419,"Gr.4","Toyota","GR Supra Race Car '19"]
[null,420,"Gr.3","Toyota","GR Supra Racing Concept '18"]
[null,421,"No Gr","Toyota","GR Yaris RZ \"High performance\" '20"]
[null,422,"No Gr","Toyota","GR86 RZ '21"]
[null,423,"No Gr","Toyota","MR2 GT-S '97"]
[null,424,"No Gr","Toyota","Prius G '09"]
[null,425,"No Gr","Toyota","S-FR '15"]
[null,426,"No Gr","Toyota","S-FR Racing Concept '16"]
[null,427,"No Gr","Toyota","Sports 800 '65"]
[null,428,"No Gr","Toyota","Sprinter Trueno 1600GT APEX (AE86) '83"]
[null,429,"No Gr","Toyota","Sprinter Trueno 1600GT APEX (S.Shigeno Version)"]
[null,430,"No Gr","Toyota","Supra 3.0GT Turbo A '88"]
[null,431,"Gr.3","Toyota","Supra GT500 '97"]
[null,432,"No Gr","Toyota","Supra RZ '97"]
[null,433,"Gr.1","Toyota","TS030 Hybrid '12"]
[null,434,"Gr.1","Toyota","TS050 - Hybrid '16"]
[null,435,"No Gr","Toyota","Tundra TRD Pro '19"]
[null,436,"Gr.1","Toyota","GR010 HYBRID ‘21"]
[null,437,"No Gr","TVR","Tuscan Speed 6 '00"]
[null,438,"Gr.3","Volkswagen","Beetle Gr.3"]
[null,439,"No Gr","Volkswagen","GTI Roadster VGT"]
[null,440,"No Gr","Volkswagen","GTI Supersport VGT"]
[null,441,"No Gr","Volkswagen","Golf I GTI '83"]
[null,442,"No Gr","Volkswagen","Golf VII GTI '14"]
[null,443,"No Gr","Volkswagen","Volkswagen ID.R ’19"]
[null,444,"No Gr","Volkswagen","Polo GTI '14"]
[null,445,"No Gr","Volkswagen","Sambabus Typ 2 '62"]
[null,446,"Gr.4","Volkswagen","Scirocco Gr.4"]
[null,447,"No Gr","Volkswagen","Scirocco R '10"]
[null,448,"No Gr","Volkswagen","Volkswagen 1200 '66"]
[null,449,"Gr.3","Volkswagen","GTI VGT (Gr.3)"]
[null,450,"No Gr","Wicked Fabrication","Wicked Fabrication GT 51"]
[null,451,"No Gr","Zagato","IsoRivolta Zagato VGT"]

{"sheet":"Voitures","index":11,"n_rows":476,"n_cols":7,"rows_kept":476,"cut":false,"hidden":false,"merged":[[1,2,2,2],[1,1,2,1],[1,3,2,3],[1,6,1,7]]}
[]
[null,"Catégorie",null,null,null,null,"Rechercher : ctrl+F"]
[]
[null,"Gr1_"]
[null,"Gr2_"]
[null,"Gr3_"]
[null,"Gr4_"]
[null,"GrB"]
[null,"SF"]
[null,"No_Gr"]
[]
[null,null,null,"mise à jour 1.26 GT"]
[null,null,null,"Gr1_"]
[null,null,null,"Alpine Alpine VGT '17"]
[null,null,null,"Audi Audi VGT"]
[null,null,null,"Audi R18 '16"]
[null,null,null,"Audi R18 TDI '11"]
[null,null,null,"Bugatti Bugatti VGT (GR.1)"]
[null,null,null,"Dodge SRT Tomahawk VGT (Gr.1)"]
[null,null,null,"Hyundai HYUNDAI N 2025 VGT (Gr.1)"]
[null,null,null,"Jaguar XJR-9 '88"]
[null,null,null,"Mazda 787B '91"]
[null,null,null,"Mazda LM55 VGT (Gr.1)"]
[null,null,null,"McLaren McLaren VGT (Gr.1)"]
[null,null,null,"Mercedes-Benz Sauber Mercedes C9 '89"]
[null,null,null,"Nissan GT-R LM NISMO '15"]
[null,null,null,"Nissan R92CP '92"]
[null,null,null,"Peugeot 908 HDi FAP '10"]
[null,null,null,"Peugeot L750R HYbrid VGT 2017"]
[null,null,null,"Porsche 919 Hybrid '16"]
[null,null,null,"Porsche 962 C '88"]
[null,null,null,"Toyota TS030 Hybrid '12"]
[null,null,null,"Toyota TS050 - Hybrid '16"]
[null,null,null,"Toyota GR010 HYBRID ‘21"]
[]
[null,null,null,"Gr2_"]
[null,null,null,"AMG CLK-LM '98"]
[null,null,null,"BMW McLaren F1 GTR Race Car '97"]
[null,null,null,"Honda NSX CONCEPT-GT '16"]
[null,null,null,"Honda NSX GT500 '08"]
[null,null,null,"Lexus RC F GT500 '16"]
[null,null,null,"Lexus SC430 GT500 '08"]
[null,null,null,"Nissan GT-R GT500 '08"]
[null,null,null,"Nissan GT-R NISMO GT500 '16"]
[]
[null,null,null,"Gr3_"]
[null,null,null,"AMG Mercedes-AMG GT3 '16"]
[null,null,null,"AMG SLS AMG GT3 '11"]
[null,null,null,"Alfa Romeo 4C Gr.3"]
[null,null,null,"Aston Martin DBR9 GT1 '10"]
[null,null,null,"Aston Martin V12 Vantage GT3 '12"]
[null,null,null,"Audi R8 LMS '15"]
[null,null,null,"Audi R8 LMS Evo '19"]
[null,null,null,"BMW M3 GT '11"]
[null,null,null,"BMW M6 GT3 Endurance Model '16"]
[null,null,null,"BMW M6 GT3 Sprint Model '16"]
[null,null,null,"BMW Z4 GT3 '11"]
[null,null,null,"Chevrolet Corvette C7 Gr.3"]
[null,null,null,"Citroen GT by Citroën Race Car (Gr.3)"]
[null,null,null,"Dodge Viper SRT GT3-R '15"]
[null,null,null,"Ferrari 458 Italia GT3 '13"]
[null,null,null,"Ford GT LM Race Car Spec II"]
[null,null,null,"Ford GT LM Spec II Test Car"]
[null,null,null,"Ford GT Race Car '18"]
[null,null,null,"Ford Mustang Gr.3"]
[null,null,null,"Genesis Genesis X GR3"]
[null,null,null,"Honda NSX Gr.3"]
[null,null,null,"Hyundai Genesis Gr.3"]
[null,null,null,"Jaguar F-Type Gr.3"]
[null,null,null,"Lamborghini Huracán GT3 '15"]
[null,null,null,"Lexus RC F GT3 '17"]
[null,null,null,"Lexus RC F GT3 prototype '16"]
[null,null,null,"Mazda Atenza Gr.3"]
[null,null,null,"Mazda RX-VISION GT3 CONCEPT"]
[null,null,null,"Mazda RX-VISION GT3 CONCEPT Stealth Model"]
[null,null,null,"McLaren 650S GT3 '15"]
[null,null,null,"McLaren McLaren F1 GTR - BMW '95"]
[null,null,null,"Mitsubishi Lancer Evolution Final Gr.3"]
[null,null,null,"Nissan GT-R GT500 '99"]
[null,null,null,"Nissan GT-R NISMO GT3 '13"]
[null,null,null,"Nissan GT-R NISMO GT3 '18"]
[null,null,null,"Peugeot PEUGEOT VGT Gr.3"]
[null,null,null,"Peugeot RCZ Gr.3"]
[null,null,null,"Porsche 911 RSR (991) '17"]
[null,null,null,"Renault R.S.01 GT3 '16"]
[null,null,null,"Subaru WRX Gr.3"]
[null,null,null,"Toyota FT-1 VGT (Gr.3)"]
[null,null,null,"Toyota GR Supra Racing Concept '18"]
[null,null,null,"Toyota Supra GT500 '97"]
[null,null,null,"Volkswagen Beetle Gr.3"]
[null,null,null,"Volkswagen GTI VGT (Gr.3)"]
[null,null,null,"Subaru BRZ GT300 '21"]
[null,null,null,"Suzuki Suzuki VGT (Gr.3)"]
[null,null,null,"Nissan Skyline Super Silhouette '84"]
[]
[null,null,null,"Gr4_"]
[null,null,null,"AMG SLS AMG GR.4"]
[null,null,null,"Alfa Romeo 155 2.5 V6 TI '93"]
[null,null,null,"Alfa Romeo 4C Gr.4"]
[null,null,null,"Aston Martin V8 Vantage GR.4"]
[null,null,null,"Audi TT CUP '16"]
[null,null,null,"BMW M4 GR.4"]
[null,null,null,"Bugatti Veyron Gr.4"]
[null,null,null,"Chevrolet Corvette C7 Gr.4"]
[null,null,null,"Citroen GT BY Citroën GR.4"]
[null,null,null,"Dodge Viper Gr.4"]
[null,null,null,"Ferrari 458 Italia Gr.4"]
[null,null,null,"Ford Mustang Gr.4"]
[null,null,null,"Genesis G70 GR4"]
[null,null,null,"Honda NSX Gr.4"]
[null,null,null,"Hyundai Genesis Gr.4"]
[null,null,null,"Jaguar F-Type Gr.4"]
[null,null,null,"Lamborghini Huracán Gr.4"]
[null,null,null,"Lexus RC F Gr.4"]
[null,null,null,"Mazda Atenza Gr.4"]
[null,null,null,"McLaren 650S Gr.4"]
[null,null,null,"Mitsubishi Lancer Evolution Final Gr.4"]
[null,null,null,"Nissan GT-R GR.4"]
[null,null,null,"Nissan Silvia spec-R Aero (S15) Touring Car"]
[null,null,null,"Peugeot RCZ Gr.4"]
[null,null,null,"Porsche Cayman GT4 Clubsport '16"]
[null,null,null,"Renault Mégane Gr.4"]
[null,null,null,"Renault Mégane Trophy '11"]
[null,null,null,"Subaru WRX Gr.4"]
[null,null,null,"Suzuki Swift Sport Gr.4"]
[null,null,null,"Toyota 86 Gr.4"]
[null,null,null,"Toyota GR Supra Race Car '19"]
[null,null,null,"Volkswagen Scirocco Gr.4"]
[]
[null,null,null,"GrB"]
[null,null,null,"Audi Sport Quattro S1 Pikes Peak '87"]
[null,null,null,"Ford Focus Gr.B Rally Car"]
[null,null,null,"Ford Mustang Gr.B Rally Car"]
[null,null,null,"Honda NSX Gr.B Rally Car"]
[null,null,null,"Hyundai Genesis GR.B Rally Car"]
[null,null,null,"Mitsubishi Lancer Evolution Final Gr.B Rally Car"]
[null,null,null,"Nissan GT-R Gr.B Rally Car"]
[null,null,null,"Peugeot 205 Turbo 16 Evolution 2 '86"]
[null,null,null,"Peugeot RCZ Gr.B Rally Car"]
[null,null,null,"Subaru WRX Gr.B Rally Car"]
[null,null,null,"Toyota 86 Gr.B Rally Car"]
[]
[null,null,null,"SF"]
[null,null,null,"Gran Turismo F1500T-A"]
[null,null,null,"Gran Turismo Red Bull X2014 Junior"]
[null,null,null,"Gran Turismo Red Bull X2014 Standard"]
[null,null,null,"Gran Turismo Red Bull X2019 Competition"]
[null,null,null,"McLaren McLaren F1 '94"]
[null,null,null,"Honda SF19 Super Formula / Honda '19"]
[null,null,null,"Toyota SF19 Super Formula / Toyota '19"]
[]
[null,null,null,"No_Gr"]
[null,null,null,"AMG 300 SEL 6.8 AMG '71"]
[null,null,null,"AMG A 45 AMG '13"]
[null,null,null,"AMG Mercedes-AMG C 63 S '15"]
[null,null,null,"AMG Mercedes-AMG GT Black Series '20"]
[null,null,null,"AMG Mercedes-AMG GT R '17"]
[null,null,null,"AMG Mercedes-AMG GT S '15"]
[null,null,null,"AMG Mercedes-AMG GT Safety Car"]
[null,null,null,"AMG Mercedes-Benz AMG VGT"]
[null,null,null,"AMG Mercedes-Benz AMG VGT Racing Series"]
[null,null,null,"AMG SLS AMG '10"]
[null,null,null,"Abarth 1500 Biposto Bertone B.A.T 1 '52"]
[null,null,null,"Abarth 500 '09"]
[null,null,null,"Abarth 595 SS '70"]
[null,null,null,"Alfa Romeo 4C '14"]
[null,null,null,"Alfa Romeo 4C Gr.3 Road Car"]
[null,null,null,"Alfa Romeo 8C Competizione '08"]
[null,null,null,"Alfa Romeo GIULIA TZ2 carrozzata da ZAGATO '65"]
[null,null,null,"Alfa Romeo MiTo '09"]
[null,null,null,"Alpine A110 '17"]
[null,null,null,"Alpine A110 '72"]
[null,null,null,"Alpine A220 Race Car '68"]
[null,null,null,"Alpine Alpine VGT"]
[null,null,null,"Alpine Alpine VGT Race"]
[null,null,null,"Amuse Amuse NISMO 380RS Super Leggera"]
[null,null,null,"Amuse S2000 GT1 Turbo"]
[null,null,null,"Aston Martin DB11 '16"]
[null,null,null,"Aston Martin DB3S '53"]
[null,null,null,"Aston Martin DB5 '64"]
[null,null,null,"Aston Martin DP-100 VGT"]
[null,null,null,"Aston Martin One-77 '11"]
[null,null,null,"Aston Martin V8 Vantage S '15"]
[null,null,null,"Aston Martin Vulcan '16"]
[null,null,null,"Audi Audi e-tron VGT"]
[null,null,null,"Audi R8 4.2 '07"]
[null,null,null,"Audi TT Coupé 3.2 quattro '03"]
[null,null,null,"Audi TTS Coupé '14"]
[null,null,null,"Autobianchi A112 Abarth '85"]
[null,null,null,"BMW 3.0 CSL '71"]
[null,null,null,"BMW 3.0 CSL '73"]
[null,null,null,"BMW BMW VGT"]
[null,null,null,"BMW M2 Competition '18","2022-11-01"]
[null,null,null,"BMW M3 '03"]
[null,null,null,"BMW M3 '07"]
[null,null,null,"BMW M3 '89"]
[null,null,null,"BMW M3 Sport Evolution '89"]
[null,null,null,"BMW M4 '14"]
[null,null,null,"BMW M4 Safety Car"]
[null,null,null,"BMW Z8 '01"]
[null,null,null,"BMW i3 '15"]
[null,null,null,"BAC Mono '16"]
[null,null,null,"Bugatti Bugatti VGT"]
[null,null,null,"Bugatti Veyron 16.4 '13"]
[null,null,null,"Chaparral 2J '70"]
[null,null,null,"Chaparral Chevrolet Chaparral 2X VGT"]
[null,null,null,"Chevrolet Camaro SS '16"]
[null,null,null,"Chevrolet Camaro Z28 '69"]
[null,null,null,"Chevrolet Camaro ZL1 1LE Package '18"]
[null,null,null,"Chevrolet Corvette (C2) '63"]
[null,null,null,"Chevrolet Corvette C7 '14"]
[null,null,null,"Chevrolet Corvette C7 Gr.3 Road Car"]
[null,null,null,"Chevrolet Corvette C7 ZR1 '19"]
[null,null,null,"Chevrolet Corvette Convertible (C3) '69"]
[null,null,null,"Chevrolet Corvette Stingray (C3) '69"]
[null,null,null,"Chevrolet Corvette Stingray Racer Concept '59"]
[null,null,null,"Chevrolet Corvette ZR-1 (C4) '89"]
[null,null,null,"Chevrolet Corvette ZR1 (C6) '09"]
[null,null,null,"Chris Holstrom Concepts CHC 1967 Chevy Nova"]
[null,null,null,"Citroen GT by Citroën Road Car"]
[null,null,null,"DMC DeLorean S2 '04"]
[null,null,null,"DS Automobiles DS3 Racing '11"]
[null,null,null,"Daihatsu Copen '02"]
[null,null,null,"Daihatsu COPEN RJ VGT"]
[null,null,null,"De Tomaso Pantera '71"]
[null,null,null,"De Tomaso Mangusta '69"]
[null,null,null,"Dodge Challenger R/T '70"]
[null,null,null,"Dodge Charger SRT Hellcat '15"]
[null,null,null,"Dodge Charger SRT Hellcat Safety Car"]
[null,null,null,"Dodge SRT Tomahawk GTS-R VGT"]
[null,null,null,"Dodge SRT Tomahawk S VGT"]
[null,null,null,"Dodge SRT Tomahawk X VGT"]
[null,null,null,"Dodge Super Bee '70"]
[null,null,null,"Dodge Viper GTS '02"]
[null,null,null,"Dodge Viper GTS '13"]
[null,null,null,"Dodge Viper SRT10 Coupe '06"]
[null,null,null,"Eckert's Rod & Customs Mach Forty"]
[null,null,null,"Ferrari 250 GT Berlinetta passo corto '61"]
[null,null,null,"Ferrari 250 GTO '62"]
[null,null,null,"Ferrari 308 GTB '75"]
[null,null,null,"Ferrari 330 P4 '67"]
[null,null,null,"Ferrari 365 GTB4 '71"]
[null,null,null,"Ferrari 458 Italia '09"]
[null,null,null,"Ferrari 500 Mondial Pinin Farina Coupe '54"]
[null,null,null,"Ferrari 512 BB '76"]
[null,null,null,"Ferrari Dino 246 GT '71"]
[null,null,null,"Ferrari Enzo Ferrari '02"]
[null,null,null,"Ferrari F12berlinetta '12"]
[null,null,null,"Ferrari F40 '92"]
[null,null,null,"Ferrari F430 '06"]
[null,null,null,"Ferrari F50 '95"]
[null,null,null,"Ferrari F8 Tributo '19"]
[null,null,null,"Ferrari GTO '84"]
[null,null,null,"Ferrari LaFerrari '13"]
[null,null,null,"Ferrari Testarossa '91"]
[null,null,null,"Fiat 500 1.2 8V Lounge SS '08"]
[null,null,null,"Fiat 500 F '68"]
[null,null,null,"Ford F-150 SVT Raptor '11"]
[null,null,null,"Ford Focus RS '18"]
[null,null,null,"Ford Focus ST '15"]
[null,null,null,"Ford Ford GT '06"]
[null,null,null,"Ford Ford GT '17"]
[null,null,null,"Ford GT40 Mark I '66"]
[null,null,null,"Ford Mark IV Race Car '67"]
[null,null,null,"Ford Mustang Boss 429 '69"]
[null,null,null,"Ford Mustang GT '15"]
[null,null,null,"Ford Mustang Gr.3 Road Car"]
[null,null,null,"Ford Mustang Mach 1 '71"]
[null,null,null,"Ford Sierra RS 500 Cosworth '87","2022-11-01"]
[null,null,null,"Ford Shelby GT350R '16"]
[null,null,null,"Genesis G70 3.3T AWD P.Package '22"]
[null,null,null,"Gran Turismo Racing Kart 125 Shifter"]
[null,null,null,"Greddy Greddy Fugu Z"]
[null,null,null,"Honda 2&4 powered by RC213V"]
[null,null,null,"Honda Beat '91"]
[null,null,null,"Honda Civic Type R (EK) '97"]
[null,null,null,"Honda Civic Type R (EK) '98"]
[null,null,null,"Honda Civic Type R (EK) Touring Car"]
[null,null,null,"Honda Civic Type R (FK2) '15"]
[null,null,null,"Honda Civic Type R Limited Edition (FK8) '20"]
[null,null,null,"Honda Fit Hybrid '14"]
[null,null,null,"Honda Honda Sports VGT"]
[null,null,null,"Honda Integra Type R (DC2) '95"]
[null,null,null,"Honda Integra Type R (DC2) '98"]
[null,null,null,"Honda NSX '17"]
[null,null,null,"Honda NSX Type R '02"]
[null,null,null,"Honda NSX Type R '92"]
[null,null,null,"Honda S2000 '99"]
[null,null,null,"Honda S660 '15"]
[null,null,null,"Honda S800 '66"]
[null,null,null,"Hyundai Genesis Coupe 3.8 '13"]
[null,null,null,"Hyundai HYUNDAI N 2025 VGT"]
[null,null,null,"Infiniti INFINITI CONCEPT VGT"]
[null,null,null,"Jaguar D-Type '54"]
[null,null,null,"Jaguar E-Type Coupé '61"]
[null,null,null,"Jaguar F-Type R '14"]
[null,null,null,"Jaguar Jaguar VGT Coupé"]
[null,null,null,"Jaguar Jaguar VGT Roadster"]
[null,null,null,"Jaguar XJ13 '66"]
[null,null,null,"Jeep Willys MB '45"]
[null,null,null,"KTM X-BOW R '12"]
[null,null,null,"Lamborghini Aventador LP 700-4 '11"]
[null,null,null,"Lamborghini Aventador LP 750-4 SV '15"]
[null,null,null,"Lamborghini Countach 25th Anniversary '88"]
[null,null,null,"Lamborghini Countach LP400 '74"]
[null,null,null,"Lamborghini Diablo GT '00"]
[null,null,null,"Lamborghini Huracán LP 610-4 '15"]
[null,null,null,"Lamborghini Lambo V12 VGT"]
[null,null,null,"Lamborghini Miura P400 Bertone Prototype '67"]
[null,null,null,"Lamborghini Murciélago LP 640 '09"]
[null,null,null,"Lamborghini Veneno '14"]
[null,null,null,"Lancia Stratos '73"]
[null,null,null,"Lancia Delta HF Integrale Evoluzione '91"]
[null,null,null,"Lexus LC500 '17"]
[null,null,null,"Lexus LF-LC GT VGT"]
[null,null,null,"Lexus RC F '14"]
[null,null,null,"MINI Mini Clubman VGT"]
[null,null,null,"MINI Mini Cooper S '05"]
[null,null,null,"MINI Mini-Cooper 'S' '65"]
[null,null,null,"Maserati GranTurismo S '08"]
[null,null,null,"Maserati Merak SS '80"]
[null,null,null,"Mazda Atenza Gr.3 Road Car"]
[null,null,null,"Mazda Atenza Sedan XD L Package '15"]
[null,null,null,"Mazda Demio XD Touring '15"]
[null,null,null,"Mazda Eunos Roadster (NA) '89"]
[null,null,null,"Mazda LM55 VGT"]
[null,null,null,"Mazda RX-7 GT-X (FC) '90"]
[null,null,null,"Mazda RX-7 Spirit R Type A (FD) '02"]
[null,null,null,"Mazda RX-8 Spirit R '12"]
[null,null,null,"Mazda RX-Vision '15"]
[null,null,null,"Mazda RX500 '70"]
[null,null,null,"Mazda Roadster S (ND) '15"]
[null,null,null,"Mazda Roadster Touring Car"]
[null,null,null,"Mazda Roadster NR-A (ND) '22"]
[null,null,null,"McLaren 650S '14"]
[null,null,null,"McLaren MP4-12C '10"]
[null,null,null,"McLaren McLaren P1 GTR '16"]
[null,null,null,"McLaren McLaren VGT"]
[null,null,null,"Mercedes-Benz 300 SL (W194) Coupé '52"]
[null,null,null,"Mercedes-Benz 300 SL Coupé '54"]
[null,null,null,"Mercedes-Benz S Barker Tourer '29"]
[null,null,null,"Mercedes-Benz SLR McLaren '09"]
[null,null,null,"Mitsubishi Concept XR-PHEV EVOLUTION VGT"]
[null,null,null,"Mitsubishi GTO Twin Turbo '91"]
[null,null,null,"Mitsubishi Lancer Evolution Final '15"]
[null,null,null,"Mitsubishi Lancer Evolution Final Gr.B Road Car"]
[null,null,null,"Mitsubishi Lancer Evolution IV GSR '96"]
[null,null,null,"Mitsubishi Lancer Evolution V GSR '98"]
[null,null,null,"Mitsubishi Lancer Evolution VI GSR T.M. SCP '99"]
[null,null,null,"Nissan 180SX Type X '96"]
[null,null,null,"Nissan Fairlady 240ZG (HS30) '71"]
[null,null,null,"Nissan Fairlady Z (Z34) '08"]
[null,null,null,"Nissan Fairlady Z 300ZX TT 2seater '89"]
[null,null,null,"Nissan Fairlady Z 432 '69"]
[null,null,null,"Nissan Fairlady Z Version S (Z33) '07"]
[null,null,null,"Nissan GT-R '17"]
[null,null,null,"Nissan GT-R NISMO '17"]
[null,null,null,"Nissan GT-R Safety Car"]
[null,null,null,"Nissan NISSAN CONCEPT 2020 VGT"]
[null,null,null,"Nissan R32 GT-R V-spec II '94"]
[null,null,null,"Nissan R33 GT-R V-spec '97"]
[null,null,null,"Nissan R34 GT-R V-spec II Nür '02"]
[null,null,null,"Nissan SILVIA spec-R Aero (S15) '02"]
[null,null,null,"Nissan Sileighty '98"]
[null,null,null,"Nissan Silvia K's Dia Selection (S13) '90"]
[null,null,null,"Nissan Silvia K Model S (S14) ’94"]
[null,null,null,"Nissan Silvia Q's (S13) '88"]
[null,null,null,"Nissan Silvia K’s Aero (S14) '96","2022-11-01"]
[null,null,null,"Nissan Skyline Hard Top 2000GT-R (KPGC10) '70"]
[null,null,null,"Nissan Skyline 2000GT-R (KPGC110) '73"]
[null,null,null,"Nissan Z Performance '23"]
[null,null,null,"Pagani Huayra '13"]
[null,null,null,"Pagani Zonda R '09"]
[null,null,null,"Peugeot 208 GTI by Peugeot Sport '14"]
[null,null,null,"Peugeot L500R HYbrid VGT 2017"]
[null,null,null,"Peugeot PEUGEOT VGT"]
[null,null,null,"Peugeot RCZ GT Line '15"]
[null,null,null,"Peugeot RCZ Gr.3 Road Car"]
[null,null,null,"Plymouth Superbird '70"]
[null,null,null,"Plymouth XNR Ghia Roadster '60"]
[null,null,null,"Pontiac Firebird Trans Am '78"]
[null,null,null,"Porsche 356 A/1500 GS Carrera '56"]
[null,null,null,"Porsche 356 A/1500 GS GT Carrera Speedster '56"]
[null,null,null,"Porsche 911 Carrera RS (964) '92"]
[null,null,null,"Porsche 911 Carrera RS (993) '95"]
[null,null,null,"Porsche 911 Carrera RS CS (993) '95"]
[null,null,null,"Porsche 911 GT1 Strassenversion '97"]
[null,null,null,"Porsche 911 GT3 (996) '01"]
[null,null,null,"Porsche 911 GT3 (997) '09"]
[null,null,null,"Porsche 911 GT3 RS (991) '16"]
[null,null,null,"Porsche 911 Turbo (930) '81"]
[null,null,null,"Porsche 917 LIVING LEGEND"]
[null,null,null,"Porsche 917K '70"]
[null,null,null,"Porsche Carrera GT '04"]
[null,null,null,"Porsche Porsche VGT"]
[null,null,null,"Porsche Spyder type 550/1500RS '55"]
[null,null,null,"Porsche TAYCAN TURBO S 2019"]
[null,null,null,"Porsche Vision Gran Turismo Spyder"]
[null,null,null,"RE Amemiya FD3S RX-7"]
[null,null,null,"RUF CTR3 '07"]
[null,null,null,"Radical SR3 SL '13"]
[null,null,null,"Renault Clio R.S. 220 Trophy '15"]
[null,null,null,"Renault Clio R.S. 220 Trophy '16"]
[null,null,null,"Renault Clio V6 24V '00"]
[null,null,null,"Renault Mégane R.S. Trophy '11"]
[null,null,null,"Renault Mégane RS Trophy Safety Car"]
[null,null,null,"Renault R.S.01 '16"]
[null,null,null,"Renault R5 Turbo '80"]
[null,null,null,"Renault R8 GORDINI '66"]
[null,null,null,"Shelby Cobra 427 '66"]
[null,null,null,"Shelby Cobra Daytona Coupe '64"]
[null,null,null,"Shelby G.T.350 '65"]
[null,null,null,"Subaru BRZ Drift Car '17"]
[null,null,null,"Subaru BRZ S '15"]
[null,null,null,"Subaru BRZ STI Sport '18"]
[null,null,null,"Subaru Impreza 22B-STi '98"]
[null,null,null,"Subaru Impreza Coupe WRX Type R STi Ver.VI '99"]
[null,null,null,"Subaru VIZIV GT VGT"]
[null,null,null,"Subaru WRX Gr.B Road Car"]
[null,null,null,"Subaru WRX STI Isle of Man '16"]
[null,null,null,"Subaru WRX STI Type S '14"]
[null,null,null,"Suzuki Swift Sport '07"]
[null,null,null,"Suzuki Swift Sport '17"]
[null,null,null,"TVR Tuscan Speed 6 '00"]
[null,null,null,"Tesla Model S Signature Performance '12"]
[null,null,null,"Toyota 2000GT '67"]
[null,null,null,"Toyota 86 GRMN '16"]
[null,null,null,"Toyota 86 GT '15"]
[null,null,null,"Toyota 86 GT\"Limited\" '16"]
[null,null,null,"Toyota Aqua S '11"]
[null,null,null,"Toyota Celica GT-Four (ST205) '94"]
[null,null,null,"Toyota Corolla Levin 1600GT APEX (AE86) '83"]
[null,null,null,"Toyota Crown Athlete G '13"]
[null,null,null,"Toyota Crown Athlete G Safety Car"]
[null,null,null,"Toyota FT-1"]
[null,null,null,"Toyota FT-1 VGT"]
[null,null,null,"Toyota GR Supra RZ '19"]
[null,null,null,"Toyota GR Supra RZ '20"]
[null,null,null,"Toyota GR Yaris RZ \"High performance\" '20"]
[null,null,null,"Toyota GR86 RZ '21"]
[null,null,null,"Toyota MR2 GT-S '97"]
[null,null,null,"Toyota Prius G '09"]
[null,null,null,"Toyota S-FR '15"]
[null,null,null,"Toyota S-FR Racing Concept '16"]
[null,null,null,"Toyota Sports 800 '65"]
[null,null,null,"Toyota Sprinter Trueno 1600GT APEX (AE86) '83"]
[null,null,null,"Toyota Sprinter Trueno 1600GT APEX (S.Shigeno Version)"]
[null,null,null,"Toyota Supra 3.0GT Turbo A '88"]
[null,null,null,"Toyota Supra RZ '97"]
[null,null,null,"Toyota Tundra TRD Pro '19"]
[null,null,null,"Volkswagen GTI Roadster VGT"]
[null,null,null,"Volkswagen GTI Supersport VGT"]
[null,null,null,"Volkswagen Golf I GTI '83"]
[null,null,null,"Volkswagen Golf VII GTI '14"]
[null,null,null,"Volkswagen ID.R ’19,","Electrique"]
[null,null,null,"Volkswagen Polo GTI '14"]
[null,null,null,"Volkswagen Sambabus Typ 2 '62"]
[null,null,null,"Volkswagen Scirocco R '10"]
[null,null,null,"Volkswagen Volkswagen 1200 '66"]
[null,null,null,"Wicked Fabrication Wicked Fabrication GT 51"]
[null,null,null,"Zagato IsoRivolta Zagato VGT"]
[null,null,null,"Alfa Romeo 8C 2900B Touring Berlinetta '38"]
[null,null,null,"Ferrari FXX K' '14"]
[null,null,null,"Jaguar Jaguar VGT SV"]
[null,null,null,"Suzuki Cappuccino (EA11R) '91"]
[null,null,null,"Subaru BRZ S '21"]
[null,null,null,"Suzuki Suzuki VGT"]
[null,null,null,"Roadster Shop Roadster Shop Rampage"]
[null,null,null,"Suzuki V6 Escudo Pikes Peak Special '98"]
[null,null,null,"Ford Roadster"]
[null,null,null,"Porsche 918 Spyder '13"]
[null,null,null,"Maserati A6GCS/53 Spyder '54"]
[null,null,null,"Pontiac GTO 'The Judge' '69"]
[null,null,null,"Porsche Cayman GT4 '16"]
[null,null,null,"McLaren McLaren MP4/4 '88"]
[null,null,null,"De Tomaso Mangusta (Christian Dior)"]

{"sheet":"Notice","index":12,"n_rows":253,"n_cols":18,"rows_kept":253,"cut":false,"hidden":false,"merged":[[206,7,206,13],[99,10,104,13],[139,2,139,12],[181,2,181,8],[182,2,182,8],[183,2,183,8],[193,6,193,11],[252,4,253,7],[0,0,1,13],[38,1,38,5],[44,1,45,6],[46,1,48,6],[196,10,200,13],[68,11,68,19],[69,17,69,18],[95,10,98,13],[147,1,148,13],[150,1,153,1],[91,10,94,13],[149,1,149,13],[69,13,69,16],[171,1,171,13],[201,10,204,13]]}
["NOTICE  D'UTILISATION"]
[]
[null,"Application pour l'élaboration et le choix de stratégie de course"]
[null,"Utilisable pour des courses dont la durée est définie par une limite de temps ou un nombre de tours,"]
[null,"En préalable :"]
[null,"! A l'ouverture du fichier si le message ci-dessous apparait, cliquez sur ",null,null,null,null,null,null,null,null,null,null,null,null,null,null,"Astuce d'affichage pour un meilleur confort en mode course"]
[]
[null,"! Pour utiliser pleinement le comparateur vous devez disposer d'un fichier Excel qui accepte les macros (fichier xlm)"]
[null,"A l'ouverture du comparateur si les messages ci-dessous apparaissent"]
[]
[]
[]
[]
[]
[null,"Vous devez activer les macros :"]
[]
[]
[]
[]
[]
[]
[null,"LE COMPARATEUR DE STRATEGIE EN 4 ETAPES"]
[]
[]
[]
[]
[]
[]
[]
[]
[]
[]
[]
[]
[]
[]
[]
[null,"1) Introduction des paramètres de la course :"]
[null,"Les renseignements à indiquer dans les cellules fonds blancs",null,null,null,null,"facultatif","sont à titre informatifs (pas d'obligation de saisie)."]
[]
[null,"Les renseignements à indiquer dans les cellules fonds jaunes",null,null,null,null,"obligatoire","doivent être obligatoirement complétés."]
[null,"NB : une notification vous indiques les saisies obligatoires et celles qui n'ont qu'une valeur informative"]
[]
[null,"2) Effacer les paramètres saisies :"]
[null,"Cliquez sur les boutons de commandes \npour effacer vos données saisies, (strat, chronos etc..)"]
[]
[null,"une confirmation vous sera demandée. ATTENTION si vous cliquer sur \"oui\" la suppression est irréversible."]
[]
[]
[]
[]
[null,"3) Obtenir des informations ou renseignements sur comment saisir les données :"]
[null,"En cliquant sur les cellules"]
[null,"vous pouvez obtenir des informations ou des explications"]
[null,"complémentaires."]
[]
[null,null,null,null,"Exemple :"]
[]
[]
[]
[null,"4) Protection des cellules de calcul et des formules :"]
[null,"ATTENTION si vous déverrouillez la protection des feuilles vous risquez de perdre des formules de calcul et d'altérer les résultats."]
[null,"Utilisez le comparateur uniquement en mode protégé !"]
[null,"5) Saisie des informations courses"]
[null,null,"A l'ouverture du comparateur :"]
[]
[null,null,null,null,null,null,null,null,null,null,null,"a) Indiquer à l'aide du menu déroulant le circuit"]
[null,null,null,null,null,null,null,null,null,null,null,"b) Choisissez à l'aide du menu déroulant la durée en nbr de tours ou en temps"]
[null,null,null,null,null,null,null,null,null,null,null,"c) Indiquez ensuite la valeur tours ou temps dans la cellule correspondante"]
[null,null,null,null,null,null,null,null,null,null,null,null,null,"si temps format de saisie :",null,null,null,"1:30   pour 1h30 mn"]
[]
[null,null,null,null,null,null,null,null,null,null,null,"d) à l'aide du menu déroulant indiquez les gommes disponibles pour la course (3 choix possibles)"]
[null,null,null,null,null,null,null,null,null,null,null,"e) indiquer si l'utilisation est libre ou obligatoire"]
[null,null,null,null,null,null,null,null,null,null,null,"f) indiquez l'autonomie max (hors éco)"]
[null,null,null,null,null,null,null,null,null,null,null,"g) indiquez la vitesse de ravitaillement et la jauge au départ de la course (valeur par défaut 100 litres)"]
[]
[]
[null,null,null,null,null,null,null,null,null,null,null,"Corriger les temps d'arrêts aux stands par rapport au circuit"]
[null,null,null,null,null,null,null,null,null,null,null,"Indiquer vos temps moyens chrono au tour par types de gommes"]
[]
[]
[null,null,null,null,null,null,null,null,null,null,null,"Ces informations sont facultatives"]
[null,null,null,null,null,null,null,null,null,null,null,"Elles ont une valeur informative"]
[null,null,null,null,null,null,null,null,null,null,null,"En choisissant une catégorie, vous avez la liste des modèles correspondant dans la cellule \"modelé\""]
[]
[]
[null,"6) Calcul des temps d'arrêt aux stands :"]
[null,"Des temps sont indiqués par défaut mais en fonction des circuits et des mises à jour de Gran Turismo il est nécessaire de les réajuster."]
[null,"Dans tous les cas il sera judicieux de les vérifier. Le temps d'arrêt au stand est un facteur important dans une stratégie de course !"]
[]
[null,"Mode de calcul utilisé pour le calcul des temps d'arrêts :"]
[null,null,null,null,null,null,null,null,null,null,"t3 : se calcul automatiquement lorsque vous indiquez la vitesse de ravitaillement dans la page d'accueil.\n"]
[]
[]
[]
[null,null,null,null,null,null,null,null,null,null,"Pour obtenir le temps t1 :\nchronométrer le temps de passage de votre voiture entre l'entrée et la sortie des stands en condition course."]
[]
[]
[]
[null,null,null,null,null,null,null,null,null,null,"Pour obtenir t2 :\nfaite un arrêt au stand en changeant uniquement les pneus et notez le temps affiché par le jeu en sortie de stands"]
[]
[]
[]
[]
[]
[]
[null,"7) Elaboration stratégie de course :"]
[null,"A vous de jouer !   Avec l'aide d'une ou des trois interfaces, Strat 1, Strat 2 et Strat 3 :"]
[null,null,"a) choisissez le nombre de tours entre chaque pit (le besoin en fuel se calculera automatiquement), et si vous dépassez la capacité"]
[null,null,null,"maxi du réservoir un message d'alerte vous préviendra ."]
[null,null,"b) choisissez le ou les types de pneumatiques"]
[null,"Saisie du tableau de bord - 2 à 3 informations à complèter à chaque pit :"]
[null,"obligatoire","1)","le nombre de tours entre chaque pit (dans l'exemple : 5; 6; 7; 10)"]
[null,"obligatoire","2)","\"Gommes\" le type de pneumatique à l'aide de la liste déroulante (dans l'exemple : médium, PIT sans changement, soft, hard)"]
[null,"si besoin","3)","l'utilisation éco fuel si votre strat vous impose de rouler en mode éco (dans l'exemple pour une autonomie max 8 tours : utilisation mode éco à 2 au PIT 3)"]
[null,null,null,"(utilisation conduite éco voir chapitre 10)"]
[null,"Exemple tableau de bord :"]
[]
[]
[]
[]
[]
[]
[]
[]
[]
[]
[]
[]
[]
[]
[]
[]
[null,"Interprétation du tableau de bord ci-dessus pour une autonomie de 8 tours :"]
[null,"1ère colonne, départ : pneus médium, absence de conduite éco, 5 tours à faire avant le 1er PIT    "]
[null,"PIT 1 : on ne change pas de gomme (reste en médium) pour effectuer 6 tours avant le second PIT. Refuel jauge du jeu à 75% ou 6 tours."]
[null,"PIT2 : passage en gomme tendre pour effectuer 7 tours avant le PIT3. refuel jauge du jeu à 88% ou 7 tours"]
[null,"PIT 3 : passage en gomme dur pour effectuer 10 tours avant l'arrivée. Refuel à 100%, 8 tours et conduite en mode éco niveau 2"]
[null,"Arrivée au tour 28 après 58 minutes de course."]
[null,null,"L'utilisation de la conduite éco fera perdre 12,6 sec en moyenne sur les 10 tours"]
[null,"IMPORTANT :","Les types de pneus sélectionnés dans votre stratégie devront impérativement êtres associés à un temps moyen chrono"]
[null,null,"Auquel cas les données indiquées seront erronées."]
[]
[null,"8) Gestion des pneumatiques :"]
[null,"La gestion des pneumatiques est cruciale. Comprendre la façon dont votre style de pilotage affecte la durée de vie des pneus et tout aussi important "]
[null,"que d'engranger des tours rapides."]
[]
[null,"Une alerte (couleur de cellule orange) dans la partie \"stratégie\", ou vous avez saisie le nombre de tours/pit se déclenchera si vous saisissez un nombre de tours supérieur au seuil que vous aurez défini dans la durée de vie ou le pic de performance de vos trains de pneus. (ce qui ne vous empêche pas de passer outre et de conserver le nbr de tours voulu)."]
[]
[null,"Exemple image ci-dessous : PIT 1 pneus soft pour une usure max indiqué à 9 tours. Si vous indiquez 10 tours ou + la cellule se met en alerte pour vous prévenir que vous dépasser le pic de performance."]
[]
[]
[]
[]
[]
[]
[]
[]
[]
[]
[]
[null,"Renseignez dans la page d'accueil si la monte des types de pneus est libre ou obligatoire"]
[null,"Si vous omettez d'utiliser une gomme obligatoire dans votre stratégie un message d'alerte vous avertira"]
[null,"La cellule \"tps moyen\" vous indique le temps moyen au tour qui sera pris en compte dans le calcul de votre stratégie soit 2 minutes et 1 seconde dans l'exemple"]
[]
[null,"9) Carburant / Autonomie :"]
[null,"L'autonomie indiquée dans le jeu réservoir plein peut varier au fur et à mesure que le réservoir se vide et que la voiture gagne en poids. "]
[null,"Le calculateur ne prend pas en compte ce facteur puisqu'il dépend également de votre conduite."]
[null,"Il est donc nécessaire de faire un essai pour vérifier l'autonomie réelle de votre voiture si vous ne voulez pas avoir de mauvaise surprise le jour de la course !"]
[null,"Si vous choisissez dans votre stratégie un nombre de tours supérieur à l'autonomie maxi que vous avez renseigné dans la page d'accueil, un message d'alerte"]
[null,"s'affichera"]
[null,"NB : Le juste besoin nécessaire de fuel à embarquer se calcul automatiquement pour chacun des PIT. Néanmoins si vous en estimez l'utilité vous pouvez forcer le remplissage en corrigeant la valeur en %"]
[]
[null,"10) Conduite économique :"]
[null,"Comme dans le jeu GT7 vous avez deux possibilités :"]
[null,"A)","utilisez le compte tour comme indicateur de conduite économe en réalisant votre course ou une partie de votre course"]
[null,null,"en changeant vos rapport sans monter dans les tours moteur."]
[null,null,"trois choix simulés en terme de gain d'autonomie et de perte de temps sont proposés."]
[null,"Si vous adopter un mode de conduite qui consiste à changer les rapports de vitesses sans monter à fond dans les tours moteur : "]
[null,"sélectionnez dans le menu déroulant \"Conduite éco\" :"]
[]
[null,"tr/mn 2/3","correspond à changer les rapports à  2/3 des leds du compte tour"]
[null,"tr/mn1/2","correspond à changer les rapports à la moitié des leds du compte tour"]
[null,"tr/mn 1/3","correspond à changer les rapports dès l'appariation 1ère led du compte tour"]
[null,"Le calculateur estimera le gain d'autonomie et la perte de temps / km"]
[]
[null,"B)","utiliser l'économie de fuel disponible dans la fonction du jeu GT7 :"]
[null,"Les choix 2; 3; 4; 5 et 6 du menu déroulant correspondent au mode éco du jeux"]
[null,"GT7 qui consiste à la réduction plus ou moins importante de la puissance du véhicule."]
[null,"Le simulateur estimera le gain d'autonomie et la perte de temps / km"]
[null,"suivant le niveau de réduction de la puissance moteur sélectionné (1 seul choix par PIT possible)"]
[]
[null,"10.1) Ajustement autonomie et perte de temps éco par rapport à votre conduite :"]
[null,"Vous avez la possibilité en cliquant sur le bouton   ",null,null,null,null,"d'affiner l'autonomie et la perte de temps en fonction"]
[null,"de vos essais en modifiant les valeurs par défaut du calculateur."]
[]
[null,null,null,null,null,null,null,null,null,null,"La modification des valeurs \"gain autonomie\" agit sur la distance supplémentaire parcourue en fonction du niveau d'éco utilisé"]
[]
[]
[]
[]
[null,null,null,null,null,null,null,null,null,null,"La modification des valeurs \"réduction vitesse\" agit sur la dégradation des temps en fonction de la vitesse"]
[]
[]
[]
[]
[]
[]
[]
[null,"11) Comparateur de stratégie :"]
[null,"Lorsque vous avez terminé d'élaborer vos stratégies (jusqu’à 3), vous pouvez les comparer et choisir la meilleure pour cela :"]
[]
[null,"Cliquez sur le bouton                              pour avoir accès au comparateur de stratégie."]
[]
[null,"Interprétation du comparateur de stratégie :"]
[]
[]
[]
[]
[]
[]
[]
[]
[]
[]
[]
[]
[]
[]
[]
[]
[]
[]
[]
[]
[]
[]
[]
[null,"La meilleur stratégie sera en principe celle ou la majorité des indicateurs seront verts avec le temps moyen / tour le plus faible et l'indice de risque"]
[null,"le moins élevé."]
[null,"Le fil conducteur pendant la course est d'être au plus près des temps de références moyens au tour en fonction des types de pneus."]
[]
[null,"Adopter une stratégie de course ne vous fera pas forcément gagner de temps, mais elle évitera de vous en faire perdre ! "]
[null,"Une bonne stratégie vous permettra de prévoir des impondérables comme éviter une panne d'essence… "]
[null,"ou de devoir rouler avec des gommes trop usées et perdre des secondes précieuses…"]
[null,"Cette application vous aidera à élaborer des scénarios pour limiter et optimiser les arrêts aux stands au strict "]
[null,"nécessaire et de rester concentré sur votre course, votre conduite et les points de freinages…"]
[null,"Néanmoins si vos temps chronos au tour sont trop éloignés de vos concurrents elle ne fera pas de miracle !"]
[]
[]
[null,"Imprimer le tableau de bord ou afficher le sur l'écran d'un ordinateur pour suivre votre stratégie pendant la course…"]
[]
[null,null,null,null,"A bientôt sur GT7 !"]

{"sheet":"usure","index":13,"n_rows":71,"n_cols":26,"rows_kept":71,"cut":false,"hidden":false,"merged":[[2,25,6,28],[0,25,1,28],[0,4,3,5],[0,11,3,12],[0,18,3,19],[0,0,3,3],[18,1,19,1],[30,1,31,1],[11,1,12,1],[9,1,10,1],[6,1,7,1],[15,0,15,3],[27,0,27,3]]}
["Essais libres :",null,null,null,1,null,null,null,null,null,null,2,null,null,null,null,null,null,3,null,null,null,null,null,null,"Usure des gommes"]
[null,null,null,null,null,null,null,{"$f":"chronos!G10","v":8},null,null,null,null,null,null,{"$f":"chronos!J15","v":0},null,null,null,null,null,null,{"$f":"chronos!N15","v":0}]
[null,null,null,null,null,null,null,null,null,null,null,null,null,null,null,null,null,null,null,null,null,null,null,null,null,"Vous pouvez indiquer pour mémoire l'usure pour chacun des pneus dans les cellules à fonds jaunes.\nNombre entier\nValeur de 0 à 10"]
[]
[]
[]
[null,"Gommes 1"]
[]
[null,{"$f":"chronos!C10","v":0}]
[]
[]
[]
[null,null,null,null,null,null,{"$f":"G6","v":0},null,{"$f":"I6","v":0},null,null,null,null,{"$f":"N6","v":0},null,{"$f":"P6","v":0},null,null,null,null,{"$f":"U6","v":0},null,{"$f":"W6","v":0}]
[]
[]
[]
[]
[]
[null,"Gommes 2"]
[]
[null,{"$f":"chronos!C12","v":0}]
[]
[]
[]
[null,null,null,null,null,null,{"$f":"G18","v":0},null,{"$f":"I18","v":0},null,null,null,null,{"$f":"N18","v":0},null,{"$f":"P18","v":0},null,null,null,null,{"$f":"U18","v":0},null,{"$f":"W18","v":0}]
[]
[]
[]
[]
[]
[null,"Gommes 3"]
[]
[null,{"$f":"chronos!C14","v":0}]
[]
[]
[]
[null,null,null,null,null,null,{"$f":"G30","v":0},null,{"$f":"I30","v":0},null,null,null,null,{"$f":"N30","v":0},null,{"$f":"P30","v":0},null,null,null,null,{"$f":"U30","v":0},null,{"$f":"W30","v":0}]
[]
[]
[]
[]
[]
[]
[]
[]
[]
[]
[]
[]
[]
[]
[]
[]
[]
[]
[]
[]
[]
[]
[]
[]
[]
[]
[]
[]
[]
[]
[null,null,null,null,null,0,{"$f":"H2","v":8},{"$f":"O2","v":0},{"$f":"V2","v":0}]
[null,null,null,null,null,{"$f":"B9","v":0},{"$f":"(G6+I6)/2","v":0},{"$f":"(N6+P6)/2","v":0},{"$f":"(U6+W6)/2","v":0},null,null,null,{"$f":"F69","v":0},{"$f":"H2","v":8},{"$f":"O2","v":0},{"$f":"V2","v":0}]
[null,null,null,null,null,{"$f":"B21","v":0},{"$f":"(G18+I18)/2","v":0},{"$f":"(N18+P18)/2","v":0},{"$f":"(U18+W18)/2","v":0},null,null,null,{"$f":"F70","v":0},{"$f":"H2","v":8},{"$f":"O2","v":0},{"$f":"V2","v":0}]
[null,null,null,null,null,{"$f":"B33","v":0},{"$f":"(G30+I30)/2","v":0},{"$f":"(N30+P30)/2","v":0},{"$f":"(U30+W30)/2","v":0},null,null,null,0,{"$f":"H2","v":8},{"$f":"+O2","v":0},{"$f":"V2","v":0}]